NUMERO_MANDATO;RIGA_MANDATO;QUIET;IMPORTO_RIGA;IMPORTO_MANDATO;BENEFICIARIO;CIG;TITOLO_PAGAMENTO;DATA_MANDATO;CAPITOLO;ARTICOLO;NUMERO_IMPEGNO;TITOLO;DESCR_TITOLO;LIVELLO_II;DESCR_LIVELLO_II;LIVELLO_III;DESCR_LIVELLO_III;LIVELLO_IV;DESCR_LIVELLO_IV;LIVELLO_V;DESCR_LIVELLO_V;DATA_PAG_EFF
29;1;0;170,69;231,65;TESORERIA PROV.LE DELLO STATO; ;VERS.CONTRIB. MESE: GENNAIO 19 A CARICO DELL`ENTE CPDEL;18/01/2019;2510;0;224;2;Spese in conto capitale;2;Investimenti fissi lordi e acquisto di terreni;1;Beni materiali;9;Beni immobili;3;Fabbricati ad uso scolastico;18/01/2019
29;2;0;60,96;231,65;TESORERIA PROV.LE DELLO STATO;75584538BA;VERSAMENTO CONTRIBUTI O RITENUTE  MESE DI: GENNAIO 19 IRAP;18/01/2019;2510;0;224;2;Spese in conto capitale;2;Investimenti fissi lordi e acquisto di terreni;1;Beni materiali;9;Beni immobili;3;Fabbricati ad uso scolastico;18/01/2019
30;1;0;26,14;26,14;TESORERIA PROV.LE DELLO STATO; ;VERS. IMPOSTE MESE: GENNAIO 19 PER I.R.A.P;18/01/2019;2051;0;374;2;Spese in conto capitale;2;Investimenti fissi lordi e acquisto di terreni;1;Beni materiali;9;Beni immobili;4;Fabbricati industriali e costruzioni leggere;18/01/2019
37;1;0;9,37;74,18;TESORERIA PROV.LE DELLO STATO; ;COMPLETAMENTO ECOCENTRO COMUNALE. CPDEL E IRAP;18/01/2019;3368;1;362;2;Spese in conto capitale;2;Investimenti fissi lordi e acquisto di terreni;1;Beni materiali;9;Beni immobili;999;Beni immobili n.a.c.;18/01/2019
37;2;0;64,81;74,18;TESORERIA PROV.LE DELLO STATO; ;COMPLETAMENTO ECOCENTRO COMUNALE. CPDEL E IRAP;18/01/2019;3368;1;362;2;Spese in conto capitale;2;Investimenti fissi lordi e acquisto di terreni;1;Beni materiali;9;Beni immobili;999;Beni immobili n.a.c.;18/01/2019
38;1;0;6,5;59,32;TESORERIA PROV.LE DELLO STATO; ;Pulizia Alveo Rio Tula - Anno 2018. CPDEL E IRAP;18/01/2019;3404;0;371;2;Spese in conto capitale;2;Investimenti fissi lordi e acquisto di terreni;1;Beni materiali;9;Beni immobili;10;Infrastrutture idrauliche;18/01/2019
38;2;0;52,82;59,32;TESORERIA PROV.LE DELLO STATO; ;Pulizia Alveo Rio Tula - Anno 2018. CPDEL E IRAP;18/01/2019;3404;0;371;2;Spese in conto capitale;2;Investimenti fissi lordi e acquisto di terreni;1;Beni materiali;9;Beni immobili;10;Infrastrutture idrauliche;18/01/2019
39;1;0;157;157;CONSAI SRL;Z3626C49A0;ASSICURAZIONE NUOVA FIAT PANDA  -;21/01/2019;1302;7;1;1;Spese correnti;3;Acquisto di beni e servizi;2;Acquisto di servizi;11;Prestazioni professionali e specialistiche;999;Altre prestazioni professionali e specialistiche n.a.c.;21/01/2019
42;1;0;3.549,07;3.549,07;ORVEI COOPERATIVA SOCIALE ONLUS;Z3E2138775;Fatt.n. 23/PA del 28/12/2018 LAVORI DI MANUTENZIONE VERDE, CIMITERO, PULIZIA STRADE, PULIZIA SORGENTI, MANUTENZIONE IMPIANTI DI IRRIGAZIONE - CIG Z3E2138775 DET. N.431 DEL 29/12/2017 DICEMBRE 2018;21/01/2019;1302;0;9;1;Spese correnti;3;Acquisto di beni e servizi;2;Acquisto di servizi;13;Servizi ausiliari per il funzionamento dell'ente;999;Altri servizi ausiliari n.a.c.;21/01/2019
43;1;0;7.686,00;7.686,00;"EDILCAMPUS S.N.C. DI CAMPUS MASSIMILIANO &amp; CAMPUS";Z9025DA219;Fatt.n. 12/PA del 27/12/2018;21/01/2019;255;0;312;1;Spese correnti;3;Acquisto di beni e servizi;2;Acquisto di servizi;9;Manutenzione ordinaria e riparazioni;8;Manutenzione ordinaria e riparazioni di beni immobili;21/01/2019
44;1;0;267,59;267,59;STAPLES DIRECT MONDOFFICE SRL;Z0C245F780;Fatt.n. 30027087 del 18/12/2018;21/01/2019;82;0;188;1;Spese correnti;3;Acquisto di beni e servizi;1;Acquisto di beni;2;Altri beni di consumo;1;Carta, cancelleria e stampati;21/01/2019
45;1;0;2.501,00;2.501,00;HALLEY SARDEGNA SRL;Z9422A628B;Fatt.n. 0001456 del 31/12/2018;21/01/2019;82;2;75;1;Spese correnti;3;Acquisto di beni e servizi;2;Acquisto di servizi;19;Servizi informatici e di telecomunicazioni;1;Gestione e manutenzione applicazioni;21/01/2019
46;1;0;1.457,90;1.457,90;HALLEY SARDEGNA SRL;Z162414242;Fatt.n. 0001495 del 31/12/2018;21/01/2019;82;3;161;1;Spese correnti;3;Acquisto di beni e servizi;1;Acquisto di beni;2;Altri beni di consumo;6;Materiale informatico;21/01/2019
47;1;0;872,3;872,3;NEMEA SISTEMI;Z0725EA15A;Fatt.n. 232 del 20/12/2018 manutenzione app protezione civile;21/01/2019;840;1;322;1;Spese correnti;3;Acquisto di beni e servizi;2;Acquisto di servizi;4;Acquisto di servizi per formazione e addestramento del personale dell'ente;999;Acquisto di servizi per altre spese per formazione e addestramento n.a.c.;21/01/2019
48;1;0;75,47;400,48;"EDILCAMPUS S.N.C. DI CAMPUS MASSIMILIANO &amp; CAMPUS";Z1B255AB8B;Fatt.n. 14/PA del 28/12/2018;21/01/2019;3126;0;298;2;Spese in conto capitale;2;Investimenti fissi lordi e acquisto di terreni;1;Beni materiali;9;Beni immobili;14;Opere per la sistemazione del suolo;21/01/2019
48;2;0;325,01;400,48;"EDILCAMPUS S.N.C. DI CAMPUS MASSIMILIANO &amp; CAMPUS";Z1B255AB8B;Fatt.n. 13/PA del 28/12/2018;21/01/2019;3126;0;298;2;Spese in conto capitale;2;Investimenti fissi lordi e acquisto di terreni;1;Beni materiali;9;Beni immobili;14;Opere per la sistemazione del suolo;21/01/2019
49;1;0;176,01;176,01;FIORI MARIO;Z5D25F48A9;Fatt.n. FATTPA 12_18 del 29/12/2018;21/01/2019;1300;8;325;1;Spese correnti;3;Acquisto di beni e servizi;1;Acquisto di beni;2;Altri beni di consumo;2;Carburanti, combustibili e lubrificanti;21/01/2019
50;1;0;707,6;707,6;A.I.T. SEGNALETICA SNC;Z8025625DF;SALDO  FATTPA 1_19  del 02/01/2019 DETERMINA  190 DEL 18/10/2018;21/01/2019;3121;0;290;2;Spese in conto capitale;2;Investimenti fissi lordi e acquisto di terreni;1;Beni materiali;9;Beni immobili;12;Infrastrutture stradali;21/01/2019
51;1;0;2.023,19;2.023,19;COOP. SPES a r.l.;Z422136A24;Fatt.n. 60 PA del 31/12/2018 Fattura Cliente;21/01/2019;118;5;12;1;Spese correnti;3;Acquisto di beni e servizi;2;Acquisto di servizi;13;Servizi ausiliari per il funzionamento dell'ente;2;Servizi di pulizia e lavanderia;21/01/2019
52;1;0;234,86;234,86;DNA RANDAGIO;ZD021761F1;Fatt.n. 000011-2019-CANILE del 08/01/2019 SERVIZIO DI RICOVERO E CUSTODIA CANI RANDAGI;21/01/2019;1349;0;33;1;Spese correnti;3;Acquisto di beni e servizi;2;Acquisto di servizi;15;Contratti di servizio pubblico;11;Contratti di servizio per la lotta al randagismo;21/01/2019
53;1;0;1.445,90;1.445,90;OMESSO NOMINATIVO NEL RISPETTO DELLA NORMATIVA SULLA PROTEZIONE DATI PERSONALI;7394433F22;Fatt.n. X-1311 del 10/12/2018;21/01/2019;1412;1;85;1;Spese correnti;3;Acquisto di beni e servizi;2;Acquisto di servizi;15;Contratti di servizio pubblico;8;Contratti di servizio di assistenza sociale residenziale e semiresidenziale;21/01/2019
54;1;0;7.742,59;7.742,59;MURGIA GIOVANNI MARIA;Z1724E1523;Fatt.n. 4PA del 21/12/2018;21/01/2019;654;0;235;1;Spese correnti;3;Acquisto di beni e servizi;2;Acquisto di servizi;15;Contratti di servizio pubblico;6;Contratti di servizio per le mense scolastiche;21/01/2019
55;1;0;100,65;100,65;C.A.A.F. CGIL SARDEGNA SRL;Z92269F3D3;Fatt.n. 38/93 del 03/01/2019;21/01/2019;1412;0;387;1;Spese correnti;3;Acquisto di beni e servizi;2;Acquisto di servizi;15;Contratti di servizio pubblico;9;Contratti di servizio di assistenza sociale domiciliare;21/01/2019
56;1;0;701,68;701,68;CERAMICHE ORVEJ DI MASALA FERNANDO;ZA32380B04;Fatt.n. 3/PA del 28/12/2018 ACQUISTI RELATIVI AL IV TRIMESTRE 2018.;21/01/2019;1422;0;118;1;Spese correnti;3;Acquisto di beni e servizi;1;Acquisto di beni;2;Altri beni di consumo;999;Altri beni e materiali di consumo n.a.c.;21/01/2019
57;1;0;64,66;64,66;CERAMICHE ORVEJ DI MASALA FERNANDO;ZBD255BCBC;Fatt.n. 3/PA del 28/12/2018 ACQUISTI RELATIVI AL IV TRIMESTRE 2018.;21/01/2019;1422;0;276;1;Spese correnti;3;Acquisto di beni e servizi;1;Acquisto di beni;2;Altri beni di consumo;999;Altri beni e materiali di consumo n.a.c.;21/01/2019
58;1;0;564,99;564,99;MESU E RIOS;ZC1265E56E;Fatt.n. 44/PA del 18/12/2018 DEST.MERCE COMUNE DI TULA - SCUOLA MATERNA - VIA P.NENNI - TULA (SS) DAS N. 219417 DEL 18/12/2018 .;21/01/2019;564;4;352;1;Spese correnti;3;Acquisto di beni e servizi;1;Acquisto di beni;2;Altri beni di consumo;2;Carburanti, combustibili e lubrificanti;21/01/2019
59;1;0;457,5;457,5;OTIS SERVIZI SRL;ZF62193515;Fatt.n. 3FO18122683 del 21/12/2018 Competenze Servizi di Manutenzione;21/01/2019;255;0;177;1;Spese correnti;3;Acquisto di beni e servizi;2;Acquisto di servizi;9;Manutenzione ordinaria e riparazioni;8;Manutenzione ordinaria e riparazioni di beni immobili;21/01/2019
60;1;0;3.095,75;3.095,75;BBG SARDEGNA SRL;ZA22298E9D;Fatt.n. FATTPA 88_18 del 30/12/2018;21/01/2019;200;0;93;1;Spese correnti;3;Acquisto di beni e servizi;2;Acquisto di servizi;99;Altri servizi;999;Altri servizi diversi n.a.c.;21/01/2019
61;1;0;1.110,20;1.110,20;RINASCITA SOC.COOP.SOCIALE;Z7424F506C;Fatt.n. 2 del 14/01/2019;21/01/2019;1435;0;234;1;Spese correnti;3;Acquisto di beni e servizi;2;Acquisto di servizi;99;Altri servizi;999;Altri servizi diversi n.a.c.;21/01/2019
62;1;0;5.727,00;5.727,00;RINASCITA SOC.COOP.SOCIALE; ;ATTIVAZIONE INTERVENTO DENOMINATO REIS (REDDITO DI INCLUSIONE SOCIALE) ANNO 2018. liq. n.5;21/01/2019;1435;0;234;1;Spese correnti;3;Acquisto di beni e servizi;2;Acquisto di servizi;99;Altri servizi;999;Altri servizi diversi n.a.c.;21/01/2019
63;1;0;22,13;22,13;CONSAI SRL;Z2122D1140;Contratti polizze assicurative. Stipula polizza per infortunio in favore dei volontari iscritti al Gruppo Comunale di Protezione Civile. LIQ.149;21/01/2019;840;1;73;1;Spese correnti;3;Acquisto di beni e servizi;2;Acquisto di servizi;4;Acquisto di servizi per formazione e addestramento del personale dell'ente;999;Acquisto di servizi per altre spese per formazione e addestramento n.a.c.;21/01/2019
69;1;0;826,82;826,82;OMESSO NOMINATIVO NEL RISPETTO DELLA NORMATIVA SULLA PROTEZIONE DATI PERSONALI; ;IMPEGNO DI SPESA PER PIANI PERSONALIZZATI IN SOSTEGNO DELLE PERSONE CON DISABILITA' GRAVE DI CUI ALLA L.162/1998 -DGR 55/12 DEL 31.12.2017.;24/01/2019;1420;2;142;1;Spese correnti;4;Trasferimenti correnti;2;Trasferimenti correnti a Famiglie;2;Interventi assistenziali;999;Altri assegni e sussidi assistenziali;24/01/2019
70;1;0;262,77;262,77;OMESSO NOMINATIVO NEL RISPETTO DELLA NORMATIVA SULLA PROTEZIONE DATI PERSONALI; ;IMPEGNO DI SPESA PER PIANI PERSONALIZZATI IN SOSTEGNO DELLE PERSONE CON DISABILITA' GRAVE DI CUI ALLA L.162/1998 -DGR 55/12 DEL 31.12.2017.;24/01/2019;1420;2;142;1;Spese correnti;4;Trasferimenti correnti;2;Trasferimenti correnti a Famiglie;2;Interventi assistenziali;999;Altri assegni e sussidi assistenziali;24/01/2019
71;1;0;246,46;246,46;OMESSO NOMINATIVO NEL RISPETTO DELLA NORMATIVA SULLA PROTEZIONE DATI PERSONALI; ;IMPEGNO DI SPESA PER PIANI PERSONALIZZATI IN SOSTEGNO DELLE PERSONE CON DISABILITA' GRAVE DI CUI ALLA L.162/1998 -DGR 55/12 DEL 31.12.2017.;24/01/2019;1420;2;142;1;Spese correnti;4;Trasferimenti correnti;2;Trasferimenti correnti a Famiglie;2;Interventi assistenziali;999;Altri assegni e sussidi assistenziali;24/01/2019
72;1;0;819,84;819,84;OMESSO NOMINATIVO NEL RISPETTO DELLA NORMATIVA SULLA PROTEZIONE DATI PERSONALI; ;IMPEGNO DI SPESA PER PIANI PERSONALIZZATI IN SOSTEGNO DELLE PERSONE CON DISABILITA' GRAVE DI CUI ALLA L.162/1998 -DGR 55/12 DEL 31.12.2017.;24/01/2019;1420;2;142;1;Spese correnti;4;Trasferimenti correnti;2;Trasferimenti correnti a Famiglie;2;Interventi assistenziali;999;Altri assegni e sussidi assistenziali;24/01/2019
73;1;0;155,68;155,68;OMESSO NOMINATIVO NEL RISPETTO DELLA NORMATIVA SULLA PROTEZIONE DATI PERSONALI; ;IMPEGNO DI SPESA PER PIANI PERSONALIZZATI IN SOSTEGNO DELLE PERSONE CON DISABILITA' GRAVE DI CUI ALLA L.162/1998 -DGR 55/12 DEL 31.12.2017.;24/01/2019;1420;2;142;1;Spese correnti;4;Trasferimenti correnti;2;Trasferimenti correnti a Famiglie;2;Interventi assistenziali;999;Altri assegni e sussidi assistenziali;24/01/2019
74;1;0;172,47;172,47;OMESSO NOMINATIVO NEL RISPETTO DELLA NORMATIVA SULLA PROTEZIONE DATI PERSONALI; ;IMPEGNO DI SPESA PER PIANI PERSONALIZZATI IN SOSTEGNO DELLE PERSONE CON DISABILITA' GRAVE DI CUI ALLA L.162/1998 -DGR 55/12 DEL 31.12.2017.;24/01/2019;1420;2;142;1;Spese correnti;4;Trasferimenti correnti;2;Trasferimenti correnti a Famiglie;2;Interventi assistenziali;999;Altri assegni e sussidi assistenziali;24/01/2019
75;1;0;119,05;119,05;OMESSO NOMINATIVO NEL RISPETTO DELLA NORMATIVA SULLA PROTEZIONE DATI PERSONALI; ;IMPEGNO DI SPESA PER PIANI PERSONALIZZATI IN SOSTEGNO DELLE PERSONE CON DISABILITA' GRAVE DI CUI ALLA L.162/1998 -DGR 55/12 DEL 31.12.2017.;24/01/2019;1420;2;142;1;Spese correnti;4;Trasferimenti correnti;2;Trasferimenti correnti a Famiglie;2;Interventi assistenziali;999;Altri assegni e sussidi assistenziali;24/01/2019
76;1;0;115,81;115,81;OMESSO NOMINATIVO NEL RISPETTO DELLA NORMATIVA SULLA PROTEZIONE DATI PERSONALI; ;IMPEGNO DI SPESA PER PIANI PERSONALIZZATI IN SOSTEGNO DELLE PERSONE CON DISABILITA' GRAVE DI CUI ALLA L.162/1998 -DGR 55/12 DEL 31.12.2017.;24/01/2019;1420;2;142;1;Spese correnti;4;Trasferimenti correnti;2;Trasferimenti correnti a Famiglie;2;Interventi assistenziali;999;Altri assegni e sussidi assistenziali;24/01/2019
77;1;0;122;122;OMESSO NOMINATIVO NEL RISPETTO DELLA NORMATIVA SULLA PROTEZIONE DATI PERSONALI; ;IMPEGNO DI SPESA PER PIANI PERSONALIZZATI IN SOSTEGNO DELLE PERSONE CON DISABILITA' GRAVE DI CUI ALLA L.162/1998 -DGR 55/12 DEL 31.12.2017.;24/01/2019;1420;2;142;1;Spese correnti;4;Trasferimenti correnti;2;Trasferimenti correnti a Famiglie;2;Interventi assistenziali;999;Altri assegni e sussidi assistenziali;24/01/2019
78;1;0;175,29;175,29;OMESSO NOMINATIVO NEL RISPETTO DELLA NORMATIVA SULLA PROTEZIONE DATI PERSONALI; ;IMPEGNO DI SPESA PER PIANI PERSONALIZZATI IN SOSTEGNO DELLE PERSONE CON DISABILITA' GRAVE DI CUI ALLA L.162/1998 -DGR 55/12 DEL 31.12.2017.;24/01/2019;1420;2;142;1;Spese correnti;4;Trasferimenti correnti;2;Trasferimenti correnti a Famiglie;2;Interventi assistenziali;999;Altri assegni e sussidi assistenziali;24/01/2019
79;1;0;187,5;187,5;OMESSO NOMINATIVO NEL RISPETTO DELLA NORMATIVA SULLA PROTEZIONE DATI PERSONALI; ;IMPEGNO DI SPESA PER PIANI PERSONALIZZATI IN SOSTEGNO DELLE PERSONE CON DISABILITA' GRAVE DI CUI ALLA L.162/1998 -DGR 55/12 DEL 31.12.2017.;24/01/2019;1420;2;142;1;Spese correnti;4;Trasferimenti correnti;2;Trasferimenti correnti a Famiglie;2;Interventi assistenziali;999;Altri assegni e sussidi assistenziali;24/01/2019
80;1;0;161,66;161,66;OMESSO NOMINATIVO NEL RISPETTO DELLA NORMATIVA SULLA PROTEZIONE DATI PERSONALI; ;IMPEGNO DI SPESA PER PIANI PERSONALIZZATI IN SOSTEGNO DELLE PERSONE CON DISABILITA' GRAVE DI CUI ALLA L.162/1998 -DGR 55/12 DEL 31.12.2017.;24/01/2019;1420;2;142;1;Spese correnti;4;Trasferimenti correnti;2;Trasferimenti correnti a Famiglie;2;Interventi assistenziali;999;Altri assegni e sussidi assistenziali;24/01/2019
81;1;0;187,5;187,5;OMESSO NOMINATIVO NEL RISPETTO DELLA NORMATIVA SULLA PROTEZIONE DATI PERSONALI; ;IMPEGNO DI SPESA PER PIANI PERSONALIZZATI IN SOSTEGNO DELLE PERSONE CON DISABILITA' GRAVE DI CUI ALLA L.162/1998 -DGR 55/12 DEL 31.12.2017.;24/01/2019;1420;2;142;1;Spese correnti;4;Trasferimenti correnti;2;Trasferimenti correnti a Famiglie;2;Interventi assistenziali;999;Altri assegni e sussidi assistenziali;24/01/2019
82;1;0;156,25;156,25;OMESSO NOMINATIVO NEL RISPETTO DELLA NORMATIVA SULLA PROTEZIONE DATI PERSONALI; ;IMPEGNO DI SPESA PER PIANI PERSONALIZZATI IN SOSTEGNO DELLE PERSONE CON DISABILITA' GRAVE DI CUI ALLA L.162/1998 -DGR 55/12 DEL 31.12.2017.;24/01/2019;1420;2;142;1;Spese correnti;4;Trasferimenti correnti;2;Trasferimenti correnti a Famiglie;2;Interventi assistenziali;999;Altri assegni e sussidi assistenziali;24/01/2019
83;1;0;200;200;OMESSO NOMINATIVO NEL RISPETTO DELLA NORMATIVA SULLA PROTEZIONE DATI PERSONALI; ;IMPEGNO DI SPESA PER PIANI PERSONALIZZATI IN SOSTEGNO DELLE PERSONE CON DISABILITA' GRAVE DI CUI ALLA L.162/1998 -DGR 55/12 DEL 31.12.2017.;24/01/2019;1420;2;142;1;Spese correnti;4;Trasferimenti correnti;2;Trasferimenti correnti a Famiglie;2;Interventi assistenziali;999;Altri assegni e sussidi assistenziali;24/01/2019
84;1;0;918,96;918,96;OMESSO NOMINATIVO NEL RISPETTO DELLA NORMATIVA SULLA PROTEZIONE DATI PERSONALI; ;IMPEGNO DI SPESA PER PIANI PERSONALIZZATI IN SOSTEGNO DELLE PERSONE CON DISABILITA' GRAVE DI CUI ALLA L.162/1998 -DGR 55/12 DEL 31.12.2017.;24/01/2019;1420;2;142;1;Spese correnti;4;Trasferimenti correnti;2;Trasferimenti correnti a Famiglie;2;Interventi assistenziali;999;Altri assegni e sussidi assistenziali;24/01/2019
85;1;0;307,48;307,48;OMESSO NOMINATIVO NEL RISPETTO DELLA NORMATIVA SULLA PROTEZIONE DATI PERSONALI; ;IMPEGNO DI SPESA PER PIANI PERSONALIZZATI IN SOSTEGNO DELLE PERSONE CON DISABILITA' GRAVE DI CUI ALLA L.162/1998 -DGR 55/12 DEL 31.12.2017.;24/01/2019;1420;2;142;1;Spese correnti;4;Trasferimenti correnti;2;Trasferimenti correnti a Famiglie;2;Interventi assistenziali;999;Altri assegni e sussidi assistenziali;24/01/2019
86;1;0;613,06;613,06;OMESSO NOMINATIVO NEL RISPETTO DELLA NORMATIVA SULLA PROTEZIONE DATI PERSONALI; ;IMPEGNO DI SPESA PER PIANI PERSONALIZZATI IN SOSTEGNO DELLE PERSONE CON DISABILITA' GRAVE DI CUI ALLA L.162/1998 -DGR 55/12 DEL 31.12.2017.;24/01/2019;1420;2;142;1;Spese correnti;4;Trasferimenti correnti;2;Trasferimenti correnti a Famiglie;2;Interventi assistenziali;999;Altri assegni e sussidi assistenziali;24/01/2019
87;1;0;388,82;388,82;OMESSO NOMINATIVO NEL RISPETTO DELLA NORMATIVA SULLA PROTEZIONE DATI PERSONALI; ;IMPEGNO DI SPESA PER PIANI PERSONALIZZATI IN SOSTEGNO DELLE PERSONE CON DISABILITA' GRAVE DI CUI ALLA L.162/1998 -DGR 55/12 DEL 31.12.2017.;24/01/2019;1420;2;142;1;Spese correnti;4;Trasferimenti correnti;2;Trasferimenti correnti a Famiglie;2;Interventi assistenziali;999;Altri assegni e sussidi assistenziali;24/01/2019
88;1;0;91,65;91,65;OMESSO NOMINATIVO NEL RISPETTO DELLA NORMATIVA SULLA PROTEZIONE DATI PERSONALI; ;IMPEGNO DI SPESA PER PIANI PERSONALIZZATI IN SOSTEGNO DELLE PERSONE CON DISABILITA' GRAVE DI CUI ALLA L.162/1998 -DGR 55/12 DEL 31.12.2017.;24/01/2019;1420;2;142;1;Spese correnti;4;Trasferimenti correnti;2;Trasferimenti correnti a Famiglie;2;Interventi assistenziali;999;Altri assegni e sussidi assistenziali;24/01/2019
89;1;0;116,64;116,64;OMESSO NOMINATIVO NEL RISPETTO DELLA NORMATIVA SULLA PROTEZIONE DATI PERSONALI; ;IMPEGNO DI SPESA PER PIANI PERSONALIZZATI IN SOSTEGNO DELLE PERSONE CON DISABILITA' GRAVE DI CUI ALLA L.162/1998 -DGR 55/12 DEL 31.12.2017.;24/01/2019;1420;2;142;1;Spese correnti;4;Trasferimenti correnti;2;Trasferimenti correnti a Famiglie;2;Interventi assistenziali;999;Altri assegni e sussidi assistenziali;24/01/2019
90;1;0;328,55;328,55;OMESSO NOMINATIVO NEL RISPETTO DELLA NORMATIVA SULLA PROTEZIONE DATI PERSONALI; ;IMPEGNO DI SPESA PER PIANI PERSONALIZZATI IN SOSTEGNO DELLE PERSONE CON DISABILITA' GRAVE DI CUI ALLA L.162/1998 -DGR 55/12 DEL 31.12.2017.;24/01/2019;1420;2;142;1;Spese correnti;4;Trasferimenti correnti;2;Trasferimenti correnti a Famiglie;2;Interventi assistenziali;999;Altri assegni e sussidi assistenziali;24/01/2019
91;1;0;377,88;377,88;OMESSO NOMINATIVO NEL RISPETTO DELLA NORMATIVA SULLA PROTEZIONE DATI PERSONALI; ;IMPEGNO DI SPESA PER PIANI PERSONALIZZATI IN SOSTEGNO DELLE PERSONE CON DISABILITA' GRAVE DI CUI ALLA L.162/1998 -DGR 55/12 DEL 31.12.2017.;24/01/2019;1420;2;142;1;Spese correnti;4;Trasferimenti correnti;2;Trasferimenti correnti a Famiglie;2;Interventi assistenziali;999;Altri assegni e sussidi assistenziali;24/01/2019
92;1;0;787,5;787,5;OMESSO NOMINATIVO NEL RISPETTO DELLA NORMATIVA SULLA PROTEZIONE DATI PERSONALI; ;IMPEGNO DI SPESA PER PIANI PERSONALIZZATI IN SOSTEGNO DELLE PERSONE CON DISABILITA' GRAVE DI CUI ALLA L.162/1998 -DGR 55/12 DEL 31.12.2017.;24/01/2019;1420;2;142;1;Spese correnti;4;Trasferimenti correnti;2;Trasferimenti correnti a Famiglie;2;Interventi assistenziali;999;Altri assegni e sussidi assistenziali;24/01/2019
93;1;0;334,97;334,97;OMESSO NOMINATIVO NEL RISPETTO DELLA NORMATIVA SULLA PROTEZIONE DATI PERSONALI; ;IMPEGNO DI SPESA PER PIANI PERSONALIZZATI IN SOSTEGNO DELLE PERSONE CON DISABILITA' GRAVE DI CUI ALLA L.162/1998 -DGR 55/12 DEL 31.12.2017.;24/01/2019;1420;2;142;1;Spese correnti;4;Trasferimenti correnti;2;Trasferimenti correnti a Famiglie;2;Interventi assistenziali;999;Altri assegni e sussidi assistenziali;24/01/2019
94;1;0;118,26;118,26;OMESSO NOMINATIVO NEL RISPETTO DELLA NORMATIVA SULLA PROTEZIONE DATI PERSONALI; ;IMPEGNO DI SPESA PER PIANI PERSONALIZZATI IN SOSTEGNO DELLE PERSONE CON DISABILITA' GRAVE DI CUI ALLA L.162/1998 -DGR 55/12 DEL 31.12.2017.;24/01/2019;1420;2;142;1;Spese correnti;4;Trasferimenti correnti;2;Trasferimenti correnti a Famiglie;2;Interventi assistenziali;999;Altri assegni e sussidi assistenziali;24/01/2019
95;1;0;374,3;374,3;OMESSO NOMINATIVO NEL RISPETTO DELLA NORMATIVA SULLA PROTEZIONE DATI PERSONALI; ;IMPEGNO DI SPESA PER PIANI PERSONALIZZATI IN SOSTEGNO DELLE PERSONE CON DISABILITA' GRAVE DI CUI ALLA L.162/1998 -DGR 55/12 DEL 31.12.2017.;24/01/2019;1420;2;142;1;Spese correnti;4;Trasferimenti correnti;2;Trasferimenti correnti a Famiglie;2;Interventi assistenziali;999;Altri assegni e sussidi assistenziali;24/01/2019
96;1;0;326,13;326,13;OMESSO NOMINATIVO NEL RISPETTO DELLA NORMATIVA SULLA PROTEZIONE DATI PERSONALI; ;IMPEGNO DI SPESA PER PIANI PERSONALIZZATI IN SOSTEGNO DELLE PERSONE CON DISABILITA' GRAVE DI CUI ALLA L.162/1998 -DGR 55/12 DEL 31.12.2017.;24/01/2019;1420;2;142;1;Spese correnti;4;Trasferimenti correnti;2;Trasferimenti correnti a Famiglie;2;Interventi assistenziali;999;Altri assegni e sussidi assistenziali;24/01/2019
97;1;0;582,72;582,72;OMESSO NOMINATIVO NEL RISPETTO DELLA NORMATIVA SULLA PROTEZIONE DATI PERSONALI; ;IMPEGNO DI SPESA PER PIANI PERSONALIZZATI IN SOSTEGNO DELLE PERSONE CON DISABILITA' GRAVE DI CUI ALLA L.162/1998 -DGR 55/12 DEL 31.12.2017.;24/01/2019;1420;2;142;1;Spese correnti;4;Trasferimenti correnti;2;Trasferimenti correnti a Famiglie;2;Interventi assistenziali;999;Altri assegni e sussidi assistenziali;24/01/2019
98;1;0;104,75;104,75;OMESSO NOMINATIVO NEL RISPETTO DELLA NORMATIVA SULLA PROTEZIONE DATI PERSONALI; ;IMPEGNO DI SPESA PER PIANI PERSONALIZZATI IN SOSTEGNO DELLE PERSONE CON DISABILITA' GRAVE DI CUI ALLA L.162/1998 -DGR 55/12 DEL 31.12.2017.;24/01/2019;1420;2;142;1;Spese correnti;4;Trasferimenti correnti;2;Trasferimenti correnti a Famiglie;2;Interventi assistenziali;999;Altri assegni e sussidi assistenziali;24/01/2019
99;1;0;858,23;858,23;OMESSO NOMINATIVO NEL RISPETTO DELLA NORMATIVA SULLA PROTEZIONE DATI PERSONALI; ;IMPEGNO DI SPESA PER PIANI PERSONALIZZATI IN SOSTEGNO DELLE PERSONE CON DISABILITA' GRAVE DI CUI ALLA L.162/1998 -DGR 55/12 DEL 31.12.2017.;24/01/2019;1420;2;142;1;Spese correnti;4;Trasferimenti correnti;2;Trasferimenti correnti a Famiglie;2;Interventi assistenziali;999;Altri assegni e sussidi assistenziali;24/01/2019
101;1;0;215,83;215,83;OMESSO NOMINATIVO NEL RISPETTO DELLA NORMATIVA SULLA PROTEZIONE DATI PERSONALI; ;IMPEGNO DI SPESA PER PIANI PERSONALIZZATI IN SOSTEGNO DELLE PERSONE CON DISABILITA' GRAVE DI CUI ALLA L.162/1998 -DGR 55/12 DEL 31.12.2017.;24/01/2019;1420;2;142;1;Spese correnti;4;Trasferimenti correnti;2;Trasferimenti correnti a Famiglie;2;Interventi assistenziali;999;Altri assegni e sussidi assistenziali;24/01/2019
102;1;0;301,16;301,16;OMESSO NOMINATIVO NEL RISPETTO DELLA NORMATIVA SULLA PROTEZIONE DATI PERSONALI; ;IMPEGNO DI SPESA PER PIANI PERSONALIZZATI IN SOSTEGNO DELLE PERSONE CON DISABILITA' GRAVE DI CUI ALLA L.162/1998 -DGR 55/12 DEL 31.12.2017.;24/01/2019;1420;2;142;1;Spese correnti;4;Trasferimenti correnti;2;Trasferimenti correnti a Famiglie;2;Interventi assistenziali;999;Altri assegni e sussidi assistenziali;24/01/2019
103;1;0;514,8;514,8;OMESSO NOMINATIVO NEL RISPETTO DELLA NORMATIVA SULLA PROTEZIONE DATI PERSONALI; ;IMPEGNO DI SPESA PER PIANI PERSONALIZZATI IN SOSTEGNO DELLE PERSONE CON DISABILITA' GRAVE DI CUI ALLA L.162/1998 -DGR 55/12 DEL 31.12.2017.;24/01/2019;1420;2;142;1;Spese correnti;4;Trasferimenti correnti;2;Trasferimenti correnti a Famiglie;2;Interventi assistenziali;999;Altri assegni e sussidi assistenziali;24/01/2019
104;1;0;385,22;385,22;OMESSO NOMINATIVO NEL RISPETTO DELLA NORMATIVA SULLA PROTEZIONE DATI PERSONALI; ;IMPEGNO DI SPESA PER PIANI PERSONALIZZATI IN SOSTEGNO DELLE PERSONE CON DISABILITA' GRAVE DI CUI ALLA L.162/1998 -DGR 55/12 DEL 31.12.2017.;24/01/2019;1420;2;142;1;Spese correnti;4;Trasferimenti correnti;2;Trasferimenti correnti a Famiglie;2;Interventi assistenziali;999;Altri assegni e sussidi assistenziali;24/01/2019
105;1;0;115,2;115,2;OMESSO NOMINATIVO NEL RISPETTO DELLA NORMATIVA SULLA PROTEZIONE DATI PERSONALI; ;IMPEGNO DI SPESA PER PIANI PERSONALIZZATI IN SOSTEGNO DELLE PERSONE CON DISABILITA' GRAVE DI CUI ALLA L.162/1998 -DGR 55/12 DEL 31.12.2017.;24/01/2019;1420;2;142;1;Spese correnti;4;Trasferimenti correnti;2;Trasferimenti correnti a Famiglie;2;Interventi assistenziali;999;Altri assegni e sussidi assistenziali;24/01/2019
106;1;0;167,11;167,11;OMESSO NOMINATIVO NEL RISPETTO DELLA NORMATIVA SULLA PROTEZIONE DATI PERSONALI; ;IMPEGNO DI SPESA PER PIANI PERSONALIZZATI IN SOSTEGNO DELLE PERSONE CON DISABILITA' GRAVE DI CUI ALLA L.162/1998 -DGR 55/12 DEL 31.12.2017.;24/01/2019;1420;2;142;1;Spese correnti;4;Trasferimenti correnti;2;Trasferimenti correnti a Famiglie;2;Interventi assistenziali;999;Altri assegni e sussidi assistenziali;24/01/2019
107;1;0;204,65;204,65;OMESSO NOMINATIVO NEL RISPETTO DELLA NORMATIVA SULLA PROTEZIONE DATI PERSONALI; ;IMPEGNO DI SPESA PER PIANI PERSONALIZZATI IN SOSTEGNO DELLE PERSONE CON DISABILITA' GRAVE DI CUI ALLA L.162/1998 -DGR 55/12 DEL 31.12.2017.;24/01/2019;1420;2;142;1;Spese correnti;4;Trasferimenti correnti;2;Trasferimenti correnti a Famiglie;2;Interventi assistenziali;999;Altri assegni e sussidi assistenziali;24/01/2019
108;1;0;154,2;154,2;OMESSO NOMINATIVO NEL RISPETTO DELLA NORMATIVA SULLA PROTEZIONE DATI PERSONALI; ;IMPEGNO DI SPESA PER PIANI PERSONALIZZATI IN SOSTEGNO DELLE PERSONE CON DISABILITA' GRAVE DI CUI ALLA L.162/1998 -DGR 55/12 DEL 31.12.2017.;24/01/2019;1420;2;142;1;Spese correnti;4;Trasferimenti correnti;2;Trasferimenti correnti a Famiglie;2;Interventi assistenziali;999;Altri assegni e sussidi assistenziali;24/01/2019
109;1;0;604;604;OMESSO NOMINATIVO NEL RISPETTO DELLA NORMATIVA SULLA PROTEZIONE DATI PERSONALI; ;IMPEGNO DI SPESA PER L.R. 11/185-PROVVIDENZE A FAVORE DI NEFROPATICI-PRESA IN CARICO ANNO 2018.;24/01/2019;1438;0;19;1;Spese correnti;4;Trasferimenti correnti;2;Trasferimenti correnti a Famiglie;2;Interventi assistenziali;999;Altri assegni e sussidi assistenziali;24/01/2019
110;1;0;604;604;OMESSO NOMINATIVO NEL RISPETTO DELLA NORMATIVA SULLA PROTEZIONE DATI PERSONALI; ;IMPEGNO DI SPESA PER L.R. 11/185-PROVVIDENZE A FAVORE DI NEFROPATICI-PRESA IN CARICO ANNO 2018.;24/01/2019;1438;0;19;1;Spese correnti;4;Trasferimenti correnti;2;Trasferimenti correnti a Famiglie;2;Interventi assistenziali;999;Altri assegni e sussidi assistenziali;24/01/2019
111;1;0;179,5;179,5;OMESSO NOMINATIVO NEL RISPETTO DELLA NORMATIVA SULLA PROTEZIONE DATI PERSONALI; ;IMPEGNO DI SPESA E PRESA IN CARICO L.R. N. 9 DEL 03.12.2004-ART. 1.;24/01/2019;1438;0;299;1;Spese correnti;4;Trasferimenti correnti;2;Trasferimenti correnti a Famiglie;2;Interventi assistenziali;999;Altri assegni e sussidi assistenziali;24/01/2019
112;1;0;330,25;330,25;OMESSO NOMINATIVO NEL RISPETTO DELLA NORMATIVA SULLA PROTEZIONE DATI PERSONALI; ;IMPEGNO DI SPESA PER RISORSE INTEGRATIVE LEGGE 9 DICEMBRE 1988 N. 431, ART. 11 ,FONDO  PER IL SOSTEGNO ALL'ACCESSO ALLE ABITAZIONI IN LOCAZIONE.;24/01/2019;1438;0;365;1;Spese correnti;4;Trasferimenti correnti;2;Trasferimenti correnti a Famiglie;2;Interventi assistenziali;999;Altri assegni e sussidi assistenziali;24/01/2019
113;1;0;330,23;330,23;OMESSO NOMINATIVO NEL RISPETTO DELLA NORMATIVA SULLA PROTEZIONE DATI PERSONALI; ;IMPEGNO DI SPESA PER RISORSE INTEGRATIVE LEGGE 9 DICEMBRE 1988 N. 431, ART. 11 ,FONDO  PER IL SOSTEGNO ALL'ACCESSO ALLE ABITAZIONI IN LOCAZIONE.;24/01/2019;1438;0;365;1;Spese correnti;4;Trasferimenti correnti;2;Trasferimenti correnti a Famiglie;2;Interventi assistenziali;999;Altri assegni e sussidi assistenziali;24/01/2019
114;1;0;330,23;330,23;OMESSO NOMINATIVO NEL RISPETTO DELLA NORMATIVA SULLA PROTEZIONE DATI PERSONALI; ;IMPEGNO DI SPESA PER RISORSE INTEGRATIVE LEGGE 9 DICEMBRE 1988 N. 431, ART. 11 ,FONDO  PER IL SOSTEGNO ALL'ACCESSO ALLE ABITAZIONI IN LOCAZIONE.;24/01/2019;1438;0;365;1;Spese correnti;4;Trasferimenti correnti;2;Trasferimenti correnti a Famiglie;2;Interventi assistenziali;999;Altri assegni e sussidi assistenziali;24/01/2019
115;1;0;330,23;330,23;OMESSO NOMINATIVO NEL RISPETTO DELLA NORMATIVA SULLA PROTEZIONE DATI PERSONALI; ;IMPEGNO DI SPESA PER RISORSE INTEGRATIVE LEGGE 9 DICEMBRE 1988 N. 431, ART. 11 ,FONDO  PER IL SOSTEGNO ALL'ACCESSO ALLE ABITAZIONI IN LOCAZIONE.;24/01/2019;1438;0;365;1;Spese correnti;4;Trasferimenti correnti;2;Trasferimenti correnti a Famiglie;2;Interventi assistenziali;999;Altri assegni e sussidi assistenziali;24/01/2019
116;1;0;330,23;330,23;OMESSO NOMINATIVO NEL RISPETTO DELLA NORMATIVA SULLA PROTEZIONE DATI PERSONALI; ;IMPEGNO DI SPESA PER RISORSE INTEGRATIVE LEGGE 9 DICEMBRE 1988 N. 431, ART. 11 ,FONDO  PER IL SOSTEGNO ALL'ACCESSO ALLE ABITAZIONI IN LOCAZIONE.;24/01/2019;1438;0;365;1;Spese correnti;4;Trasferimenti correnti;2;Trasferimenti correnti a Famiglie;2;Interventi assistenziali;999;Altri assegni e sussidi assistenziali;24/01/2019
117;1;0;330,23;330,23;OMESSO NOMINATIVO NEL RISPETTO DELLA NORMATIVA SULLA PROTEZIONE DATI PERSONALI; ;IMPEGNO DI SPESA PER RISORSE INTEGRATIVE LEGGE 9 DICEMBRE 1988 N. 431, ART. 11 ,FONDO  PER IL SOSTEGNO ALL'ACCESSO ALLE ABITAZIONI IN LOCAZIONE.;24/01/2019;1438;0;365;1;Spese correnti;4;Trasferimenti correnti;2;Trasferimenti correnti a Famiglie;2;Interventi assistenziali;999;Altri assegni e sussidi assistenziali;24/01/2019
119;1;0;319,08;319,08;FOIS CATERINA; ;IMPEGNO DI SPESA PER PIANI PERSONALIZZATI IN SOSTEGNO DELLE PERSONE CON DISABILITA' GRAVE DI CUI ALLA L.162/1998 -DGR 55/12 DEL 31.12.2017.;24/01/2019;1420;0;141;1;Spese correnti;3;Acquisto di beni e servizi;2;Acquisto di servizi;15;Contratti di servizio pubblico;9;Contratti di servizio di assistenza sociale domiciliare;24/01/2019
120;1;0;738,45;738,45;PINTADU DONATELLA; ;IMPEGNO DI SPESA PER PIANI PERSONALIZZATI IN SOSTEGNO DELLE PERSONE CON DISABILITA' GRAVE DI CUI ALLA L.162/1998 -DGR 55/12 DEL 31.12.2017.;24/01/2019;1420;0;141;1;Spese correnti;3;Acquisto di beni e servizi;2;Acquisto di servizi;15;Contratti di servizio pubblico;9;Contratti di servizio di assistenza sociale domiciliare;24/01/2019
121;1;0;219,96;219,96;MASIA NADOLIA; ;IMPEGNO DI SPESA PER PIANI PERSONALIZZATI IN SOSTEGNO DELLE PERSONE CON DISABILITA' GRAVE DI CUI ALLA L.162/1998 -DGR 55/12 DEL 31.12.2017.;24/01/2019;1420;0;141;1;Spese correnti;3;Acquisto di beni e servizi;2;Acquisto di servizi;15;Contratti di servizio pubblico;9;Contratti di servizio di assistenza sociale domiciliare;24/01/2019
122;1;0;2.171,16;2.171,16;OMESSO NOMINATIVO NEL RISPETTO DELLA NORMATIVA SULLA PROTEZIONE DATI PERSONALI; ;IMPEGNO DI SPESA PER PIANI PERSONALIZZATI IN SOSTEGNO DELLE PERSONE CON DISABILITA' GRAVE DI CUI ALLA L.162/1998 -DGR 55/12 DEL 31.12.2017.;24/01/2019;1420;0;390;1;Spese correnti;3;Acquisto di beni e servizi;2;Acquisto di servizi;15;Contratti di servizio pubblico;9;Contratti di servizio di assistenza sociale domiciliare;24/01/2019
123;1;0;290,39;290,39;OMESSO NOMINATIVO NEL RISPETTO DELLA NORMATIVA SULLA PROTEZIONE DATI PERSONALI; ;IMPEGNO DI SPESA PER PIANI PERSONALIZZATI IN SOSTEGNO DELLE PERSONE CON DISABILITA' GRAVE DI CUI ALLA L.162/1998 -DGR 55/12 DEL 31.12.2017.;24/01/2019;1420;0;390;1;Spese correnti;3;Acquisto di beni e servizi;2;Acquisto di servizi;15;Contratti di servizio pubblico;9;Contratti di servizio di assistenza sociale domiciliare;24/01/2019
124;1;0;236,79;236,79;OMESSO NOMINATIVO NEL RISPETTO DELLA NORMATIVA SULLA PROTEZIONE DATI PERSONALI; ;IMPEGNO DI SPESA PER PIANI PERSONALIZZATI IN SOSTEGNO DELLE PERSONE CON DISABILITA' GRAVE DI CUI ALLA L.162/1998 -DGR 55/12 DEL 31.12.2017.;24/01/2019;1420;0;390;1;Spese correnti;3;Acquisto di beni e servizi;2;Acquisto di servizi;15;Contratti di servizio pubblico;9;Contratti di servizio di assistenza sociale domiciliare;24/01/2019
125;1;0;46,5;46,5;OMESSO NOMINATIVO NEL RISPETTO DELLA NORMATIVA SULLA PROTEZIONE DATI PERSONALI; ;CONTRIBUTI LEGGI DI SETTORE;24/01/2019;1438;0;354;1;Spese correnti;4;Trasferimenti correnti;2;Trasferimenti correnti a Famiglie;2;Interventi assistenziali;999;Altri assegni e sussidi assistenziali;24/01/2019
126;1;0;358,55;358,55;L'ARCOBALENO di Muggianu Rosanna;Z7D23AECDF;Fatt.n. 635B del 24/12/2018;24/01/2019;714;0;134;1;Spese correnti;3;Acquisto di beni e servizi;1;Acquisto di beni;1;Giornali, riviste e pubblicazioni;2;Pubblicazioni;24/01/2019
127;1;0;18,95;1.119,93;IRIDEOS SPA;ZEE229F76B;Fatt.n. 0012001110 del 31/12/2018;24/01/2019;118;3;323;1;Spese correnti;3;Acquisto di beni e servizi;2;Acquisto di servizi;5;Utenze e canoni;1;Telefonia fissa;24/01/2019
127;2;0;1.100,98;1.119,93;IRIDEOS SPA;ZEE229F76B;Fatt.n. 0012001111 del 31/12/2018;24/01/2019;118;3;323;1;Spese correnti;3;Acquisto di beni e servizi;2;Acquisto di servizi;5;Utenze e canoni;1;Telefonia fissa;24/01/2019
128;1;0;4.582,82;4.582,82;CONSORZIO NETWORK ETICO;687819848C;Fatt.n. 2/85 del 16/01/2019 SERV.SAD;24/01/2019;1412;0;14;1;Spese correnti;3;Acquisto di beni e servizi;2;Acquisto di servizi;15;Contratti di servizio pubblico;9;Contratti di servizio di assistenza sociale domiciliare;24/01/2019
129;1;0;7.706,09;7.706,09;COOP. NUOVE IDEE; ;Fatt.n. 8E/V2 del 15/01/2019 Fattura clienti Split Payment ex art. 17-ter DPR 633/72;24/01/2019;1420;0;141;1;Spese correnti;3;Acquisto di beni e servizi;2;Acquisto di servizi;15;Contratti di servizio pubblico;9;Contratti di servizio di assistenza sociale domiciliare;24/01/2019
130;1;0;2.189,96;2.189,96;COOP. NUOVE IDEE;Z782197FF4;Fatt.n. 9/V2 del 15/01/2019 Fattura clienti Split Payment ex art. 17-ter DPR 633/72;24/01/2019;1413;0;32;1;Spese correnti;3;Acquisto di beni e servizi;2;Acquisto di servizi;99;Altri servizi;999;Altri servizi diversi n.a.c.;24/01/2019
132;1;0;2.492,93;2.492,93;CONSORZIO NETWORK ETICO;7391758FA7;Fatt.n. 2/86 del 16/01/2019;24/01/2019;1416;0;88;1;Spese correnti;3;Acquisto di beni e servizi;2;Acquisto di servizi;11;Prestazioni professionali e specialistiche;999;Altre prestazioni professionali e specialistiche n.a.c.;24/01/2019
133;1;0;152,5;152,5;Kronoweb di Sanna Salvatore;Z501DD7B08;SALDO Fatt.n. 0003/E  del 23/01/2019 FATTURA P.A. SPLIT;24/01/2019;82;0;58;1;Spese correnti;3;Acquisto di beni e servizi;1;Acquisto di beni;2;Altri beni di consumo;1;Carta, cancelleria e stampati;24/01/2019
135;1;0;150;150;MARCHI ALESSANDRA; ;Rassegna Natale a Tula 2018. CONVEGNO A.GRAMSCI;24/01/2019;746;0;334;1;Spese correnti;3;Acquisto di beni e servizi;2;Acquisto di servizi;2;Organizzazione eventi, pubblicita` e servizi per trasferta;5;Organizzazione e partecipazione a manifestazioni e convegni;24/01/2019
137;1;0;440;440;MALDIMAREM soc.Coop.;ZC926156DE;Fatt.n. 1 del 17/01/2019;25/01/2019;746;0;334;1;Spese correnti;3;Acquisto di beni e servizi;2;Acquisto di servizi;2;Organizzazione eventi, pubblicita` e servizi per trasferta;5;Organizzazione e partecipazione a manifestazioni e convegni;25/01/2019
138;1;0;1.364,00;1.364,00;COOP. NUOVE IDEE;Z52230BA0F;Fatt.n. 7E/V2 del 15/01/2019 Fattura clienti Split Payment ex art. 17-ter DPR 633/72;25/01/2019;715;0;87;1;Spese correnti;3;Acquisto di beni e servizi;2;Acquisto di servizi;11;Prestazioni professionali e specialistiche;999;Altre prestazioni professionali e specialistiche n.a.c.;25/01/2019
139;1;0;300;300;LEONI DONATELLA; ;Rassegna Natale a Tula 2018. Impegno di spesa;25/01/2019;746;0;334;1;Spese correnti;3;Acquisto di beni e servizi;2;Acquisto di servizi;2;Organizzazione eventi, pubblicita` e servizi per trasferta;5;Organizzazione e partecipazione a manifestazioni e convegni;25/01/2019
140;1;0;400;400;ZORODDU PAOLA; ;Rassegna Natale a Tula 2018. Impegno di spesa;25/01/2019;746;0;334;1;Spese correnti;3;Acquisto di beni e servizi;2;Acquisto di servizi;2;Organizzazione eventi, pubblicita` e servizi per trasferta;5;Organizzazione e partecipazione a manifestazioni e convegni;25/01/2019
141;1;0;125,09;125,09;POSTE ITALIANE Spa;Z8223E60A4;Fatt.n. 8719006616 del 21/01/2019 Fattura Elettronica relativa all'Identificativo Rendiconto 2100255391;25/01/2019;118;2;144;1;Spese correnti;3;Acquisto di beni e servizi;2;Acquisto di servizi;16;Servizi amministrativi;2;Spese postali;25/01/2019
142;1;0;1.000,00;1.000,00;elettrolux srl;ZBF25C3644;Fatt.n. FATTPA 8_19 del 16/01/2019 NOLEGGIO DI LUMINARIE NATALIZIE    CIG ZBF25C3644;28/01/2019;82;1;301;1;Spese correnti;3;Acquisto di beni e servizi;2;Acquisto di servizi;9;Manutenzione ordinaria e riparazioni;11;Manutenzione ordinaria e riparazioni di altri beni materiali;28/01/2019
143;1;0;762,2;762,2;elettrolux srl;ZBF25C3644;Fatt.n. FATTPA 8_19 del 16/01/2019 NOLEGGIO DI LUMINARIE NATALIZIE    CIG ZBF25C3644;28/01/2019;746;0;302;1;Spese correnti;3;Acquisto di beni e servizi;2;Acquisto di servizi;2;Organizzazione eventi, pubblicita` e servizi per trasferta;5;Organizzazione e partecipazione a manifestazioni e convegni;28/01/2019
144;1;0;2.627,80;2.627,80;elettrolux srl;ZBF25C3644;Fatt.n. FATTPA 8_19 del 16/01/2019 NOLEGGIO DI LUMINARIE NATALIZIE    CIG ZBF25C3644;28/01/2019;840;0;303;1;Spese correnti;4;Trasferimenti correnti;4;Trasferimenti correnti a Istituzioni Sociali Private;1;Trasferimenti correnti a Istituzioni Sociali Private;1;Trasferimenti correnti a Istituzioni Sociali Private;28/01/2019
145;1;0;520;520;MURA ENRICO;Z142197A92;Fatt.n. FATTPA 1_19 del 14/01/2019 Prestazione svolta in regime fiscale di vantaggio ex articolo 1, commi 54-89, Legge 190/2014 e s.m.i. e, pertanto, non soggetta a IVA nÃ© a ritenuta;28/01/2019;254;0;5;1;Spese correnti;3;Acquisto di beni e servizi;2;Acquisto di servizi;11;Prestazioni professionali e specialistiche;999;Altre prestazioni professionali e specialistiche n.a.c.;28/01/2019
146;1;0;2.928,00;2.928,00;BECCA GIOVANNI;ZDC253ACC6;Fatt.n. FATTPA 3_19 del 24/01/2019 DETERMINA N. 181 DEL 09/10/2018        CIG ZDC253ACC6;28/01/2019;3121;0;266;2;Spese in conto capitale;2;Investimenti fissi lordi e acquisto di terreni;1;Beni materiali;9;Beni immobili;12;Infrastrutture stradali;28/01/2019
147;1;0;250;250;"EDILCAMPUS S.N.C. DI CAMPUS MASSIMILIANO &amp; CAMPUS";Z0025041BA;Fatt.n. 15/PA del 29/12/2018;28/01/2019;255;0;248;1;Spese correnti;3;Acquisto di beni e servizi;2;Acquisto di servizi;9;Manutenzione ordinaria e riparazioni;8;Manutenzione ordinaria e riparazioni di beni immobili;28/01/2019
148;1;0;8.556,40;8.556,40;SOTGIU GIUSEPPE;Z18253A702;Fatt.n. 1/PA del 21/01/2019 SALDO 80%:Fornitura e posa in opera di nr. 30 lampade a led city design in Via Rino Canalis e Corso Repubblica a Tula .-IMPEGNO DI SPESA DITTA SOTGIU GIUSEPPE_ CIG Z18253A702, DET 180 DEL 08-10-2018;28/01/2019;1012;0;269;1;Spese correnti;3;Acquisto di beni e servizi;2;Acquisto di servizi;9;Manutenzione ordinaria e riparazioni;4;Manutenzione ordinaria e riparazioni di impianti e macchinari;28/01/2019
149;1;0;2.570,00;2.570,00;SOTGIU GIUSEPPE;Z18253A702;Fatt.n. 1/PA del 21/01/2019 SALDO 80%:Fornitura e posa in opera di nr. 30 lampade a led city design in Via Rino Canalis e Corso Repubblica a Tula .-IMPEGNO DI SPESA DITTA SOTGIU GIUSEPPE_ CIG Z18253A702, DET 180 DEL 08-10-2018;28/01/2019;3121;0;270;2;Spese in conto capitale;2;Investimenti fissi lordi e acquisto di terreni;1;Beni materiali;9;Beni immobili;12;Infrastrutture stradali;28/01/2019
150;1;0;2.684,00;2.684,00;CONSORZIO SOL.CO.;Z30257E5F4;Fatt.n. FATTPA 5_19 del 22/01/2019;28/01/2019;122;0;383;1;Spese correnti;3;Acquisto di beni e servizi;2;Acquisto di servizi;99;Altri servizi;999;Altri servizi diversi n.a.c.;28/01/2019
151;1;0;1.650,00;1.650,00;MESU E RIOS;ZC326C8824;Fatt.n. 2/PA del 21/01/2019 DEST.MERCE COMUNE DI TULA - CASA COMUNALE - CORSO REPUBBLICA - TULA (SS) DAS N. 220893 DEL 21/01/2019 .;28/01/2019;82;4;3;1;Spese correnti;3;Acquisto di beni e servizi;1;Acquisto di beni;2;Altri beni di consumo;2;Carburanti, combustibili e lubrificanti;28/01/2019
152;1;0;770;770;MESU E RIOS;ZC326C8824;Fatt.n. 6/PA del 21/01/2019 DEST.MERCE COMUNE DI TULA - SCUOLA MATERNA - VIA P.NENNI - TULA (SS) DAS N. 220889 DEL 21/01/2019 .;28/01/2019;564;4;4;1;Spese correnti;3;Acquisto di beni e servizi;1;Acquisto di beni;2;Altri beni di consumo;2;Carburanti, combustibili e lubrificanti;28/01/2019
153;1;0;2.200,00;2.200,00;MESU E RIOS;ZC326C8824;Fatt.n. 5/PA del 21/01/2019 DEST.MERCE COMUNE DI TULA - SCUOLA ELEMENTARE - VIA R. CANALIS - TULA (SS) DAS N. 220890 DEL 21/01/2019 .;28/01/2019;582;4;5;1;Spese correnti;3;Acquisto di beni e servizi;1;Acquisto di beni;2;Altri beni di consumo;2;Carburanti, combustibili e lubrificanti;28/01/2019
154;1;0;2.200,00;2.200,00;MESU E RIOS;ZC326C8824;Fatt.n. 4/PA del 21/01/2019 DEST.MERCE COMUNE DI TULA - SCUOLA MEDIA - VIA R. CANALIS - TULA (SS) DAS N. 220891 DEL 21/01/2019 .;28/01/2019;616;4;6;1;Spese correnti;3;Acquisto di beni e servizi;1;Acquisto di beni;2;Altri beni di consumo;2;Carburanti, combustibili e lubrificanti;28/01/2019
155;1;0;330;330;MESU E RIOS;ZC326C8824;Fatt.n. 3/PA del 21/01/2019 DEST.MERCE COMUNE DI TULA - CENTRO DIURNO BIBLIOTECA - CORSO REPUBBLICA - TULA (SS) DAS N. 220892 DEL 21/01/2019 .;28/01/2019;714;4;7;1;Spese correnti;3;Acquisto di beni e servizi;1;Acquisto di beni;2;Altri beni di consumo;2;Carburanti, combustibili e lubrificanti;28/01/2019
156;1;0;1.494,03;1.494,03;OMESSO NOMINATIVO NEL RISPETTO DELLA NORMATIVA SULLA PROTEZIONE DATI PERSONALI;7394433F22;Fatt.n. X-42 del 03/01/2019;28/01/2019;1412;1;85;1;Spese correnti;3;Acquisto di beni e servizi;2;Acquisto di servizi;15;Contratti di servizio pubblico;8;Contratti di servizio di assistenza sociale residenziale e semiresidenziale;28/01/2019
157;1;0;169,23;169,23;SERVIZIO ELETTRICO NAZIONALE - SERVIZIO DI MAGGIOR TUTE;Z2F225B795;Fatt.n. 907157770720016 del 11/01/2019;29/01/2019;118;4;25;1;Spese correnti;3;Acquisto di beni e servizi;2;Acquisto di servizi;5;Utenze e canoni;4;Energia elettrica;29/01/2019
158;1;0;74,57;74,57;SERVIZIO ELETTRICO NAZIONALE - SERVIZIO DI MAGGIOR TUTE;Z2F225B795;Fatt.n. 907154150716016 del 11/01/2019;29/01/2019;118;4;25;1;Spese correnti;3;Acquisto di beni e servizi;2;Acquisto di servizi;5;Utenze e canoni;4;Energia elettrica;29/01/2019
159;1;0;49,12;49,12;SERVIZIO ELETTRICO NAZIONALE - SERVIZIO DI MAGGIOR TUTE;ZAF225B6C9;Fatt.n. 907152430000416 del 11/01/2019;29/01/2019;1012;4;24;1;Spese correnti;3;Acquisto di beni e servizi;2;Acquisto di servizi;5;Utenze e canoni;4;Energia elettrica;29/01/2019
160;1;0;98,23;98,23;SERVIZIO ELETTRICO NAZIONALE - SERVIZIO DI MAGGIOR TUTE;ZAF225B6C9;Fatt.n. 907152430000316 del 11/01/2019;29/01/2019;1012;4;24;1;Spese correnti;3;Acquisto di beni e servizi;2;Acquisto di servizi;5;Utenze e canoni;4;Energia elettrica;29/01/2019
161;1;0;1.708,65;1.708,65;AMMINISTRAZIONE PROV.LE SASSARI; ;D.L. 504/1992. TRIBUTO TEFA ANNO 2018 - riscossioni fino al 31.12.2018 secondo acconto. DET. N. 3;31/01/2019;203;0;194;1;Spese correnti;4;Trasferimenti correnti;1;Trasferimenti correnti a Amministrazioni Pubbliche;2;Trasferimenti correnti a Amministrazioni Locali;2;Trasferimenti correnti a Province;31/01/2019
162;1;0;600;600;SECHI ANNA RESP. SERV. FINANZ.TRIBUTI ECONOMATO; ;LAVORI DI COMPLETAMENTO ECOCENTRO COMUNALE II LOTTO. SPESE FISCALI DI REGISTRO, IPOT. E CATASTALE. ESPROPRIO AREA. DET. N. 207/2018. RIMBORSO ALL'ECONOMO.;31/01/2019;3368;1;246;2;Spese in conto capitale;2;Investimenti fissi lordi e acquisto di terreni;1;Beni materiali;9;Beni immobili;999;Beni immobili n.a.c.;31/01/2019
163;1;0;500;500;SECHI ANNA RESP. SERV. FINANZ.TRIBUTI ECONOMATO; ;LAVORI DI COMPLETAMENTO ECOCENTRO COMUNALE II LOTTO. SPESE FISCALI DI REGISTRO, IPOT. E CATASTALE. ESPROPRIO AREA. DET. N. 207/2018. RIMBORSO ALL'ECONOMO.;31/01/2019;3368;1;246;2;Spese in conto capitale;2;Investimenti fissi lordi e acquisto di terreni;1;Beni materiali;9;Beni immobili;999;Beni immobili n.a.c.;31/01/2019
165;1;0;186,89;186,89;OMESSO NOMINATIVO NEL RISPETTO DELLA NORMATIVA SULLA PROTEZIONE DATI PERSONALI; ;IMPEGNO DI SPESA PER PIANI PERSONALIZZATI IN SOSTEGNO DELLE PERSONE CON DISABILITA' GRAVE DI CUI ALLA L.162/1998 -DGR 55/12 DEL 31.12.2017.;31/01/2019;1420;0;390;1;Spese correnti;3;Acquisto di beni e servizi;2;Acquisto di servizi;15;Contratti di servizio pubblico;9;Contratti di servizio di assistenza sociale domiciliare;31/01/2019
166;1;0;756,4;756,4;Soluzione S.R.L.;ZF625EA10F;Fatt.n. 0002103204 del 17/12/2018 FATT. IVA SPLIT P.;01/02/2019;82;0;320;1;Spese correnti;3;Acquisto di beni e servizi;1;Acquisto di beni;2;Altri beni di consumo;7;Altri materiali tecnico-specialistici non sanitari;01/02/2019
167;1;0;247,72;247,72;ENEL ENERGIA;ZE4229C6A4;Fatt.n. 003001278891 del 11/01/2019;01/02/2019;824;0;39;1;Spese correnti;3;Acquisto di beni e servizi;2;Acquisto di servizi;5;Utenze e canoni;4;Energia elettrica;01/02/2019
168;1;0;1.204,32;1.204,32;ENEL ENERGIA;ZB5225B867;Fatt.n. 003001278886 del 11/01/2019;01/02/2019;1012;4;26;1;Spese correnti;3;Acquisto di beni e servizi;2;Acquisto di servizi;5;Utenze e canoni;4;Energia elettrica;01/02/2019
169;1;0;175,3;175,3;ENEL ENERGIA;ZB5225B867;Fatt.n. 003001278887 del 11/01/2019;01/02/2019;1012;4;26;1;Spese correnti;3;Acquisto di beni e servizi;2;Acquisto di servizi;5;Utenze e canoni;4;Energia elettrica;01/02/2019
170;1;0;237,91;237,91;ENEL ENERGIA;ZB5225B867;Fatt.n. 003001278889 del 11/01/2019;01/02/2019;1012;4;26;1;Spese correnti;3;Acquisto di beni e servizi;2;Acquisto di servizi;5;Utenze e canoni;4;Energia elettrica;01/02/2019
171;1;0;30,27;30,27;ENEL ENERGIA;ZB5225B867;Fatt.n. 003001848870 del 11/01/2019;01/02/2019;1012;4;26;1;Spese correnti;3;Acquisto di beni e servizi;2;Acquisto di servizi;5;Utenze e canoni;4;Energia elettrica;01/02/2019
172;1;0;2.124,94;2.124,94;ENEL ENERGIA;Z83225B9A2;Fatt.n. 003001278888 del 11/01/2019;01/02/2019;1488;3;28;1;Spese correnti;3;Acquisto di beni e servizi;2;Acquisto di servizi;5;Utenze e canoni;4;Energia elettrica;01/02/2019
173;1;0;846,05;846,05;ENEL ENERGIA;ZB5225B867;Fatt.n. 003001278888 del 11/01/2019;01/02/2019;1012;4;26;1;Spese correnti;3;Acquisto di beni e servizi;2;Acquisto di servizi;5;Utenze e canoni;4;Energia elettrica;01/02/2019
174;1;0;61,93;61,93;ENEL ENERGIA;Z6C22BB7C0;Fatt.n. 003001689816 del 11/01/2019;01/02/2019;1013;0;61;1;Spese correnti;3;Acquisto di beni e servizi;2;Acquisto di servizi;5;Utenze e canoni;4;Energia elettrica;01/02/2019
175;1;0;93,54;93,54;ENEL ENERGIA;Z83225B9A2;Fatt.n. 003001278890 del 11/01/2019;01/02/2019;1300;0;58;1;Spese correnti;3;Acquisto di beni e servizi;1;Acquisto di beni;2;Altri beni di consumo;999;Altri beni e materiali di consumo n.a.c.;01/02/2019
176;1;0;186,51;186,51;ENEL ENERGIA;Z83225B9A2;Fatt.n. 003001278892 del 11/01/2019;01/02/2019;1488;3;28;1;Spese correnti;3;Acquisto di beni e servizi;2;Acquisto di servizi;5;Utenze e canoni;4;Energia elettrica;01/02/2019
180;1;0;128,5;128,5;OMESSO NOMINATIVO NEL RISPETTO DELLA NORMATIVA SULLA PROTEZIONE DATI PERSONALI; ;IMPEGNO DI SPESA PER PIANI PERSONALIZZATI IN SOSTEGNO DELLE PERSONE CON DISABILITA' GRAVE DI CUI ALLA L.162/1998 -DGR 55/12 DEL 31.12.2017.;04/02/2019;1420;0;390;1;Spese correnti;3;Acquisto di beni e servizi;2;Acquisto di servizi;15;Contratti di servizio pubblico;9;Contratti di servizio di assistenza sociale domiciliare;04/02/2019
181;1;0;225;225;OMESSO NOMINATIVO NEL RISPETTO DELLA NORMATIVA SULLA PROTEZIONE DATI PERSONALI; ;CONTRIBUTO REGIONE LEGGI DI SETTORE;04/02/2019;1438;0;290;1;Spese correnti;4;Trasferimenti correnti;2;Trasferimenti correnti a Famiglie;2;Interventi assistenziali;999;Altri assegni e sussidi assistenziali;04/02/2019
182;1;0;100,45;100,45;POSTE ITALIANE Spa;Z8223E60A4;Fatt.n. 8719029588 del 04/02/2019 Fattura Elettronica relativa all'Identificativo Rendiconto 2100771774;05/02/2019;118;2;144;1;Spese correnti;3;Acquisto di beni e servizi;2;Acquisto di servizi;16;Servizi amministrativi;2;Spese postali;05/02/2019
183;1;0;99,94;99,94;SERVIZIO ELETTRICO NAZIONALE - SERVIZIO DI MAGGIOR TUTE;Z2F225B795;Fatt.n. 907152430000216 del 11/01/2019;06/02/2019;118;4;25;1;Spese correnti;3;Acquisto di beni e servizi;2;Acquisto di servizi;5;Utenze e canoni;4;Energia elettrica;06/02/2019
184;1;0;15.203,57;15.203,57;COMUNE DI NUGHEDU SAN NICOLO'; ;QUOTA CONVENZIONE TESORERIA IV TRIMESTRE 2018. DET. N. 50;06/02/2019;137;0;376;1;Spese correnti;4;Trasferimenti correnti;1;Trasferimenti correnti a Amministrazioni Pubbliche;2;Trasferimenti correnti a Amministrazioni Locali;3;Trasferimenti correnti a Comuni;06/02/2019
185;1;0;184,69;184,69;TESORERIA DI ROMA SUCCURSALE 348; ;VERSAMENTO DIRITTI RILASCIO CIE I QUINDICINA DICEMBRE 2018. DET. N. 19;06/02/2019;290;0;385;1;Spese correnti;4;Trasferimenti correnti;1;Trasferimenti correnti a Amministrazioni Pubbliche;1;Trasferimenti correnti a Amministrazioni Centrali;1;Trasferimenti correnti a Ministeri;06/02/2019
186;1;0;33,58;33,58;TESORERIA DI ROMA SUCCURSALE 348; ;VERSAMENTO DIRITTI  RILASCIO CIE  II QUINDICINA DICEMBRE 2018. DET. N.19;06/02/2019;290;0;385;1;Spese correnti;4;Trasferimenti correnti;1;Trasferimenti correnti a Amministrazioni Pubbliche;1;Trasferimenti correnti a Amministrazioni Centrali;1;Trasferimenti correnti a Ministeri;06/02/2019
187;1;0;2.023,19;2.023,19;COOP. SPES a r.l.;Z422136A24;Fatt.n. 2 PA del 31/01/2019 Fattura Cliente;06/02/2019;118;5;8;1;Spese correnti;3;Acquisto di beni e servizi;2;Acquisto di servizi;13;Servizi ausiliari per il funzionamento dell'ente;2;Servizi di pulizia e lavanderia;06/02/2019
188;1;0;65;65;FIORI MARIO;Z2F26B75EB;Fatt.n. FATTPA 1_19 del 01/02/2019;13/02/2019;1300;8;2;1;Spese correnti;3;Acquisto di beni e servizi;1;Acquisto di beni;2;Altri beni di consumo;2;Carburanti, combustibili e lubrificanti;13/02/2019
189;1;0;200;200;MORITTU SALVATORE PRO. FORM. SARDEGNA APS; ;Organizzazione corso per l'uso del defibrillatore. LIQ. N. 11;13/02/2019;840;1;351;1;Spese correnti;3;Acquisto di beni e servizi;2;Acquisto di servizi;4;Acquisto di servizi per formazione e addestramento del personale dell'ente;999;Acquisto di servizi per altre spese per formazione e addestramento n.a.c.;13/02/2019
190;1;0;5.372,95;5.372,95;MURGIA GIOVANNI MARIA;Z1724E1523;Fatt.n. 1/E / PA del 06/02/2019;13/02/2019;654;0;10;1;Spese correnti;3;Acquisto di beni e servizi;2;Acquisto di servizi;15;Contratti di servizio pubblico;6;Contratti di servizio per le mense scolastiche;13/02/2019
191;1;0;3.552,75;3.552,75;MURGIA GIOVANNI MARIA;Z1724E1523;Fatt.n. 1/E / PA del 06/02/2019;13/02/2019;654;0;235;1;Spese correnti;3;Acquisto di beni e servizi;2;Acquisto di servizi;15;Contratti di servizio pubblico;6;Contratti di servizio per le mense scolastiche;13/02/2019
192;1;0;700;700;LEONI S.R.L.;ZF125F4955;Fatt.n. 45 del 17/01/2019 PRESTAZIONE CON AUTOSPURGO PER ASPIRAZIONE E TRASPORTO RIFIUTO COD CER 160709 AIMPIANTOE'AMBIENTE;13/02/2019;255;0;11;1;Spese correnti;3;Acquisto di beni e servizi;2;Acquisto di servizi;9;Manutenzione ordinaria e riparazioni;8;Manutenzione ordinaria e riparazioni di beni immobili;13/02/2019
193;1;0;300;300;LEONI S.R.L.;ZF125F4955;Fatt.n. 45 del 17/01/2019 PRESTAZIONE CON AUTOSPURGO PER ASPIRAZIONE E TRASPORTO RIFIUTO COD CER 160709 AIMPIANTOE'AMBIENTE;13/02/2019;255;0;326;1;Spese correnti;3;Acquisto di beni e servizi;2;Acquisto di servizi;9;Manutenzione ordinaria e riparazioni;8;Manutenzione ordinaria e riparazioni di beni immobili;13/02/2019
194;1;0;1.342,00;1.342,00;CERTIQUALITY S.R.L. - ISTITUTO DI CERTIFICAZIONE DELLA;ZCD2674E89;Fatt.n. 65018/2019 del 24/01/2019;13/02/2019;1270;0;356;1;Spese correnti;4;Trasferimenti correnti;3;Trasferimenti correnti a Imprese;99;Trasferimenti correnti a altre imprese;999;Trasferimenti correnti a altre imprese;13/02/2019
195;1;0;3.548,03;3.548,03;PUDDU PALMIRO;Z1B261BC05;Fatt.n. 1 del 01/02/2019;13/02/2019;1302;0;14;1;Spese correnti;3;Acquisto di beni e servizi;2;Acquisto di servizi;13;Servizi ausiliari per il funzionamento dell'ente;999;Altri servizi ausiliari n.a.c.;13/02/2019
196;1;0;616,28;616,28;SERVIZIO ELETTRICO NAZIONALE - SERVIZIO DI MAGGIOR TUTE;ZA5229C654;Fatt.n. 907151201731811 del 10/02/2019;14/02/2019;716;4;38;1;Spese correnti;3;Acquisto di beni e servizi;2;Acquisto di servizi;5;Utenze e canoni;4;Energia elettrica;14/02/2019
197;1;0;248,89;248,89;SERVIZIO ELETTRICO NAZIONALE - SERVIZIO DI MAGGIOR TUTE;ZA5229C654;Fatt.n. 907151471763431 del 10/02/2019;14/02/2019;716;4;38;1;Spese correnti;3;Acquisto di beni e servizi;2;Acquisto di servizi;5;Utenze e canoni;4;Energia elettrica;14/02/2019
198;1;0;322,37;322,37;ENEL ENERGIA;ZE4229C6A4;Fatt.n. 003009337165 del 09/02/2019;14/02/2019;824;0;39;1;Spese correnti;3;Acquisto di beni e servizi;2;Acquisto di servizi;5;Utenze e canoni;4;Energia elettrica;14/02/2019
199;1;0;578,54;578,54;VODAFONE OMNITEL N.V.;ZB6229C6FD;Fatt.n. AL01989120 del 06/02/2019 scissione pagamenti;14/02/2019;598;3;43;1;Spese correnti;3;Acquisto di beni e servizi;2;Acquisto di servizi;5;Utenze e canoni;1;Telefonia fissa;14/02/2019
200;1;0;1.135,73;1.135,73;OMESSO NOMINATIVO NEL RISPETTO DELLA NORMATIVA SULLA PROTEZIONE DATI PERSONALI; ;IMPEGNO DI SPESA PER PIANI PERSONALIZZATI IN SOSTEGNO DELLE PERSONE CON DISABILITA' GRAVE DI CUI ALLA L.162/1998 -DGR 55/12 DEL 31.12.2017.;14/02/2019;1420;0;390;1;Spese correnti;3;Acquisto di beni e servizi;2;Acquisto di servizi;15;Contratti di servizio pubblico;9;Contratti di servizio di assistenza sociale domiciliare;14/02/2019
201;1;0;172,47;172,47;OMESSO NOMINATIVO NEL RISPETTO DELLA NORMATIVA SULLA PROTEZIONE DATI PERSONALI; ;IMPEGNO DI SPESA PER PIANI PERSONALIZZATI IN SOSTEGNO DELLE PERSONE CON DISABILITA' GRAVE DI CUI ALLA L.162/1998 -DGR 55/12 DEL 31.12.2017.;14/02/2019;1420;0;390;1;Spese correnti;3;Acquisto di beni e servizi;2;Acquisto di servizi;15;Contratti di servizio pubblico;9;Contratti di servizio di assistenza sociale domiciliare;14/02/2019
202;1;0;187,5;187,5;OMESSO NOMINATIVO NEL RISPETTO DELLA NORMATIVA SULLA PROTEZIONE DATI PERSONALI; ;IMPEGNO DI SPESA PER PIANI PERSONALIZZATI IN SOSTEGNO DELLE PERSONE CON DISABILITA' GRAVE DI CUI ALLA L.162/1998 -DGR 55/12 DEL 31.12.2017.;14/02/2019;1420;0;390;1;Spese correnti;3;Acquisto di beni e servizi;2;Acquisto di servizi;15;Contratti di servizio pubblico;9;Contratti di servizio di assistenza sociale domiciliare;14/02/2019
203;1;0;182,66;182,66;OMESSO NOMINATIVO NEL RISPETTO DELLA NORMATIVA SULLA PROTEZIONE DATI PERSONALI; ;IMPEGNO DI SPESA PER PIANI PERSONALIZZATI IN SOSTEGNO DELLE PERSONE CON DISABILITA' GRAVE DI CUI ALLA L.162/1998 -DGR 55/12 DEL 31.12.2017.;14/02/2019;1420;0;390;1;Spese correnti;3;Acquisto di beni e servizi;2;Acquisto di servizi;15;Contratti di servizio pubblico;9;Contratti di servizio di assistenza sociale domiciliare;14/02/2019
204;1;0;200;200;OMESSO NOMINATIVO NEL RISPETTO DELLA NORMATIVA SULLA PROTEZIONE DATI PERSONALI; ;IMPEGNO DI SPESA PER PIANI PERSONALIZZATI IN SOSTEGNO DELLE PERSONE CON DISABILITA' GRAVE DI CUI ALLA L.162/1998 -DGR 55/12 DEL 31.12.2017.;14/02/2019;1420;0;390;1;Spese correnti;3;Acquisto di beni e servizi;2;Acquisto di servizi;15;Contratti di servizio pubblico;9;Contratti di servizio di assistenza sociale domiciliare;14/02/2019
205;1;0;156,25;156,25;OMESSO NOMINATIVO NEL RISPETTO DELLA NORMATIVA SULLA PROTEZIONE DATI PERSONALI; ;IMPEGNO DI SPESA PER PIANI PERSONALIZZATI IN SOSTEGNO DELLE PERSONE CON DISABILITA' GRAVE DI CUI ALLA L.162/1998 -DGR 55/12 DEL 31.12.2017.;14/02/2019;1420;0;390;1;Spese correnti;3;Acquisto di beni e servizi;2;Acquisto di servizi;15;Contratti di servizio pubblico;9;Contratti di servizio di assistenza sociale domiciliare;14/02/2019
206;1;0;175,29;175,29;OMESSO NOMINATIVO NEL RISPETTO DELLA NORMATIVA SULLA PROTEZIONE DATI PERSONALI; ;IMPEGNO DI SPESA PER PIANI PERSONALIZZATI IN SOSTEGNO DELLE PERSONE CON DISABILITA' GRAVE DI CUI ALLA L.162/1998 -DGR 55/12 DEL 31.12.2017.;14/02/2019;1420;0;390;1;Spese correnti;3;Acquisto di beni e servizi;2;Acquisto di servizi;15;Contratti di servizio pubblico;9;Contratti di servizio di assistenza sociale domiciliare;14/02/2019
207;1;0;212,77;212,77;OMESSO NOMINATIVO NEL RISPETTO DELLA NORMATIVA SULLA PROTEZIONE DATI PERSONALI; ;IMPEGNO DI SPESA PER PIANI PERSONALIZZATI IN SOSTEGNO DELLE PERSONE CON DISABILITA' GRAVE DI CUI ALLA L.162/1998 -DGR 55/12 DEL 31.12.2017.;14/02/2019;1420;0;390;1;Spese correnti;3;Acquisto di beni e servizi;2;Acquisto di servizi;15;Contratti di servizio pubblico;9;Contratti di servizio di assistenza sociale domiciliare;14/02/2019
208;1;0;177,95;177,95;OMESSO NOMINATIVO NEL RISPETTO DELLA NORMATIVA SULLA PROTEZIONE DATI PERSONALI; ;IMPEGNO DI SPESA PER PIANI PERSONALIZZATI IN SOSTEGNO DELLE PERSONE CON DISABILITA' GRAVE DI CUI ALLA L.162/1998 -DGR 55/12 DEL 31.12.2017.;14/02/2019;1420;0;390;1;Spese correnti;3;Acquisto di beni e servizi;2;Acquisto di servizi;15;Contratti di servizio pubblico;9;Contratti di servizio di assistenza sociale domiciliare;14/02/2019
209;1;0;155,64;155,64;OMESSO NOMINATIVO NEL RISPETTO DELLA NORMATIVA SULLA PROTEZIONE DATI PERSONALI; ;IMPEGNO DI SPESA PER PIANI PERSONALIZZATI IN SOSTEGNO DELLE PERSONE CON DISABILITA' GRAVE DI CUI ALLA L.162/1998 -DGR 55/12 DEL 31.12.2017.;14/02/2019;1420;0;390;1;Spese correnti;3;Acquisto di beni e servizi;2;Acquisto di servizi;15;Contratti di servizio pubblico;9;Contratti di servizio di assistenza sociale domiciliare;14/02/2019
210;1;0;397,44;397,44;OMESSO NOMINATIVO NEL RISPETTO DELLA NORMATIVA SULLA PROTEZIONE DATI PERSONALI; ;IMPEGNO DI SPESA PER PIANI PERSONALIZZATI IN SOSTEGNO DELLE PERSONE CON DISABILITA' GRAVE DI CUI ALLA L.162/1998 -DGR 55/12 DEL 31.12.2017.;14/02/2019;1420;0;390;1;Spese correnti;3;Acquisto di beni e servizi;2;Acquisto di servizi;15;Contratti di servizio pubblico;9;Contratti di servizio di assistenza sociale domiciliare;14/02/2019
212;1;0;144,35;144,35;OMESSO NOMINATIVO NEL RISPETTO DELLA NORMATIVA SULLA PROTEZIONE DATI PERSONALI; ;IMPEGNO DI SPESA PER PIANI PERSONALIZZATI IN SOSTEGNO DELLE PERSONE CON DISABILITA' GRAVE DI CUI ALLA L.162/1998 -DGR 55/12 DEL 31.12.2017.;14/02/2019;1420;0;390;1;Spese correnti;3;Acquisto di beni e servizi;2;Acquisto di servizi;15;Contratti di servizio pubblico;9;Contratti di servizio di assistenza sociale domiciliare;14/02/2019
213;1;0;309,88;309,88;OMESSO NOMINATIVO NEL RISPETTO DELLA NORMATIVA SULLA PROTEZIONE DATI PERSONALI; ;IMPEGNO DI SPESA PER PIANI PERSONALIZZATI IN SOSTEGNO DELLE PERSONE CON DISABILITA' GRAVE DI CUI ALLA L.162/1998 -DGR 55/12 DEL 31.12.2017.;14/02/2019;1420;0;390;1;Spese correnti;3;Acquisto di beni e servizi;2;Acquisto di servizi;15;Contratti di servizio pubblico;9;Contratti di servizio di assistenza sociale domiciliare;14/02/2019
214;1;0;143,84;143,84;OMESSO NOMINATIVO NEL RISPETTO DELLA NORMATIVA SULLA PROTEZIONE DATI PERSONALI; ;IMPEGNO DI SPESA PER PIANI PERSONALIZZATI IN SOSTEGNO DELLE PERSONE CON DISABILITA' GRAVE DI CUI ALLA L.162/1998 -DGR 55/12 DEL 31.12.2017.;14/02/2019;1420;0;390;1;Spese correnti;3;Acquisto di beni e servizi;2;Acquisto di servizi;15;Contratti di servizio pubblico;9;Contratti di servizio di assistenza sociale domiciliare;14/02/2019
215;1;0;215,97;215,97;OMESSO NOMINATIVO NEL RISPETTO DELLA NORMATIVA SULLA PROTEZIONE DATI PERSONALI; ;IMPEGNO DI SPESA PER PIANI PERSONALIZZATI IN SOSTEGNO DELLE PERSONE CON DISABILITA' GRAVE DI CUI ALLA L.162/1998 -DGR 55/12 DEL 31.12.2017.;14/02/2019;1420;0;390;1;Spese correnti;3;Acquisto di beni e servizi;2;Acquisto di servizi;15;Contratti di servizio pubblico;9;Contratti di servizio di assistenza sociale domiciliare;14/02/2019
216;1;0;671,25;671,25;OMESSO NOMINATIVO NEL RISPETTO DELLA NORMATIVA SULLA PROTEZIONE DATI PERSONALI; ;IMPEGNO DI SPESA PER PIANI PERSONALIZZATI IN SOSTEGNO DELLE PERSONE CON DISABILITA' GRAVE DI CUI ALLA L.162/1998 -DGR 55/12 DEL 31.12.2017.;14/02/2019;1420;0;390;1;Spese correnti;3;Acquisto di beni e servizi;2;Acquisto di servizi;15;Contratti di servizio pubblico;9;Contratti di servizio di assistenza sociale domiciliare;14/02/2019
217;1;0;141,37;141,37;OMESSO NOMINATIVO NEL RISPETTO DELLA NORMATIVA SULLA PROTEZIONE DATI PERSONALI; ;IMPEGNO DI SPESA PER PIANI PERSONALIZZATI IN SOSTEGNO DELLE PERSONE CON DISABILITA' GRAVE DI CUI ALLA L.162/1998 -DGR 55/12 DEL 31.12.2017.;14/02/2019;1420;0;390;1;Spese correnti;3;Acquisto di beni e servizi;2;Acquisto di servizi;15;Contratti di servizio pubblico;9;Contratti di servizio di assistenza sociale domiciliare;14/02/2019
218;1;0;568,39;568,39;OMESSO NOMINATIVO NEL RISPETTO DELLA NORMATIVA SULLA PROTEZIONE DATI PERSONALI; ;IMPEGNO DI SPESA PER PIANI PERSONALIZZATI IN SOSTEGNO DELLE PERSONE CON DISABILITA' GRAVE DI CUI ALLA L.162/1998 -DGR 55/12 DEL 31.12.2017.;14/02/2019;1420;0;390;1;Spese correnti;3;Acquisto di beni e servizi;2;Acquisto di servizi;15;Contratti di servizio pubblico;9;Contratti di servizio di assistenza sociale domiciliare;14/02/2019
219;1;0;105,92;105,92;OMESSO NOMINATIVO NEL RISPETTO DELLA NORMATIVA SULLA PROTEZIONE DATI PERSONALI; ;IMPEGNO DI SPESA PER PIANI PERSONALIZZATI IN SOSTEGNO DELLE PERSONE CON DISABILITA' GRAVE DI CUI ALLA L.162/1998 -DGR 55/12 DEL 31.12.2017.;14/02/2019;1420;0;390;1;Spese correnti;3;Acquisto di beni e servizi;2;Acquisto di servizi;15;Contratti di servizio pubblico;9;Contratti di servizio di assistenza sociale domiciliare;14/02/2019
220;1;0;835,99;835,99;OMESSO NOMINATIVO NEL RISPETTO DELLA NORMATIVA SULLA PROTEZIONE DATI PERSONALI; ;IMPEGNO DI SPESA PER PIANI PERSONALIZZATI IN SOSTEGNO DELLE PERSONE CON DISABILITA' GRAVE DI CUI ALLA L.162/1998 -DGR 55/12 DEL 31.12.2017.;14/02/2019;1420;0;390;1;Spese correnti;3;Acquisto di beni e servizi;2;Acquisto di servizi;15;Contratti di servizio pubblico;9;Contratti di servizio di assistenza sociale domiciliare;14/02/2019
221;1;0;210,62;210,62;OMESSO NOMINATIVO NEL RISPETTO DELLA NORMATIVA SULLA PROTEZIONE DATI PERSONALI; ;IMPEGNO DI SPESA PER PIANI PERSONALIZZATI IN SOSTEGNO DELLE PERSONE CON DISABILITA' GRAVE DI CUI ALLA L.162/1998 -DGR 55/12 DEL 31.12.2017.;14/02/2019;1420;0;390;1;Spese correnti;3;Acquisto di beni e servizi;2;Acquisto di servizi;15;Contratti di servizio pubblico;9;Contratti di servizio di assistenza sociale domiciliare;14/02/2019
222;1;0;1.173,81;1.173,81;SERVIZIO ELETTRICO NAZIONALE - SERVIZIO DI MAGGIOR TUTE;Z3723FBF0B;Fatt.n. 907151470732314 del 10/02/2019;14/02/2019;598;4;152;1;Spese correnti;3;Acquisto di beni e servizi;2;Acquisto di servizi;5;Utenze e canoni;4;Energia elettrica;14/02/2019
223;1;0;751,93;751,93;SERVIZIO ELETTRICO NAZIONALE - SERVIZIO DI MAGGIOR TUTE;Z3723FBF0B;Fatt.n. 907151470733516 del 10/02/2019;14/02/2019;618;4;153;1;Spese correnti;3;Acquisto di beni e servizi;2;Acquisto di servizi;5;Utenze e canoni;4;Energia elettrica;14/02/2019
224;1;0;354,4;354,4;OMESSO NOMINATIVO NEL RISPETTO DELLA NORMATIVA SULLA PROTEZIONE DATI PERSONALI; ;CONTRIBUTO REGIONE LEGGI DI SETTORE;15/02/2019;1438;0;290;1;Spese correnti;4;Trasferimenti correnti;2;Trasferimenti correnti a Famiglie;2;Interventi assistenziali;999;Altri assegni e sussidi assistenziali;15/02/2019
225;1;0;1.153,13;1.153,13;ENEL ENERGIA;Z6027244AC;Fatt.n. 003009337161 del 09/02/2019;15/02/2019;1012;4;19;1;Spese correnti;3;Acquisto di beni e servizi;2;Acquisto di servizi;5;Utenze e canoni;4;Energia elettrica;15/02/2019
226;1;0;139,1;139,1;ENEL ENERGIA;Z6027244AC;Fatt.n. 003009337162 del 09/02/2019;15/02/2019;1012;4;19;1;Spese correnti;3;Acquisto di beni e servizi;2;Acquisto di servizi;5;Utenze e canoni;4;Energia elettrica;15/02/2019
227;1;0;2.154,58;2.154,58;ENEL ENERGIA;Z6027244AC;Fatt.n. 003009337163 del 09/02/2019;15/02/2019;1012;4;19;1;Spese correnti;3;Acquisto di beni e servizi;2;Acquisto di servizi;5;Utenze e canoni;4;Energia elettrica;15/02/2019
228;1;0;235,34;235,34;ENEL ENERGIA;Z6027244AC;Fatt.n. 003009337164 del 09/02/2019;15/02/2019;1012;4;19;1;Spese correnti;3;Acquisto di beni e servizi;2;Acquisto di servizi;5;Utenze e canoni;4;Energia elettrica;15/02/2019
229;1;0;33,49;33,49;ENEL ENERGIA;Z6027244AC;Fatt.n. 003009514332 del 09/02/2019;15/02/2019;1012;4;19;1;Spese correnti;3;Acquisto di beni e servizi;2;Acquisto di servizi;5;Utenze e canoni;4;Energia elettrica;15/02/2019
230;1;0;55,47;55,47;ENEL ENERGIA;Z6027244AC;Fatt.n. 003009860428 del 09/02/2019;15/02/2019;1012;4;19;1;Spese correnti;3;Acquisto di beni e servizi;2;Acquisto di servizi;5;Utenze e canoni;4;Energia elettrica;15/02/2019
231;1;0;52,13;52,13;ENEL ENERGIA;Z6027244AC;Fatt.n. 003009860429 del 09/02/2019;15/02/2019;1012;4;19;1;Spese correnti;3;Acquisto di beni e servizi;2;Acquisto di servizi;5;Utenze e canoni;4;Energia elettrica;15/02/2019
232;1;0;650;650;OMESSO NOMINATIVO NEL RISPETTO DELLA NORMATIVA SULLA PROTEZIONE DATI PERSONALI; ;IMPEGNO DI SPESA PER CONCESSIONE CONTRIBUTO;15/02/2019;1434;0;260;1;Spese correnti;4;Trasferimenti correnti;2;Trasferimenti correnti a Famiglie;2;Interventi assistenziali;999;Altri assegni e sussidi assistenziali;15/02/2019
233;1;0;600;600;OMESSO NOMINATIVO NEL RISPETTO DELLA NORMATIVA SULLA PROTEZIONE DATI PERSONALI; ;IMPEGNO DI SPESA PER CONCESSIONE CONTRIBUTO;15/02/2019;1434;0;260;1;Spese correnti;4;Trasferimenti correnti;2;Trasferimenti correnti a Famiglie;2;Interventi assistenziali;999;Altri assegni e sussidi assistenziali;15/02/2019
234;1;0;78,24;78,24;SERVIZIO ELETTRICO NAZIONALE - SERVIZIO DI MAGGIOR TUTE;Z2F225B795;Fatt.n. 907150481720014 del 10/02/2019;18/02/2019;118;4;25;1;Spese correnti;3;Acquisto di beni e servizi;2;Acquisto di servizi;5;Utenze e canoni;4;Energia elettrica;18/02/2019
235;1;0;1.225,38;1.225,38;SERVIZIO ELETTRICO NAZIONALE - SERVIZIO DI MAGGIOR TUTE;Z3723FBF0B;Fatt.n. 907151111749411 del 10/02/2019;18/02/2019;618;4;153;1;Spese correnti;3;Acquisto di beni e servizi;2;Acquisto di servizi;5;Utenze e canoni;4;Energia elettrica;18/02/2019
262;1;0;572,66;572,66;OMESSO NOMINATIVO NEL RISPETTO DELLA NORMATIVA SULLA PROTEZIONE DATI PERSONALI; ;IMPEGNO DI SPESA LEGGE 162/1998 PIANI PERSONALIZZATI IN SOSTEGNO ALLE PERSONE CON DISABILITA' GRAVE - PROROGA DAL 01.01.2019 AL 30.04.2019;20/02/2019;1420;2;29;1;Spese correnti;4;Trasferimenti correnti;2;Trasferimenti correnti a Famiglie;2;Interventi assistenziali;999;Altri assegni e sussidi assistenziali;20/02/2019
263;1;0;711,85;711,85;OMESSO NOMINATIVO NEL RISPETTO DELLA NORMATIVA SULLA PROTEZIONE DATI PERSONALI; ;IMPEGNO DI SPESA LEGGE 162/1998 PIANI PERSONALIZZATI IN SOSTEGNO ALLE PERSONE CON DISABILITA' GRAVE - PROROGA DAL 01.01.2019 AL 30.04.2019;20/02/2019;1420;2;29;1;Spese correnti;4;Trasferimenti correnti;2;Trasferimenti correnti a Famiglie;2;Interventi assistenziali;999;Altri assegni e sussidi assistenziali;20/02/2019
264;1;0;369,81;369,81;OMESSO NOMINATIVO NEL RISPETTO DELLA NORMATIVA SULLA PROTEZIONE DATI PERSONALI; ;IMPEGNO DI SPESA LEGGE 162/1998 PIANI PERSONALIZZATI IN SOSTEGNO ALLE PERSONE CON DISABILITA' GRAVE - PROROGA DAL 01.01.2019 AL 30.04.2019;20/02/2019;1420;2;29;1;Spese correnti;4;Trasferimenti correnti;2;Trasferimenti correnti a Famiglie;2;Interventi assistenziali;999;Altri assegni e sussidi assistenziali;20/02/2019
265;1;0;211,83;211,83;OMESSO NOMINATIVO NEL RISPETTO DELLA NORMATIVA SULLA PROTEZIONE DATI PERSONALI; ;IMPEGNO DI SPESA LEGGE 162/1998 PIANI PERSONALIZZATI IN SOSTEGNO ALLE PERSONE CON DISABILITA' GRAVE - PROROGA DAL 01.01.2019 AL 30.04.2019;20/02/2019;1420;2;29;1;Spese correnti;4;Trasferimenti correnti;2;Trasferimenti correnti a Famiglie;2;Interventi assistenziali;999;Altri assegni e sussidi assistenziali;20/02/2019
266;1;0;600;600;OMESSO NOMINATIVO NEL RISPETTO DELLA NORMATIVA SULLA PROTEZIONE DATI PERSONALI; ;IMPEGNO DI SPESA PER CONTRIBUTO A FAVORE DI CITTADINI SOFFERENTI MENTALI INSERITI IN STRUTTURE RESIDENZIALI - ANNUALITA' 2019;20/02/2019;1434;0;26;1;Spese correnti;4;Trasferimenti correnti;2;Trasferimenti correnti a Famiglie;2;Interventi assistenziali;999;Altri assegni e sussidi assistenziali;20/02/2019
267;1;0;120;120;OMESSO NOMINATIVO NEL RISPETTO DELLA NORMATIVA SULLA PROTEZIONE DATI PERSONALI; ;CONTRIBUTO REGIONE LEGGI DI SETTORE;20/02/2019;1438;0;290;1;Spese correnti;4;Trasferimenti correnti;2;Trasferimenti correnti a Famiglie;2;Interventi assistenziali;999;Altri assegni e sussidi assistenziali;20/02/2019
268;1;0;56;56;OMESSO NOMINATIVO NEL RISPETTO DELLA NORMATIVA SULLA PROTEZIONE DATI PERSONALI; ;CONTRIBUTO REGIONE LEGGI DI SETTORE;20/02/2019;1438;0;290;1;Spese correnti;4;Trasferimenti correnti;2;Trasferimenti correnti a Famiglie;2;Interventi assistenziali;999;Altri assegni e sussidi assistenziali;20/02/2019
269;1;0;454,2;454,2;COOP. NUOVE IDEE;Z52230BA0F;Fatt.n. 145E/V2 del 19/02/2019 Fattura clienti Split Payment ex art. 17-ter DPR 633/72;21/02/2019;715;0;37;1;Spese correnti;3;Acquisto di beni e servizi;2;Acquisto di servizi;11;Prestazioni professionali e specialistiche;999;Altre prestazioni professionali e specialistiche n.a.c.;21/02/2019
270;1;0;900,8;900,8;COOP. NUOVE IDEE;Z52230BA0F;Fatt.n. 145E/V2 del 19/02/2019 Fattura clienti Split Payment ex art. 17-ter DPR 633/72;21/02/2019;715;0;87;1;Spese correnti;3;Acquisto di beni e servizi;2;Acquisto di servizi;11;Prestazioni professionali e specialistiche;999;Altre prestazioni professionali e specialistiche n.a.c.;21/02/2019
271;1;0;5.821,92;5.821,92;CONSORZIO NETWORK ETICO;687819848C;Fatt.n. 2/340 del 15/02/2019;21/02/2019;1412;0;14;1;Spese correnti;3;Acquisto di beni e servizi;2;Acquisto di servizi;15;Contratti di servizio pubblico;9;Contratti di servizio di assistenza sociale domiciliare;21/02/2019
272;1;0;979,73;979,73;CONSORZIO NETWORK ETICO;7654115782;Fatt.n. 2/340 del 15/02/2019;21/02/2019;1413;0;31;1;Spese correnti;3;Acquisto di beni e servizi;2;Acquisto di servizi;99;Altri servizi;999;Altri servizi diversi n.a.c.;21/02/2019
273;1;0;3.819,96;3.819,96;CONSORZIO NETWORK ETICO;7391758FA7;Fatt.n. 2/341 del 15/02/2019;21/02/2019;1416;0;88;1;Spese correnti;3;Acquisto di beni e servizi;2;Acquisto di servizi;11;Prestazioni professionali e specialistiche;999;Altre prestazioni professionali e specialistiche n.a.c.;21/02/2019
274;1;0;169,02;169,02;OMESSO NOMINATIVO NEL RISPETTO DELLA NORMATIVA SULLA PROTEZIONE DATI PERSONALI; ;IMPEGNO DI SPESA LEGGE 162/1998 PIANI PERSONALIZZATI IN SOSTEGNO ALLE PERSONE CON DISABILITA' GRAVE - PROROGA DAL 01.01.2019 AL 30.04.2019;21/02/2019;1420;2;29;1;Spese correnti;4;Trasferimenti correnti;2;Trasferimenti correnti a Famiglie;2;Interventi assistenziali;999;Altri assegni e sussidi assistenziali;21/02/2019
275;1;0;319,65;319,65;OMESSO NOMINATIVO NEL RISPETTO DELLA NORMATIVA SULLA PROTEZIONE DATI PERSONALI; ;IMPEGNO DI SPESA LEGGE 162/1998 PIANI PERSONALIZZATI IN SOSTEGNO ALLE PERSONE CON DISABILITA' GRAVE - PROROGA DAL 01.01.2019 AL 30.04.2019;21/02/2019;1420;2;29;1;Spese correnti;4;Trasferimenti correnti;2;Trasferimenti correnti a Famiglie;2;Interventi assistenziali;999;Altri assegni e sussidi assistenziali;21/02/2019
276;1;0;249,26;249,26;OMESSO NOMINATIVO NEL RISPETTO DELLA NORMATIVA SULLA PROTEZIONE DATI PERSONALI; ;IMPEGNO DI SPESA LEGGE 162/1998 PIANI PERSONALIZZATI IN SOSTEGNO ALLE PERSONE CON DISABILITA' GRAVE - PROROGA DAL 01.01.2019 AL 30.04.2019;21/02/2019;1420;2;29;1;Spese correnti;4;Trasferimenti correnti;2;Trasferimenti correnti a Famiglie;2;Interventi assistenziali;999;Altri assegni e sussidi assistenziali;21/02/2019
277;1;0;241,96;241,96;OMESSO NOMINATIVO NEL RISPETTO DELLA NORMATIVA SULLA PROTEZIONE DATI PERSONALI; ;IMPEGNO DI SPESA LEGGE 162/1998 PIANI PERSONALIZZATI IN SOSTEGNO ALLE PERSONE CON DISABILITA' GRAVE - PROROGA DAL 01.01.2019 AL 30.04.2019;21/02/2019;1420;2;29;1;Spese correnti;4;Trasferimenti correnti;2;Trasferimenti correnti a Famiglie;2;Interventi assistenziali;999;Altri assegni e sussidi assistenziali;21/02/2019
278;1;0;163,02;163,02;OMESSO NOMINATIVO NEL RISPETTO DELLA NORMATIVA SULLA PROTEZIONE DATI PERSONALI; ;IMPEGNO DI SPESA LEGGE 162/1998 PIANI PERSONALIZZATI IN SOSTEGNO ALLE PERSONE CON DISABILITA' GRAVE - PROROGA DAL 01.01.2019 AL 30.04.2019;21/02/2019;1420;2;29;1;Spese correnti;4;Trasferimenti correnti;2;Trasferimenti correnti a Famiglie;2;Interventi assistenziali;999;Altri assegni e sussidi assistenziali;21/02/2019
279;1;0;163,02;163,02;OMESSO NOMINATIVO NEL RISPETTO DELLA NORMATIVA SULLA PROTEZIONE DATI PERSONALI; ;IMPEGNO DI SPESA LEGGE 162/1998 PIANI PERSONALIZZATI IN SOSTEGNO ALLE PERSONE CON DISABILITA' GRAVE - PROROGA DAL 01.01.2019 AL 30.04.2019;21/02/2019;1420;2;29;1;Spese correnti;4;Trasferimenti correnti;2;Trasferimenti correnti a Famiglie;2;Interventi assistenziali;999;Altri assegni e sussidi assistenziali;21/02/2019
280;1;0;160;160;OMESSO NOMINATIVO NEL RISPETTO DELLA NORMATIVA SULLA PROTEZIONE DATI PERSONALI; ;IMPEGNO DI SPESA LEGGE 162/1998 PIANI PERSONALIZZATI IN SOSTEGNO ALLE PERSONE CON DISABILITA' GRAVE - PROROGA DAL 01.01.2019 AL 30.04.2019;21/02/2019;1420;2;29;1;Spese correnti;4;Trasferimenti correnti;2;Trasferimenti correnti a Famiglie;2;Interventi assistenziali;999;Altri assegni e sussidi assistenziali;21/02/2019
281;1;0;7.866,53;7.866,53;COOP. NUOVE IDEE; ;IMPEGNO DI SPESA PER PIANI PERSONALIZZATI IN SOSTEGNO DELLE PERSONE CON DISABILITA' GRAVE DI CUI ALLA L.162/1998 -DGR 55/12 DEL 31.12.2017.;25/02/2019;1420;0;141;1;Spese correnti;3;Acquisto di beni e servizi;2;Acquisto di servizi;15;Contratti di servizio pubblico;9;Contratti di servizio di assistenza sociale domiciliare;25/02/2019
282;1;0;1.235,20;1.235,20;COMUNE DI OZIERI; ;IMPEGNO DI SPESA PER INTEGRAZIONE FONDO D'AMBITO ANNO 2019;25/02/2019;1412;0;39;1;Spese correnti;3;Acquisto di beni e servizi;2;Acquisto di servizi;15;Contratti di servizio pubblico;9;Contratti di servizio di assistenza sociale domiciliare;25/02/2019
283;1;0;1.494,03;1.494,03;OMESSO NOMINATIVO NEL RISPETTO DELLA NORMATIVA SULLA PROTEZIONE DATI PERSONALI;7394433F22;Fatt.n. X-136 del 08/02/2019;25/02/2019;1412;1;85;1;Spese correnti;3;Acquisto di beni e servizi;2;Acquisto di servizi;15;Contratti di servizio pubblico;8;Contratti di servizio di assistenza sociale residenziale e semiresidenziale;25/02/2019
284;1;0;301,22;301,22;ENEL ENERGIA;Z5C23A1DEC;Fatt.n. 003005999722 del 16/01/2019;25/02/2019;566;4;130;1;Spese correnti;3;Acquisto di beni e servizi;2;Acquisto di servizi;5;Utenze e canoni;4;Energia elettrica;25/02/2019
285;1;0;1.110,20;1.110,20;RINASCITA SOC.COOP.SOCIALE;Z7424F506C;Fatt.n. 8 del 25/02/2019;26/02/2019;1435;0;234;1;Spese correnti;3;Acquisto di beni e servizi;2;Acquisto di servizi;99;Altri servizi;999;Altri servizi diversi n.a.c.;26/02/2019
286;1;0;5.727,00;5.727,00;RINASCITA SOC.COOP.SOCIALE; ;ATTIVAZIONE INTERVENTO DENOMINATO REIS (REDDITO DI INCLUSIONE SOCIALE) ANNO 2018. FEBBRAIO 2019. LIQ. N. 28;26/02/2019;1435;0;234;1;Spese correnti;3;Acquisto di beni e servizi;2;Acquisto di servizi;99;Altri servizi;999;Altri servizi diversi n.a.c.;26/02/2019
287;1;0;234,86;234,86;DNA RANDAGIO;ZD021761F1;Fatt.n. 000021-2019-CANILE del 08/02/2019 SERVIZIO DI RICOVERO E CUSTODIA CANI RANDAGI;27/02/2019;1349;0;33;1;Spese correnti;3;Acquisto di beni e servizi;2;Acquisto di servizi;15;Contratti di servizio pubblico;11;Contratti di servizio per la lotta al randagismo;27/02/2019
288;1;0;62,14;62,14;COMUNE DI SASSARI; ;COMMISSIONE ELETTORALE CIRCONDARIALE - 1^ SOTTOCOMMISSIONE - RIMBORSO SPESE ANNO 2018 - IMPEGNO DI SPESA.;27/02/2019;280;0;34;1;Spese correnti;3;Acquisto di beni e servizi;2;Acquisto di servizi;99;Altri servizi;999;Altri servizi diversi n.a.c.;27/02/2019
289;1;0;310;310;A.N.U.S.C.A.; ;ADESIONE ALL'ASSOCIAZIONE NAZIONALE DEGLI UFFICIALI DI STATO CIVILE E DI ANAGRAFE (A.N.U.S.C.A.) ANNO 2019 - IMPEGNO DI SPESA;27/02/2019;280;0;33;1;Spese correnti;3;Acquisto di beni e servizi;2;Acquisto di servizi;99;Altri servizi;999;Altri servizi diversi n.a.c.;27/02/2019
290;1;0;280,6;280,6;FIORI MARIO;Z1B255AB8B;Fatt.n. FATTPA 2_19 del 20/02/2019;27/02/2019;3126;0;298;2;Spese in conto capitale;2;Investimenti fissi lordi e acquisto di terreni;1;Beni materiali;9;Beni immobili;14;Opere per la sistemazione del suolo;27/02/2019
291;1;0;425,94;425,94;LEONI S.R.L.;Z3A270F6E0;Fatt.n. 87 del 01/02/2019 PRESTAZIONE CON AUTOSPURGO PER ASPIRAZIONE E TRASPORTO RIFIUTO COD CER 160709 DA SCUOLE ELEMENTARI A IMPIANTO E' AMBIENTE;27/02/2019;255;0;15;1;Spese correnti;3;Acquisto di beni e servizi;2;Acquisto di servizi;9;Manutenzione ordinaria e riparazioni;8;Manutenzione ordinaria e riparazioni di beni immobili;27/02/2019
292;1;0;105,3;105,3;ENEL ENERGIA;Z6C22BB7C0;Fatt.n. 003005688799 del 15/01/2019;27/02/2019;1013;0;61;1;Spese correnti;3;Acquisto di beni e servizi;2;Acquisto di servizi;5;Utenze e canoni;4;Energia elettrica;27/02/2019
293;1;0;61;61;OTIS SERVIZI SRL;ZBD255BCBC;Fatt.n. 3FC19001010 del 10/01/2019 Competenze Intervento Tecnico su Chiamata;27/02/2019;1422;0;276;1;Spese correnti;3;Acquisto di beni e servizi;1;Acquisto di beni;2;Altri beni di consumo;999;Altri beni e materiali di consumo n.a.c.;27/02/2019
294;1;0;120;750;FRESU NINO; ;ELEZIONI DEL PRESIDENTE DELLA REGIONE E DEL XVI CONSIGLIO REGIONALE DELLA SARDEGNA DEL 24 FEBBRAIO 2019 - LIQUIDAZIONE DELLE COMPETENZE AI COMPONENTI DEI SEGGI ELETTORALI.SEGGIO N. 1. DET. N. 64;28/02/2019;310;0;45;1;Spese correnti;3;Acquisto di beni e servizi;2;Acquisto di servizi;99;Altri servizi;999;Altri servizi diversi n.a.c.;28/02/2019
294;2;0;120;750;LEPORE MANUELA ALESSANDRA; ;ELEZIONI DEL PRESIDENTE DELLA REGIONE E DEL XVI CONSIGLIO REGIONALE DELLA SARDEGNA DEL 24 FEBBRAIO 2019 - LIQUIDAZIONE DELLE COMPETENZE AI COMPONENTI DEI SEGGI ELETTORALI.SEGGIO N. 1. DET. N. 64;28/02/2019;310;0;45;1;Spese correnti;3;Acquisto di beni e servizi;2;Acquisto di servizi;99;Altri servizi;999;Altri servizi diversi n.a.c.;28/02/2019
294;3;0;120;750;MONGILI DONATELLA; ;ELEZIONI DEL PRESIDENTE DELLA REGIONE E DEL XVI CONSIGLIO REGIONALE DELLA SARDEGNA DEL 24 FEBBRAIO 2019 - LIQUIDAZIONE DELLE COMPETENZE AI COMPONENTI DEI SEGGI ELETTORALI.SEGGIO N. 1. DET. N. 64;28/02/2019;310;0;45;1;Spese correnti;3;Acquisto di beni e servizi;2;Acquisto di servizi;99;Altri servizi;999;Altri servizi diversi n.a.c.;28/02/2019
294;4;0;120;750;MURGAS MARIO; ;ELEZIONI DEL PRESIDENTE DELLA REGIONE E DEL XVI CONSIGLIO REGIONALE DELLA SARDEGNA DEL 24 FEBBRAIO 2019 - LIQUIDAZIONE DELLE COMPETENZE AI COMPONENTI DEI SEGGI ELETTORALI.SEGGIO N. 1. DET. N. 64;28/02/2019;310;0;45;1;Spese correnti;3;Acquisto di beni e servizi;2;Acquisto di servizi;99;Altri servizi;999;Altri servizi diversi n.a.c.;28/02/2019
294;5;0;120;750;SINI FRANCESCA; ;ELEZIONI DEL PRESIDENTE DELLA REGIONE E DEL XVI CONSIGLIO REGIONALE DELLA SARDEGNA DEL 24 FEBBRAIO 2019 - LIQUIDAZIONE DELLE COMPETENZE AI COMPONENTI DEI SEGGI ELETTORALI.SEGGIO N. 1. DET. N. 64;28/02/2019;310;0;45;1;Spese correnti;3;Acquisto di beni e servizi;2;Acquisto di servizi;99;Altri servizi;999;Altri servizi diversi n.a.c.;28/02/2019
294;6;0;150;750;SOTGIA IRENE; ;ELEZIONI DEL PRESIDENTE DELLA REGIONE E DEL XVI CONSIGLIO REGIONALE DELLA SARDEGNA DEL 24 FEBBRAIO 2019 - LIQUIDAZIONE DELLE COMPETENZE AI COMPONENTI DEI SEGGI ELETTORALI.SEGGIO N. 1. DET. N. 64;28/02/2019;310;0;45;1;Spese correnti;3;Acquisto di beni e servizi;2;Acquisto di servizi;99;Altri servizi;999;Altri servizi diversi n.a.c.;28/02/2019
295;1;0;120;750;BARROCU ELISA; ;ELEZIONI DEL PRESIDENTE DELLA REGIONE E DEL XVI CONSIGLIO REGIONALE DELLA SARDEGNA DEL 24 FEBBRAIO 2019 - LIQUIDAZIONE DELLE COMPETENZE AI COMPONENTI DEI SEGGI ELETTORALI.SEGGIO N. 2 DET. N. 64;28/02/2019;310;0;45;1;Spese correnti;3;Acquisto di beni e servizi;2;Acquisto di servizi;99;Altri servizi;999;Altri servizi diversi n.a.c.;28/02/2019
295;2;0;120;750;BARROCU RENATA; ;ELEZIONI DEL PRESIDENTE DELLA REGIONE E DEL XVI CONSIGLIO REGIONALE DELLA SARDEGNA DEL 24 FEBBRAIO 2019 - LIQUIDAZIONE DELLE COMPETENZE AI COMPONENTI DEI SEGGI ELETTORALI.SEGGIO N. 2 DET. N. 64;28/02/2019;310;0;45;1;Spese correnti;3;Acquisto di beni e servizi;2;Acquisto di servizi;99;Altri servizi;999;Altri servizi diversi n.a.c.;28/02/2019
295;3;0;150;750;CORDA ANNA MARIA; ;ELEZIONI DEL PRESIDENTE DELLA REGIONE E DEL XVI CONSIGLIO REGIONALE DELLA SARDEGNA DEL 24 FEBBRAIO 2019 - LIQUIDAZIONE DELLE COMPETENZE AI COMPONENTI DEI SEGGI ELETTORALI.SEGGIO N. 2 DET. N. 64;28/02/2019;310;0;45;1;Spese correnti;3;Acquisto di beni e servizi;2;Acquisto di servizi;99;Altri servizi;999;Altri servizi diversi n.a.c.;28/02/2019
295;4;0;120;750;DESSENA ADELAIDE; ;ELEZIONI DEL PRESIDENTE DELLA REGIONE E DEL XVI CONSIGLIO REGIONALE DELLA SARDEGNA DEL 24 FEBBRAIO 2019 - LIQUIDAZIONE DELLE COMPETENZE AI COMPONENTI DEI SEGGI ELETTORALI.SEGGIO N. 2 DET. N. 64;28/02/2019;310;0;45;1;Spese correnti;3;Acquisto di beni e servizi;2;Acquisto di servizi;99;Altri servizi;999;Altri servizi diversi n.a.c.;28/02/2019
295;5;0;120;750;MONGILI MAURIZIO; ;ELEZIONI DEL PRESIDENTE DELLA REGIONE E DEL XVI CONSIGLIO REGIONALE DELLA SARDEGNA DEL 24 FEBBRAIO 2019 - LIQUIDAZIONE DELLE COMPETENZE AI COMPONENTI DEI SEGGI ELETTORALI.SEGGIO N. 2 DET. N. 64;28/02/2019;310;0;45;1;Spese correnti;3;Acquisto di beni e servizi;2;Acquisto di servizi;99;Altri servizi;999;Altri servizi diversi n.a.c.;28/02/2019
295;6;0;120;750;USAI JULIAN; ;ELEZIONI DEL PRESIDENTE DELLA REGIONE E DEL XVI CONSIGLIO REGIONALE DELLA SARDEGNA DEL 24 FEBBRAIO 2019 - LIQUIDAZIONE DELLE COMPETENZE AI COMPONENTI DEI SEGGI ELETTORALI.SEGGIO N. 2 DET. N. 64;28/02/2019;310;0;45;1;Spese correnti;3;Acquisto di beni e servizi;2;Acquisto di servizi;99;Altri servizi;999;Altri servizi diversi n.a.c.;28/02/2019
296;1;0;120;773,2;FODDIS TERESA; ;ELEZIONI DEL PRESIDENTE DELLA REGIONE E DEL XVI CONSIGLIO REGIONALE DELLA SARDEGNA DEL 24 FEBBRAIO 2019 - LIQUIDAZIONE DELLE COMPETENZE AI COMPONENTI DEI SEGGI ELETTORALI.SEGGIO N. 3. DET. N. 64;28/02/2019;310;0;45;1;Spese correnti;3;Acquisto di beni e servizi;2;Acquisto di servizi;99;Altri servizi;999;Altri servizi diversi n.a.c.;28/02/2019
296;2;0;120;773,2;FRESU ALBERTO; ;ELEZIONI DEL PRESIDENTE DELLA REGIONE E DEL XVI CONSIGLIO REGIONALE DELLA SARDEGNA DEL 24 FEBBRAIO 2019 - LIQUIDAZIONE DELLE COMPETENZE AI COMPONENTI DEI SEGGI ELETTORALI.SEGGIO N. 3. DET. N. 64;28/02/2019;310;0;45;1;Spese correnti;3;Acquisto di beni e servizi;2;Acquisto di servizi;99;Altri servizi;999;Altri servizi diversi n.a.c.;28/02/2019
296;3;0;120;773,2;LADU ROSALBA; ;ELEZIONI DEL PRESIDENTE DELLA REGIONE E DEL XVI CONSIGLIO REGIONALE DELLA SARDEGNA DEL 24 FEBBRAIO 2019 - LIQUIDAZIONE DELLE COMPETENZE AI COMPONENTI DEI SEGGI ELETTORALI.SEGGIO N. 3. DET. N. 64;28/02/2019;310;0;45;1;Spese correnti;3;Acquisto di beni e servizi;2;Acquisto di servizi;99;Altri servizi;999;Altri servizi diversi n.a.c.;28/02/2019
296;4;0;173,2;773,2;PINNA MICHELE; ;ELEZIONI DEL PRESIDENTE DELLA REGIONE E DEL XVI CONSIGLIO REGIONALE DELLA SARDEGNA DEL 24 FEBBRAIO 2019 - LIQUIDAZIONE DELLE COMPETENZE AI COMPONENTI DEI SEGGI ELETTORALI.SEGGIO N. 3. DET. N. 64;28/02/2019;310;0;45;1;Spese correnti;3;Acquisto di beni e servizi;2;Acquisto di servizi;99;Altri servizi;999;Altri servizi diversi n.a.c.;28/02/2019
296;5;0;120;773,2;PINTADU ANTONIO; ;ELEZIONI DEL PRESIDENTE DELLA REGIONE E DEL XVI CONSIGLIO REGIONALE DELLA SARDEGNA DEL 24 FEBBRAIO 2019 - LIQUIDAZIONE DELLE COMPETENZE AI COMPONENTI DEI SEGGI ELETTORALI.SEGGIO N. 3. DET. N. 64;28/02/2019;310;0;45;1;Spese correnti;3;Acquisto di beni e servizi;2;Acquisto di servizi;99;Altri servizi;999;Altri servizi diversi n.a.c.;28/02/2019
296;6;0;120;773,2;SECHI ALESSIA; ;ELEZIONI DEL PRESIDENTE DELLA REGIONE E DEL XVI CONSIGLIO REGIONALE DELLA SARDEGNA DEL 24 FEBBRAIO 2019 - LIQUIDAZIONE DELLE COMPETENZE AI COMPONENTI DEI SEGGI ELETTORALI.SEGGIO N. 3. DET. N. 64;28/02/2019;310;0;45;1;Spese correnti;3;Acquisto di beni e servizi;2;Acquisto di servizi;99;Altri servizi;999;Altri servizi diversi n.a.c.;28/02/2019
298;1;0;1.319,51;1.319,51;BANCO DI SARDEGNA S.p.A.;Z2709CDBCE;SALDO Fatt.n. 1015/000220/PAMAN  del 26/02/2019 Soc. app GRUPPO IVA BPER BANCA-ABI 1015.7-Albo Banche n.5169-F.do Interbancario Tutela Depositi-F.do Nazionale  Garanzia-Gruppo bancario BPER Banca S.p.A.n.5387.6-Sogg. dir. e coord. BPER Banca S.p.A.;04/03/2019;152;0;190;1;Spese correnti;3;Acquisto di beni e servizi;2;Acquisto di servizi;17;Servizi finanziari;999;Spese per servizi finanziari n.a.c.;04/03/2019
299;1;0;4.000,00;4.000,00;BANCO DI SARDEGNA S.p.A.;Z9023F268C;Fatt.n. 1015/000220/PAMAN del 26/02/2019 Soc. app GRUPPO IVA BPER BANCA-ABI 1015.7-Albo Banche n.5169-F.do Interbancario Tutela Depositi-F.do Nazionale  Garanzia-Gruppo bancario BPER Banca S.p.A.n.5387.6-Sogg. dir. e coord. BPER Banca S.p.A.;04/03/2019;152;0;191;1;Spese correnti;3;Acquisto di beni e servizi;2;Acquisto di servizi;17;Servizi finanziari;999;Spese per servizi finanziari n.a.c.;04/03/2019
301;1;0;235,06;235,06;TESORERIA DI ROMA SUCCURSALE 348; ;VERSAMENTO AL MINISTERO DELL'INTERNO DEI DIRITTTI RELATIVI ALLE C.I.E. ESMESSE NEL MESE DI GENNAIO 2019 - I QUINDICINA.;08/03/2019;290;0;17;1;Spese correnti;4;Trasferimenti correnti;1;Trasferimenti correnti a Amministrazioni Pubbliche;1;Trasferimenti correnti a Amministrazioni Centrali;1;Trasferimenti correnti a Ministeri;08/03/2019
302;1;0;117,53;117,53;TESORERIA DI ROMA SUCCURSALE 348; ;VERSAMENTO AL MINISTERO DELL'INTERNO DEI DIRITTTI RELATIVI ALLE C.I.E. ESMESSE NEL MESE DI GENNAIO 2019 - II QUINDICINA.;08/03/2019;290;0;17;1;Spese correnti;4;Trasferimenti correnti;1;Trasferimenti correnti a Amministrazioni Pubbliche;1;Trasferimenti correnti a Amministrazioni Centrali;1;Trasferimenti correnti a Ministeri;08/03/2019
303;1;0;200,38;200,38;OMESSO NOMINATIVO NEL RISPETTO DELLA NORMATIVA SULLA PROTEZIONE DATI PERSONALI; ;IMPEGNO DI SPESA LEGGE 162/1998 PIANI PERSONALIZZATI IN SOSTEGNO ALLE PERSONE CON DISABILITA' GRAVE - PROROGA DAL 01.01.2019 AL 30.04.2019;08/03/2019;1420;2;29;1;Spese correnti;4;Trasferimenti correnti;2;Trasferimenti correnti a Famiglie;2;Interventi assistenziali;999;Altri assegni e sussidi assistenziali;08/03/2019
304;1;0;128,35;128,35;OMESSO NOMINATIVO NEL RISPETTO DELLA NORMATIVA SULLA PROTEZIONE DATI PERSONALI; ;IMPEGNO DI SPESA LEGGE 162/1998 PIANI PERSONALIZZATI IN SOSTEGNO ALLE PERSONE CON DISABILITA' GRAVE - PROROGA DAL 01.01.2019 AL 30.04.2019;08/03/2019;1420;2;29;1;Spese correnti;4;Trasferimenti correnti;2;Trasferimenti correnti a Famiglie;2;Interventi assistenziali;999;Altri assegni e sussidi assistenziali;08/03/2019
305;1;0;209,33;209,33;OMESSO NOMINATIVO NEL RISPETTO DELLA NORMATIVA SULLA PROTEZIONE DATI PERSONALI; ;IMPEGNO DI SPESA LEGGE 162/1998 PIANI PERSONALIZZATI IN SOSTEGNO ALLE PERSONE CON DISABILITA' GRAVE - PROROGA DAL 01.01.2019 AL 30.04.2019;08/03/2019;1420;2;29;1;Spese correnti;4;Trasferimenti correnti;2;Trasferimenti correnti a Famiglie;2;Interventi assistenziali;999;Altri assegni e sussidi assistenziali;08/03/2019
306;1;0;128,88;128,88;OMESSO NOMINATIVO NEL RISPETTO DELLA NORMATIVA SULLA PROTEZIONE DATI PERSONALI; ;IMPEGNO DI SPESA LEGGE 162/1998 PIANI PERSONALIZZATI IN SOSTEGNO ALLE PERSONE CON DISABILITA' GRAVE - PROROGA DAL 01.01.2019 AL 30.04.2019;08/03/2019;1420;2;29;1;Spese correnti;4;Trasferimenti correnti;2;Trasferimenti correnti a Famiglie;2;Interventi assistenziali;999;Altri assegni e sussidi assistenziali;08/03/2019
307;1;0;200;200;OMESSO NOMINATIVO NEL RISPETTO DELLA NORMATIVA SULLA PROTEZIONE DATI PERSONALI; ;IMPEGNO DI SPESA LEGGE 162/1998 PIANI PERSONALIZZATI IN SOSTEGNO ALLE PERSONE CON DISABILITA' GRAVE - PROROGA DAL 01.01.2019 AL 30.04.2019;08/03/2019;1420;2;29;1;Spese correnti;4;Trasferimenti correnti;2;Trasferimenti correnti a Famiglie;2;Interventi assistenziali;999;Altri assegni e sussidi assistenziali;08/03/2019
308;1;0;161,66;161,66;OMESSO NOMINATIVO NEL RISPETTO DELLA NORMATIVA SULLA PROTEZIONE DATI PERSONALI; ;IMPEGNO DI SPESA LEGGE 162/1998 PIANI PERSONALIZZATI IN SOSTEGNO ALLE PERSONE CON DISABILITA' GRAVE - PROROGA DAL 01.01.2019 AL 30.04.2019;08/03/2019;1420;2;29;1;Spese correnti;4;Trasferimenti correnti;2;Trasferimenti correnti a Famiglie;2;Interventi assistenziali;999;Altri assegni e sussidi assistenziali;08/03/2019
309;1;0;173,2;173,2;OMESSO NOMINATIVO NEL RISPETTO DELLA NORMATIVA SULLA PROTEZIONE DATI PERSONALI; ;IMPEGNO DI SPESA LEGGE 162/1998 PIANI PERSONALIZZATI IN SOSTEGNO ALLE PERSONE CON DISABILITA' GRAVE - PROROGA DAL 01.01.2019 AL 30.04.2019;08/03/2019;1420;2;29;1;Spese correnti;4;Trasferimenti correnti;2;Trasferimenti correnti a Famiglie;2;Interventi assistenziali;999;Altri assegni e sussidi assistenziali;08/03/2019
310;1;0;156,25;156,25;OMESSO NOMINATIVO NEL RISPETTO DELLA NORMATIVA SULLA PROTEZIONE DATI PERSONALI; ;IMPEGNO DI SPESA LEGGE 162/1998 PIANI PERSONALIZZATI IN SOSTEGNO ALLE PERSONE CON DISABILITA' GRAVE - PROROGA DAL 01.01.2019 AL 30.04.2019;08/03/2019;1420;2;29;1;Spese correnti;4;Trasferimenti correnti;2;Trasferimenti correnti a Famiglie;2;Interventi assistenziali;999;Altri assegni e sussidi assistenziali;08/03/2019
311;1;0;187,5;187,5;OMESSO NOMINATIVO NEL RISPETTO DELLA NORMATIVA SULLA PROTEZIONE DATI PERSONALI; ;IMPEGNO DI SPESA LEGGE 162/1998 PIANI PERSONALIZZATI IN SOSTEGNO ALLE PERSONE CON DISABILITA' GRAVE - PROROGA DAL 01.01.2019 AL 30.04.2019;08/03/2019;1420;2;29;1;Spese correnti;4;Trasferimenti correnti;2;Trasferimenti correnti a Famiglie;2;Interventi assistenziali;999;Altri assegni e sussidi assistenziali;08/03/2019
312;1;0;175,29;175,29;OMESSO NOMINATIVO NEL RISPETTO DELLA NORMATIVA SULLA PROTEZIONE DATI PERSONALI; ;IMPEGNO DI SPESA LEGGE 162/1998 PIANI PERSONALIZZATI IN SOSTEGNO ALLE PERSONE CON DISABILITA' GRAVE - PROROGA DAL 01.01.2019 AL 30.04.2019;08/03/2019;1420;2;29;1;Spese correnti;4;Trasferimenti correnti;2;Trasferimenti correnti a Famiglie;2;Interventi assistenziali;999;Altri assegni e sussidi assistenziali;08/03/2019
313;1;0;180,15;180,15;OMESSO NOMINATIVO NEL RISPETTO DELLA NORMATIVA SULLA PROTEZIONE DATI PERSONALI; ;IMPEGNO DI SPESA LEGGE 162/1998 PIANI PERSONALIZZATI IN SOSTEGNO ALLE PERSONE CON DISABILITA' GRAVE - PROROGA DAL 01.01.2019 AL 30.04.2019;08/03/2019;1420;2;29;1;Spese correnti;4;Trasferimenti correnti;2;Trasferimenti correnti a Famiglie;2;Interventi assistenziali;999;Altri assegni e sussidi assistenziali;08/03/2019
314;1;0;375;375;OMESSO NOMINATIVO NEL RISPETTO DELLA NORMATIVA SULLA PROTEZIONE DATI PERSONALI; ;IMPEGNO DI SPESA LEGGE 162/1998 PIANI PERSONALIZZATI IN SOSTEGNO ALLE PERSONE CON DISABILITA' GRAVE - PROROGA DAL 01.01.2019 AL 30.04.2019;08/03/2019;1420;2;29;1;Spese correnti;4;Trasferimenti correnti;2;Trasferimenti correnti a Famiglie;2;Interventi assistenziali;999;Altri assegni e sussidi assistenziali;08/03/2019
315;1;0;155,6;155,6;OMESSO NOMINATIVO NEL RISPETTO DELLA NORMATIVA SULLA PROTEZIONE DATI PERSONALI; ;IMPEGNO DI SPESA LEGGE 162/1998 PIANI PERSONALIZZATI IN SOSTEGNO ALLE PERSONE CON DISABILITA' GRAVE - PROROGA DAL 01.01.2019 AL 30.04.2019;08/03/2019;1420;2;29;1;Spese correnti;4;Trasferimenti correnti;2;Trasferimenti correnti a Famiglie;2;Interventi assistenziali;999;Altri assegni e sussidi assistenziali;08/03/2019
316;1;0;152,33;152,33;OMESSO NOMINATIVO NEL RISPETTO DELLA NORMATIVA SULLA PROTEZIONE DATI PERSONALI; ;IMPEGNO DI SPESA LEGGE 162/1998 PIANI PERSONALIZZATI IN SOSTEGNO ALLE PERSONE CON DISABILITA' GRAVE - PROROGA DAL 01.01.2019 AL 30.04.2019;08/03/2019;1420;2;29;1;Spese correnti;4;Trasferimenti correnti;2;Trasferimenti correnti a Famiglie;2;Interventi assistenziali;999;Altri assegni e sussidi assistenziali;08/03/2019
317;1;0;1.011,30;1.011,30;OMESSO NOMINATIVO NEL RISPETTO DELLA NORMATIVA SULLA PROTEZIONE DATI PERSONALI; ;IMPEGNO DI SPESA LEGGE 162/1998 PIANI PERSONALIZZATI IN SOSTEGNO ALLE PERSONE CON DISABILITA' GRAVE - PROROGA DAL 01.01.2019 AL 30.04.2019;08/03/2019;1420;2;29;1;Spese correnti;4;Trasferimenti correnti;2;Trasferimenti correnti a Famiglie;2;Interventi assistenziali;999;Altri assegni e sussidi assistenziali;08/03/2019
318;1;0;571,2;571,2;OMESSO NOMINATIVO NEL RISPETTO DELLA NORMATIVA SULLA PROTEZIONE DATI PERSONALI; ;IMPEGNO DI SPESA LEGGE 162/1998 PIANI PERSONALIZZATI IN SOSTEGNO ALLE PERSONE CON DISABILITA' GRAVE - PROROGA DAL 01.01.2019 AL 30.04.2019;08/03/2019;1420;2;29;1;Spese correnti;4;Trasferimenti correnti;2;Trasferimenti correnti a Famiglie;2;Interventi assistenziali;999;Altri assegni e sussidi assistenziali;08/03/2019
319;1;0;264,79;264,79;OMESSO NOMINATIVO NEL RISPETTO DELLA NORMATIVA SULLA PROTEZIONE DATI PERSONALI; ;IMPEGNO DI SPESA LEGGE 162/1998 PIANI PERSONALIZZATI IN SOSTEGNO ALLE PERSONE CON DISABILITA' GRAVE - PROROGA DAL 01.01.2019 AL 30.04.2019;08/03/2019;1420;2;29;1;Spese correnti;4;Trasferimenti correnti;2;Trasferimenti correnti a Famiglie;2;Interventi assistenziali;999;Altri assegni e sussidi assistenziali;08/03/2019
320;1;0;105,92;105,92;OMESSO NOMINATIVO NEL RISPETTO DELLA NORMATIVA SULLA PROTEZIONE DATI PERSONALI; ;IMPEGNO DI SPESA LEGGE 162/1998 PIANI PERSONALIZZATI IN SOSTEGNO ALLE PERSONE CON DISABILITA' GRAVE - PROROGA DAL 01.01.2019 AL 30.04.2019;08/03/2019;1420;2;29;1;Spese correnti;4;Trasferimenti correnti;2;Trasferimenti correnti a Famiglie;2;Interventi assistenziali;999;Altri assegni e sussidi assistenziali;08/03/2019
321;1;0;609,32;609,32;OMESSO NOMINATIVO NEL RISPETTO DELLA NORMATIVA SULLA PROTEZIONE DATI PERSONALI; ;IMPEGNO DI SPESA LEGGE 162/1998 PIANI PERSONALIZZATI IN SOSTEGNO ALLE PERSONE CON DISABILITA' GRAVE - PROROGA DAL 01.01.2019 AL 30.04.2019;08/03/2019;1420;2;29;1;Spese correnti;4;Trasferimenti correnti;2;Trasferimenti correnti a Famiglie;2;Interventi assistenziali;999;Altri assegni e sussidi assistenziali;08/03/2019
322;1;0;100,32;100,32;OMESSO NOMINATIVO NEL RISPETTO DELLA NORMATIVA SULLA PROTEZIONE DATI PERSONALI; ;IMPEGNO DI SPESA LEGGE 162/1998 PIANI PERSONALIZZATI IN SOSTEGNO ALLE PERSONE CON DISABILITA' GRAVE - PROROGA DAL 01.01.2019 AL 30.04.2019;08/03/2019;1420;2;29;1;Spese correnti;4;Trasferimenti correnti;2;Trasferimenti correnti a Famiglie;2;Interventi assistenziali;999;Altri assegni e sussidi assistenziali;08/03/2019
323;1;0;182,8;182,8;OMESSO NOMINATIVO NEL RISPETTO DELLA NORMATIVA SULLA PROTEZIONE DATI PERSONALI; ;IMPEGNO DI SPESA LEGGE 162/1998 PIANI PERSONALIZZATI IN SOSTEGNO ALLE PERSONE CON DISABILITA' GRAVE - PROROGA DAL 01.01.2019 AL 30.04.2019;08/03/2019;1420;2;29;1;Spese correnti;4;Trasferimenti correnti;2;Trasferimenti correnti a Famiglie;2;Interventi assistenziali;999;Altri assegni e sussidi assistenziali;08/03/2019
324;1;0;211,83;211,83;OMESSO NOMINATIVO NEL RISPETTO DELLA NORMATIVA SULLA PROTEZIONE DATI PERSONALI; ;IMPEGNO DI SPESA LEGGE 162/1998 PIANI PERSONALIZZATI IN SOSTEGNO ALLE PERSONE CON DISABILITA' GRAVE - PROROGA DAL 01.01.2019 AL 30.04.2019;08/03/2019;1420;2;29;1;Spese correnti;4;Trasferimenti correnti;2;Trasferimenti correnti a Famiglie;2;Interventi assistenziali;999;Altri assegni e sussidi assistenziali;08/03/2019
325;1;0;166,44;166,44;OMESSO NOMINATIVO NEL RISPETTO DELLA NORMATIVA SULLA PROTEZIONE DATI PERSONALI; ;IMPEGNO DI SPESA LEGGE 162/1998 PIANI PERSONALIZZATI IN SOSTEGNO ALLE PERSONE CON DISABILITA' GRAVE - PROROGA DAL 01.01.2019 AL 30.04.2019;08/03/2019;1420;2;29;1;Spese correnti;4;Trasferimenti correnti;2;Trasferimenti correnti a Famiglie;2;Interventi assistenziali;999;Altri assegni e sussidi assistenziali;08/03/2019
326;1;0;487,45;487,45;OMESSO NOMINATIVO NEL RISPETTO DELLA NORMATIVA SULLA PROTEZIONE DATI PERSONALI; ;IMPEGNO DI SPESA LEGGE 162/1998 PIANI PERSONALIZZATI IN SOSTEGNO ALLE PERSONE CON DISABILITA' GRAVE - PROROGA DAL 01.01.2019 AL 30.04.2019;08/03/2019;1420;2;29;1;Spese correnti;4;Trasferimenti correnti;2;Trasferimenti correnti a Famiglie;2;Interventi assistenziali;999;Altri assegni e sussidi assistenziali;08/03/2019
327;1;0;300;300;OMESSO NOMINATIVO NEL RISPETTO DELLA NORMATIVA SULLA PROTEZIONE DATI PERSONALI; ;IMPEGNO DI SPESA PER CONTRIBUTO A FAVORE DI CITTADINI SOFFERENTI MENTALI INSERITI IN STRUTTURE RESIDENZIALI - ANNUALITA' 2019;08/03/2019;1434;0;26;1;Spese correnti;4;Trasferimenti correnti;2;Trasferimenti correnti a Famiglie;2;Interventi assistenziali;999;Altri assegni e sussidi assistenziali;08/03/2019
328;1;0;496,54;496,54;OMESSO NOMINATIVO NEL RISPETTO DELLA NORMATIVA SULLA PROTEZIONE DATI PERSONALI; ;IMPEGNO DI SPESA E PRESA IN CARICO L.R. 11/85 PROVVIDENZE A FAVORE DI NEFROPATICI - ANNO 2019;08/03/2019;1438;0;28;1;Spese correnti;4;Trasferimenti correnti;2;Trasferimenti correnti a Famiglie;2;Interventi assistenziali;999;Altri assegni e sussidi assistenziali;08/03/2019
329;1;0;888,4;888,4;OMESSO NOMINATIVO NEL RISPETTO DELLA NORMATIVA SULLA PROTEZIONE DATI PERSONALI; ;CONTRIBUTO REGIONE LEGGI DI SETTORE;08/03/2019;1438;0;290;1;Spese correnti;4;Trasferimenti correnti;2;Trasferimenti correnti a Famiglie;2;Interventi assistenziali;999;Altri assegni e sussidi assistenziali;08/03/2019
330;1;0;1.159,00;1.159,00;MUNTONI MARIO;ZD526DA277;"Fatt.n. 4/2019 del 01/03/2019 Operazione con ""scissione dei pagamenti"" art. 17-ter DPR 633/72";08/03/2019;310;0;38;1;Spese correnti;3;Acquisto di beni e servizi;2;Acquisto di servizi;99;Altri servizi;999;Altri servizi diversi n.a.c.;08/03/2019
331;1;0;212,13;212,13;DNA RANDAGIO;ZD021761F1;Fatt.n. 40/PA del 04/03/2019;08/03/2019;1349;0;33;1;Spese correnti;3;Acquisto di beni e servizi;2;Acquisto di servizi;15;Contratti di servizio pubblico;11;Contratti di servizio per la lotta al randagismo;08/03/2019
332;1;0;2.023,19;2.023,19;COOP. SPES a r.l.;Z422136A24;Fatt.n. 4 PA del 28/02/2019;08/03/2019;118;5;8;1;Spese correnti;3;Acquisto di beni e servizi;2;Acquisto di servizi;13;Servizi ausiliari per il funzionamento dell'ente;2;Servizi di pulizia e lavanderia;08/03/2019
333;1;0;8.955,65;8.955,65;MURGIA GIOVANNI MARIA;Z1724E1523;Fatt.n. 2/E / pa del 28/02/2019;08/03/2019;654;0;10;1;Spese correnti;3;Acquisto di beni e servizi;2;Acquisto di servizi;15;Contratti di servizio pubblico;6;Contratti di servizio per le mense scolastiche;08/03/2019
334;1;0;231,8;231,8;FIORI MARIO;Z5D25F48A9;Fatt.n. FATTPA 3_19 del 04/03/2019;08/03/2019;1300;8;325;1;Spese correnti;3;Acquisto di beni e servizi;1;Acquisto di beni;2;Altri beni di consumo;2;Carburanti, combustibili e lubrificanti;08/03/2019
335;1;0;1.210,00;1.210,00;MONGILI FRANCO;Z6F274D0CE;Fatt.n. 1/E / PA del 06/03/2019;08/03/2019;3121;0;46;2;Spese in conto capitale;2;Investimenti fissi lordi e acquisto di terreni;1;Beni materiali;9;Beni immobili;12;Infrastrutture stradali;08/03/2019
336;1;0;381,31;381,31;"EDILCAMPUS S.N.C. DI CAMPUS MASSIMILIANO &amp; CAMPUS";ZBD255BCBC;Fatt.n. 1/PA del 31/01/2019;08/03/2019;1422;0;276;1;Spese correnti;3;Acquisto di beni e servizi;1;Acquisto di beni;2;Altri beni di consumo;999;Altri beni e materiali di consumo n.a.c.;08/03/2019
337;1;0;2.549,96;2.549,96;DEIOSSO ANTONIO;ZC423331D0;Fatt.n. FATTPA 6_19 del 23/02/2019;08/03/2019;2098;0;102;2;Spese in conto capitale;2;Investimenti fissi lordi e acquisto di terreni;3;Beni immateriali;5;Incarichi professionali per la realizzazione di investimenti;1;Incarichi professionali per la realizzazione di investimenti;08/03/2019
338;1;0;976;976;MC IMPIANTI di COILADU MAURO;Z0C2751A21;Fatt.n. 10/FE del 01/03/2019;08/03/2019;255;0;44;1;Spese correnti;3;Acquisto di beni e servizi;2;Acquisto di servizi;9;Manutenzione ordinaria e riparazioni;8;Manutenzione ordinaria e riparazioni di beni immobili;08/03/2019
339;1;0;3.548,03;3.548,03;PUDDU PALMIRO;Z1B261BC05;Fatt.n. 3 del 01/03/2019;08/03/2019;1302;0;14;1;Spese correnti;3;Acquisto di beni e servizi;2;Acquisto di servizi;13;Servizi ausiliari per il funzionamento dell'ente;999;Altri servizi ausiliari n.a.c.;08/03/2019
340;1;0;732,07;732,07;"EDILCAMPUS S.N.C. DI CAMPUS MASSIMILIANO &amp; CAMPUS";Z3D2767C8A;Fatt.n. 2/PA del 28/02/2019;08/03/2019;255;0;62;1;Spese correnti;3;Acquisto di beni e servizi;2;Acquisto di servizi;9;Manutenzione ordinaria e riparazioni;8;Manutenzione ordinaria e riparazioni di beni immobili;08/03/2019
341;1;0;108,72;108,72;OMESSO NOMINATIVO NEL RISPETTO DELLA NORMATIVA SULLA PROTEZIONE DATI PERSONALI; ;IMPEGNO DI SPESA PER PIANI PERSONALIZZATI IN SOSTEGNO DELLE PERSONE CON DISABILITA' GRAVE DI CUI ALLA L.162/1998 -DGR 55/12 DEL 31.12.2017.;11/03/2019;1420;2;142;1;Spese correnti;4;Trasferimenti correnti;2;Trasferimenti correnti a Famiglie;2;Interventi assistenziali;999;Altri assegni e sussidi assistenziali;11/03/2019
342;1;0;300;300;OMESSO NOMINATIVO NEL RISPETTO DELLA NORMATIVA SULLA PROTEZIONE DATI PERSONALI; ;SERVIZI ALLA PERSONA-IMPEGNO DI SPESA PER CONTRIBUTO ECONOMICO.;11/03/2019;1434;0;61;1;Spese correnti;4;Trasferimenti correnti;2;Trasferimenti correnti a Famiglie;2;Interventi assistenziali;999;Altri assegni e sussidi assistenziali;11/03/2019
343;1;0;150;150;OMESSO NOMINATIVO NEL RISPETTO DELLA NORMATIVA SULLA PROTEZIONE DATI PERSONALI; ;SERVIZI ALLA PERSONA-IMPEGNO DI SPESA PER CONTRIBUTO ECONOMICO.;11/03/2019;1434;0;61;1;Spese correnti;4;Trasferimenti correnti;2;Trasferimenti correnti a Famiglie;2;Interventi assistenziali;999;Altri assegni e sussidi assistenziali;11/03/2019
344;1;0;8.019,68;8.019,68;OMESSO NOMINATIVO NEL RISPETTO DELLA NORMATIVA SULLA PROTEZIONE DATI PERSONALI; ;IMPEGNO DI SPESA LEGGE 162/1998 PIANI PERSONALIZZATI IN SOSTEGNO ALLE PERSONE CON DISABILITA' GRAVE - PROROGA DAL 01.01.2019 AL 30.04.2019;11/03/2019;1420;2;29;1;Spese correnti;4;Trasferimenti correnti;2;Trasferimenti correnti a Famiglie;2;Interventi assistenziali;999;Altri assegni e sussidi assistenziali;11/03/2019
345;1;0;557,52;557,52;OMESSO NOMINATIVO NEL RISPETTO DELLA NORMATIVA SULLA PROTEZIONE DATI PERSONALI; ;IMPEGNO DI SPESA E PRESA IN CARICO L.R. 11/85 PROVVIDENZE A FAVORE DI NEFROPATICI - ANNO 2019;11/03/2019;1438;0;28;1;Spese correnti;4;Trasferimenti correnti;2;Trasferimenti correnti a Famiglie;2;Interventi assistenziali;999;Altri assegni e sussidi assistenziali;11/03/2019
346;1;0;371,65;371,65;OMESSO NOMINATIVO NEL RISPETTO DELLA NORMATIVA SULLA PROTEZIONE DATI PERSONALI; ;CONTRIBUTO REGIONE LEGGI DI SETTORE;11/03/2019;1438;0;290;1;Spese correnti;4;Trasferimenti correnti;2;Trasferimenti correnti a Famiglie;2;Interventi assistenziali;999;Altri assegni e sussidi assistenziali;11/03/2019
347;1;0;131,98;131,98;OMESSO NOMINATIVO NEL RISPETTO DELLA NORMATIVA SULLA PROTEZIONE DATI PERSONALI; ;IMPEGNO DI SPESA LEGGE 162/1998 PIANI PERSONALIZZATI IN SOSTEGNO ALLE PERSONE CON DISABILITA' GRAVE - PROROGA DAL 01.01.2019 AL 30.04.2019;11/03/2019;1420;2;29;1;Spese correnti;4;Trasferimenti correnti;2;Trasferimenti correnti a Famiglie;2;Interventi assistenziali;999;Altri assegni e sussidi assistenziali;11/03/2019
348;1;0;304;304;OMESSO NOMINATIVO NEL RISPETTO DELLA NORMATIVA SULLA PROTEZIONE DATI PERSONALI; ;IMPEGNO DI SPESA LEGGE 162/1998 PIANI PERSONALIZZATI IN SOSTEGNO ALLE PERSONE CON DISABILITA' GRAVE - PROROGA DAL 01.01.2019 AL 30.04.2019;11/03/2019;1420;2;29;1;Spese correnti;4;Trasferimenti correnti;2;Trasferimenti correnti a Famiglie;2;Interventi assistenziali;999;Altri assegni e sussidi assistenziali;11/03/2019
349;1;0;5.294,80;5.294,80;SOTGIU GIUSEPPE;ZB9273D42E;Fatt.n. 3/PA del 06/03/2019 Lavori di Manutenzione Straordinaria_ CIG ZB9273D42E, DET 50 DEL 20-02-2019;12/03/2019;3122;0;71;2;Spese in conto capitale;5;Altre spese in conto capitale;99;Altre spese in conto capitale n.a.c.;99;Altre spese in conto capitale n.a.c.;999;Altre spese in conto capitale n.a.c.;12/03/2019
350;1;0;122;366;E-DISTRIBUZIONE SPA;Z1F2780868;Fatt.n. 0000919900000902 del 04/03/2019;12/03/2019;3121;0;70;2;Spese in conto capitale;2;Investimenti fissi lordi e acquisto di terreni;1;Beni materiali;9;Beni immobili;12;Infrastrutture stradali;12/03/2019
350;2;0;122;366;E-DISTRIBUZIONE SPA;Z1F2780868;Fatt.n. 0000919900000899 del 04/03/2019;12/03/2019;3121;0;70;2;Spese in conto capitale;2;Investimenti fissi lordi e acquisto di terreni;1;Beni materiali;9;Beni immobili;12;Infrastrutture stradali;12/03/2019
350;3;0;122;366;E-DISTRIBUZIONE SPA;Z1F2780868;Fatt.n. 0000919900000910 del 04/03/2019;12/03/2019;3121;0;70;2;Spese in conto capitale;2;Investimenti fissi lordi e acquisto di terreni;1;Beni materiali;9;Beni immobili;12;Infrastrutture stradali;12/03/2019
351;1;0;780,8;780,8;IRIDEOS SPA;ZEB2748951;Fatt.n. 0012001112 del 31/12/2018;12/03/2019;118;3;41;1;Spese correnti;3;Acquisto di beni e servizi;2;Acquisto di servizi;5;Utenze e canoni;1;Telefonia fissa;12/03/2019
352;1;0;1.140,01;1.140,01;MESU E RIOS;Z292773752;Fatt.n. 21/PA del 08/03/2019 DEST.MERCE COMUNE DI TULA - SCUOLA MATERNA - VIA P.NENNI - TULA (SS) DAS N. 222799 DEL 07/03/2019 .;13/03/2019;82;4;64;1;Spese correnti;3;Acquisto di beni e servizi;1;Acquisto di beni;2;Altri beni di consumo;2;Carburanti, combustibili e lubrificanti;13/03/2019
353;1;0;1.368,00;1.368,00;MESU E RIOS;Z292773752;Fatt.n. 20/PA del 08/03/2019 DEST.MERCE COMUNE DI TULA - SCUOLA ELEMENTARE - VIA R. CANALIS - TULA (SS) DAS N. 222800 DEL 07/03/2019 .;13/03/2019;582;4;66;1;Spese correnti;3;Acquisto di beni e servizi;1;Acquisto di beni;2;Altri beni di consumo;2;Carburanti, combustibili e lubrificanti;13/03/2019
354;1;0;1.140,01;1.140,01;MESU E RIOS;Z292773752;Fatt.n. 19/PA del 08/03/2019 DEST.MERCE COMUNE DI TULA - SCUOLA MEDIA - VIA R. CANALIS - TULA (SS) DAS N. 222801 DEL 07/03/2019 .;13/03/2019;616;4;67;1;Spese correnti;3;Acquisto di beni e servizi;1;Acquisto di beni;2;Altri beni di consumo;2;Carburanti, combustibili e lubrificanti;13/03/2019
355;1;0;342;342;MESU E RIOS;Z292773752;Fatt.n. 18/PA del 08/03/2019 DEST.MERCE COMUNE DI TULA - CENTRO DIURNO BIBLIOTECA - CORSO REPUBBLICA - TULA (SS) DAS N. 222802 DEL 07/03/2019 .;13/03/2019;714;4;68;1;Spese correnti;3;Acquisto di beni e servizi;1;Acquisto di beni;2;Altri beni di consumo;2;Carburanti, combustibili e lubrificanti;13/03/2019
356;1;0;1.140,01;1.140,01;MESU E RIOS;Z292773752;Fatt.n. 17/PA del 08/03/2019 DEST.MERCE COMUNE DI TULA - CASA COMUNALE - CORSO REPUBBLICA - TULA (SS) DAS N. 222803 DEL 07/03/2019 .;13/03/2019;564;4;65;1;Spese correnti;3;Acquisto di beni e servizi;1;Acquisto di beni;2;Altri beni di consumo;2;Carburanti, combustibili e lubrificanti;13/03/2019
357;1;0;72,79;72,79;ENEL ENERGIA;Z6C22BB7C0;Fatt.n. 003014593188 del 08/03/2019;13/03/2019;1013;0;61;1;Spese correnti;3;Acquisto di beni e servizi;2;Acquisto di servizi;5;Utenze e canoni;4;Energia elettrica;13/03/2019
358;1;0;229,79;229,79;ENEL ENERGIA;Z86273D03D;Fatt.n. 003014343463 del 08/03/2019;13/03/2019;1300;0;57;1;Spese correnti;3;Acquisto di beni e servizi;1;Acquisto di beni;2;Altri beni di consumo;999;Altri beni e materiali di consumo n.a.c.;13/03/2019
359;1;0;217,61;217,61;ENEL ENERGIA;Z83225B9A2;Fatt.n. 003014343465 del 08/03/2019;13/03/2019;1488;3;28;1;Spese correnti;3;Acquisto di beni e servizi;2;Acquisto di servizi;5;Utenze e canoni;4;Energia elettrica;13/03/2019
360;1;0;105,42;105,42;ENEL ENERGIA;Z6027244AC;Fatt.n. 003014343460 del 08/03/2019;13/03/2019;1012;4;19;1;Spese correnti;3;Acquisto di beni e servizi;2;Acquisto di servizi;5;Utenze e canoni;4;Energia elettrica;13/03/2019
361;1;0;191,82;191,82;ENEL ENERGIA;Z6027244AC;Fatt.n. 003014343462 del 08/03/2019;13/03/2019;1012;4;19;1;Spese correnti;3;Acquisto di beni e servizi;2;Acquisto di servizi;5;Utenze e canoni;4;Energia elettrica;13/03/2019
362;1;0;26,29;26,29;ENEL ENERGIA;Z6027244AC;Fatt.n. 003014585187 del 08/03/2019;13/03/2019;1012;4;19;1;Spese correnti;3;Acquisto di beni e servizi;2;Acquisto di servizi;5;Utenze e canoni;4;Energia elettrica;13/03/2019
363;1;0;1.615,16;1.615,16;ENEL ENERGIA;Z6027244AC;Fatt.n. 003014343461 del 08/03/2019;13/03/2019;1012;4;19;1;Spese correnti;3;Acquisto di beni e servizi;2;Acquisto di servizi;5;Utenze e canoni;4;Energia elettrica;13/03/2019
364;1;0;921,55;921,55;ENEL ENERGIA;Z6027244AC;Fatt.n. 003014343459 del 08/03/2019;13/03/2019;1012;4;19;1;Spese correnti;3;Acquisto di beni e servizi;2;Acquisto di servizi;5;Utenze e canoni;4;Energia elettrica;13/03/2019
365;1;0;3.788,00;3.788,00;PORCU STEFANO; ;Fatt.n. 22 del 06/03/2019 Ft ex art.6 c.5 COMUNE DI TULA;13/03/2019;124;0;72;1;Spese correnti;3;Acquisto di beni e servizi;2;Acquisto di servizi;11;Prestazioni professionali e specialistiche;6;Patrocinio legale;13/03/2019
366;1;0;185,28;185,28;SERVIZIO ELETTRICO NAZIONALE - SERVIZIO DI MAGGIOR TUTE;Z6C22BB7C0;Fatt.n. 907157770720017 del 10/03/2019;13/03/2019;1013;0;61;1;Spese correnti;3;Acquisto di beni e servizi;2;Acquisto di servizi;5;Utenze e canoni;4;Energia elettrica;13/03/2019
367;1;0;79,46;79,46;SERVIZIO ELETTRICO NAZIONALE - SERVIZIO DI MAGGIOR TUTE;Z6C22BB7C0;Fatt.n. 907154150716017 del 10/03/2019;13/03/2019;1013;0;61;1;Spese correnti;3;Acquisto di beni e servizi;2;Acquisto di servizi;5;Utenze e canoni;4;Energia elettrica;13/03/2019
368;1;0;85,73;85,73;SERVIZIO ELETTRICO NAZIONALE - SERVIZIO DI MAGGIOR TUTE;Z3A273D24E;Fatt.n. 907152430000217 del 10/03/2019;13/03/2019;1012;4;56;1;Spese correnti;3;Acquisto di beni e servizi;2;Acquisto di servizi;5;Utenze e canoni;4;Energia elettrica;13/03/2019
369;1;0;84,56;84,56;SERVIZIO ELETTRICO NAZIONALE - SERVIZIO DI MAGGIOR TUTE;Z3A273D24E;Fatt.n. 907152430000317 del 10/03/2019;13/03/2019;1012;4;56;1;Spese correnti;3;Acquisto di beni e servizi;2;Acquisto di servizi;5;Utenze e canoni;4;Energia elettrica;13/03/2019
370;1;0;42,61;42,61;SERVIZIO ELETTRICO NAZIONALE - SERVIZIO DI MAGGIOR TUTE;Z3A273D24E;Fatt.n. 907152430000417 del 10/03/2019;13/03/2019;1012;4;56;1;Spese correnti;3;Acquisto di beni e servizi;2;Acquisto di servizi;5;Utenze e canoni;4;Energia elettrica;13/03/2019
371;1;0;41,45;41,45;OMESSO NOMINATIVO NEL RISPETTO DELLA NORMATIVA SULLA PROTEZIONE DATI PERSONALI; ;LEGGE 448/1998 E LEGGE 62/2000- AZIONI DI SOSTEGNO AL DIRITTO ALLO STUDIO 2016.IMPEGNO DI SPESA;13/03/2019;606;1;75;1;Spese correnti;4;Trasferimenti correnti;2;Trasferimenti correnti a Famiglie;5;Altri trasferimenti a famiglie;999;Altri trasferimenti a famiglie n.a.c.;13/03/2019
372;1;0;474,16;474,16;OMESSO NOMINATIVO NEL RISPETTO DELLA NORMATIVA SULLA PROTEZIONE DATI PERSONALI; ;LEGGE 448/1998 E LEGGE 62/2000- AZIONI DI SOSTEGNO AL DIRITTO ALLO STUDIO 2016.IMPEGNO DI SPESA;13/03/2019;606;1;75;1;Spese correnti;4;Trasferimenti correnti;2;Trasferimenti correnti a Famiglie;5;Altri trasferimenti a famiglie;999;Altri trasferimenti a famiglie n.a.c.;13/03/2019
373;1;0;297,11;297,11;OMESSO NOMINATIVO NEL RISPETTO DELLA NORMATIVA SULLA PROTEZIONE DATI PERSONALI; ;LEGGE 448/1998 E LEGGE 62/2000- AZIONI DI SOSTEGNO AL DIRITTO ALLO STUDIO 2016.IMPEGNO DI SPESA;13/03/2019;606;1;75;1;Spese correnti;4;Trasferimenti correnti;2;Trasferimenti correnti a Famiglie;5;Altri trasferimenti a famiglie;999;Altri trasferimenti a famiglie n.a.c.;13/03/2019
374;1;0;173;173;OMESSO NOMINATIVO NEL RISPETTO DELLA NORMATIVA SULLA PROTEZIONE DATI PERSONALI; ;LEGGE 448/1998 E LEGGE 62/2000- AZIONI DI SOSTEGNO AL DIRITTO ALLO STUDIO 2016.IMPEGNO DI SPESA;13/03/2019;606;1;75;1;Spese correnti;4;Trasferimenti correnti;2;Trasferimenti correnti a Famiglie;5;Altri trasferimenti a famiglie;999;Altri trasferimenti a famiglie n.a.c.;13/03/2019
375;1;0;117;117;OMESSO NOMINATIVO NEL RISPETTO DELLA NORMATIVA SULLA PROTEZIONE DATI PERSONALI; ;LEGGE 448/1998 E LEGGE 62/2000- AZIONI DI SOSTEGNO AL DIRITTO ALLO STUDIO 2016.IMPEGNO DI SPESA;13/03/2019;606;1;75;1;Spese correnti;4;Trasferimenti correnti;2;Trasferimenti correnti a Famiglie;5;Altri trasferimenti a famiglie;999;Altri trasferimenti a famiglie n.a.c.;13/03/2019
376;1;0;147,8;147,8;OMESSO NOMINATIVO NEL RISPETTO DELLA NORMATIVA SULLA PROTEZIONE DATI PERSONALI; ;LEGGE 448/1998 E LEGGE 62/2000- AZIONI DI SOSTEGNO AL DIRITTO ALLO STUDIO 2016.IMPEGNO DI SPESA;13/03/2019;606;1;75;1;Spese correnti;4;Trasferimenti correnti;2;Trasferimenti correnti a Famiglie;5;Altri trasferimenti a famiglie;999;Altri trasferimenti a famiglie n.a.c.;13/03/2019
377;1;0;334,25;334,25;OMESSO NOMINATIVO NEL RISPETTO DELLA NORMATIVA SULLA PROTEZIONE DATI PERSONALI; ;LEGGE 448/1998 E LEGGE 62/2000- AZIONI DI SOSTEGNO AL DIRITTO ALLO STUDIO 2016.IMPEGNO DI SPESA;13/03/2019;606;1;75;1;Spese correnti;4;Trasferimenti correnti;2;Trasferimenti correnti a Famiglie;5;Altri trasferimenti a famiglie;999;Altri trasferimenti a famiglie n.a.c.;13/03/2019
378;1;0;165;165;OMESSO NOMINATIVO NEL RISPETTO DELLA NORMATIVA SULLA PROTEZIONE DATI PERSONALI; ;LEGGE 448/1998 E LEGGE 62/2000- AZIONI DI SOSTEGNO AL DIRITTO ALLO STUDIO 2016.IMPEGNO DI SPESA;13/03/2019;606;1;75;1;Spese correnti;4;Trasferimenti correnti;2;Trasferimenti correnti a Famiglie;5;Altri trasferimenti a famiglie;999;Altri trasferimenti a famiglie n.a.c.;13/03/2019
379;1;0;219;219;OMESSO NOMINATIVO NEL RISPETTO DELLA NORMATIVA SULLA PROTEZIONE DATI PERSONALI; ;LEGGE 448/1998 E LEGGE 62/2000- AZIONI DI SOSTEGNO AL DIRITTO ALLO STUDIO 2016.IMPEGNO DI SPESA;13/03/2019;606;1;75;1;Spese correnti;4;Trasferimenti correnti;2;Trasferimenti correnti a Famiglie;5;Altri trasferimenti a famiglie;999;Altri trasferimenti a famiglie n.a.c.;13/03/2019
380;1;0;174,89;174,89;OMESSO NOMINATIVO NEL RISPETTO DELLA NORMATIVA SULLA PROTEZIONE DATI PERSONALI; ;LEGGE 448/1998 E LEGGE 62/2000- AZIONI DI SOSTEGNO AL DIRITTO ALLO STUDIO 2016.IMPEGNO DI SPESA;13/03/2019;606;1;75;1;Spese correnti;4;Trasferimenti correnti;2;Trasferimenti correnti a Famiglie;5;Altri trasferimenti a famiglie;999;Altri trasferimenti a famiglie n.a.c.;13/03/2019
381;1;0;74;74;OMESSO NOMINATIVO NEL RISPETTO DELLA NORMATIVA SULLA PROTEZIONE DATI PERSONALI; ;LEGGE 448/1998 E LEGGE 62/2000- AZIONI DI SOSTEGNO AL DIRITTO ALLO STUDIO 2016.IMPEGNO DI SPESA;13/03/2019;606;1;75;1;Spese correnti;4;Trasferimenti correnti;2;Trasferimenti correnti a Famiglie;5;Altri trasferimenti a famiglie;999;Altri trasferimenti a famiglie n.a.c.;13/03/2019
382;1;0;37;37;OMESSO NOMINATIVO NEL RISPETTO DELLA NORMATIVA SULLA PROTEZIONE DATI PERSONALI; ;LEGGE 448/1998 E LEGGE 62/2000- AZIONI DI SOSTEGNO AL DIRITTO ALLO STUDIO 2016.IMPEGNO DI SPESA;13/03/2019;606;1;75;1;Spese correnti;4;Trasferimenti correnti;2;Trasferimenti correnti a Famiglie;5;Altri trasferimenti a famiglie;999;Altri trasferimenti a famiglie n.a.c.;13/03/2019
383;1;0;37;37;OMESSO NOMINATIVO NEL RISPETTO DELLA NORMATIVA SULLA PROTEZIONE DATI PERSONALI; ;LEGGE 448/1998 E LEGGE 62/2000- AZIONI DI SOSTEGNO AL DIRITTO ALLO STUDIO 2016.IMPEGNO DI SPESA;13/03/2019;606;1;75;1;Spese correnti;4;Trasferimenti correnti;2;Trasferimenti correnti a Famiglie;5;Altri trasferimenti a famiglie;999;Altri trasferimenti a famiglie n.a.c.;13/03/2019
384;1;0;44,8;44,8;OMESSO NOMINATIVO NEL RISPETTO DELLA NORMATIVA SULLA PROTEZIONE DATI PERSONALI; ;LEGGE 448/1998 E LEGGE 62/2000- AZIONI DI SOSTEGNO AL DIRITTO ALLO STUDIO 2016.IMPEGNO DI SPESA;13/03/2019;606;1;75;1;Spese correnti;4;Trasferimenti correnti;2;Trasferimenti correnti a Famiglie;5;Altri trasferimenti a famiglie;999;Altri trasferimenti a famiglie n.a.c.;13/03/2019
385;1;0;260,22;260,22;OMESSO NOMINATIVO NEL RISPETTO DELLA NORMATIVA SULLA PROTEZIONE DATI PERSONALI; ;IMPEGNO DI SPESA PER DIRITTO ALLO STUDIO -RIPARTIZIONE PIANO REGIONALE.;13/03/2019;606;1;353;1;Spese correnti;4;Trasferimenti correnti;2;Trasferimenti correnti a Famiglie;5;Altri trasferimenti a famiglie;999;Altri trasferimenti a famiglie n.a.c.;13/03/2019
386;1;0;518,45;518,45;OMESSO NOMINATIVO NEL RISPETTO DELLA NORMATIVA SULLA PROTEZIONE DATI PERSONALI; ;IMPEGNO DI SPESA PER DIRITTO ALLO STUDIO -RIPARTIZIONE PIANO REGIONALE.;13/03/2019;606;1;353;1;Spese correnti;4;Trasferimenti correnti;2;Trasferimenti correnti a Famiglie;5;Altri trasferimenti a famiglie;999;Altri trasferimenti a famiglie n.a.c.;13/03/2019
387;1;0;278,52;278,52;OMESSO NOMINATIVO NEL RISPETTO DELLA NORMATIVA SULLA PROTEZIONE DATI PERSONALI; ;IMPEGNO DI SPESA PER DIRITTO ALLO STUDIO -RIPARTIZIONE PIANO REGIONALE.;13/03/2019;606;1;353;1;Spese correnti;4;Trasferimenti correnti;2;Trasferimenti correnti a Famiglie;5;Altri trasferimenti a famiglie;999;Altri trasferimenti a famiglie n.a.c.;13/03/2019
388;1;0;120,4;120,4;OMESSO NOMINATIVO NEL RISPETTO DELLA NORMATIVA SULLA PROTEZIONE DATI PERSONALI; ;IMPEGNO DI SPESA PER DIRITTO ALLO STUDIO -RIPARTIZIONE PIANO REGIONALE.;13/03/2019;606;1;353;1;Spese correnti;4;Trasferimenti correnti;2;Trasferimenti correnti a Famiglie;5;Altri trasferimenti a famiglie;999;Altri trasferimenti a famiglie n.a.c.;13/03/2019
389;1;0;135,75;135,75;OMESSO NOMINATIVO NEL RISPETTO DELLA NORMATIVA SULLA PROTEZIONE DATI PERSONALI; ;IMPEGNO DI SPESA PER DIRITTO ALLO STUDIO -RIPARTIZIONE PIANO REGIONALE.;13/03/2019;606;1;353;1;Spese correnti;4;Trasferimenti correnti;2;Trasferimenti correnti a Famiglie;5;Altri trasferimenti a famiglie;999;Altri trasferimenti a famiglie n.a.c.;13/03/2019
390;1;0;233;233;OMESSO NOMINATIVO NEL RISPETTO DELLA NORMATIVA SULLA PROTEZIONE DATI PERSONALI; ;IMPEGNO DI SPESA PER DIRITTO ALLO STUDIO -RIPARTIZIONE PIANO REGIONALE.;13/03/2019;606;1;353;1;Spese correnti;4;Trasferimenti correnti;2;Trasferimenti correnti a Famiglie;5;Altri trasferimenti a famiglie;999;Altri trasferimenti a famiglie n.a.c.;13/03/2019
391;1;0;183,8;183,8;OMESSO NOMINATIVO NEL RISPETTO DELLA NORMATIVA SULLA PROTEZIONE DATI PERSONALI; ;IMPEGNO DI SPESA PER DIRITTO ALLO STUDIO -RIPARTIZIONE PIANO REGIONALE.;13/03/2019;606;1;353;1;Spese correnti;4;Trasferimenti correnti;2;Trasferimenti correnti a Famiglie;5;Altri trasferimenti a famiglie;999;Altri trasferimenti a famiglie n.a.c.;13/03/2019
392;1;0;78,25;78,25;OMESSO NOMINATIVO NEL RISPETTO DELLA NORMATIVA SULLA PROTEZIONE DATI PERSONALI; ;IMPEGNO DI SPESA PER DIRITTO ALLO STUDIO -RIPARTIZIONE PIANO REGIONALE.;13/03/2019;606;1;353;1;Spese correnti;4;Trasferimenti correnti;2;Trasferimenti correnti a Famiglie;5;Altri trasferimenti a famiglie;999;Altri trasferimenti a famiglie n.a.c.;13/03/2019
393;1;0;198,92;198,92;OMESSO NOMINATIVO NEL RISPETTO DELLA NORMATIVA SULLA PROTEZIONE DATI PERSONALI; ;IMPEGNO DI SPESA PER DIRITTO ALLO STUDIO -RIPARTIZIONE PIANO REGIONALE.;13/03/2019;606;1;353;1;Spese correnti;4;Trasferimenti correnti;2;Trasferimenti correnti a Famiglie;5;Altri trasferimenti a famiglie;999;Altri trasferimenti a famiglie n.a.c.;13/03/2019
394;1;0;221;221;OMESSO NOMINATIVO NEL RISPETTO DELLA NORMATIVA SULLA PROTEZIONE DATI PERSONALI; ;IMPEGNO DI SPESA PER DIRITTO ALLO STUDIO -RIPARTIZIONE PIANO REGIONALE.;13/03/2019;606;1;353;1;Spese correnti;4;Trasferimenti correnti;2;Trasferimenti correnti a Famiglie;5;Altri trasferimenti a famiglie;999;Altri trasferimenti a famiglie n.a.c.;13/03/2019
395;1;0;234,15;234,15;OMESSO NOMINATIVO NEL RISPETTO DELLA NORMATIVA SULLA PROTEZIONE DATI PERSONALI; ;IMPEGNO DI SPESA PER DIRITTO ALLO STUDIO -RIPARTIZIONE PIANO REGIONALE.;13/03/2019;606;1;353;1;Spese correnti;4;Trasferimenti correnti;2;Trasferimenti correnti a Famiglie;5;Altri trasferimenti a famiglie;999;Altri trasferimenti a famiglie n.a.c.;13/03/2019
396;1;0;67,35;67,35;OMESSO NOMINATIVO NEL RISPETTO DELLA NORMATIVA SULLA PROTEZIONE DATI PERSONALI; ;IMPEGNO DI SPESA PER DIRITTO ALLO STUDIO -RIPARTIZIONE PIANO REGIONALE.;13/03/2019;606;1;353;1;Spese correnti;4;Trasferimenti correnti;2;Trasferimenti correnti a Famiglie;5;Altri trasferimenti a famiglie;999;Altri trasferimenti a famiglie n.a.c.;13/03/2019
397;1;0;277,06;277,06;OMESSO NOMINATIVO NEL RISPETTO DELLA NORMATIVA SULLA PROTEZIONE DATI PERSONALI; ;IMPEGNO DI SPESA PER DIRITTO ALLO STUDIO -RIPARTIZIONE PIANO REGIONALE.;13/03/2019;606;1;353;1;Spese correnti;4;Trasferimenti correnti;2;Trasferimenti correnti a Famiglie;5;Altri trasferimenti a famiglie;999;Altri trasferimenti a famiglie n.a.c.;13/03/2019
398;1;0;210,5;210,5;OMESSO NOMINATIVO NEL RISPETTO DELLA NORMATIVA SULLA PROTEZIONE DATI PERSONALI; ;IMPEGNO DI SPESA PER DIRITTO ALLO STUDIO -RIPARTIZIONE PIANO REGIONALE.;13/03/2019;606;1;353;1;Spese correnti;4;Trasferimenti correnti;2;Trasferimenti correnti a Famiglie;5;Altri trasferimenti a famiglie;999;Altri trasferimenti a famiglie n.a.c.;13/03/2019
399;1;0;433,2;433,2;OMESSO NOMINATIVO NEL RISPETTO DELLA NORMATIVA SULLA PROTEZIONE DATI PERSONALI; ;IMPEGNO DI SPESA PER DIRITTO ALLO STUDIO -RIPARTIZIONE PIANO REGIONALE.;13/03/2019;606;1;353;1;Spese correnti;4;Trasferimenti correnti;2;Trasferimenti correnti a Famiglie;5;Altri trasferimenti a famiglie;999;Altri trasferimenti a famiglie n.a.c.;13/03/2019
400;1;0;2.440,00;2.440,00;EN.LI. GROUPE SRLS;ZA6256F435;Fatt.n. 2/37 del 08/03/2019;14/03/2019;152;0;283;1;Spese correnti;3;Acquisto di beni e servizi;2;Acquisto di servizi;17;Servizi finanziari;999;Spese per servizi finanziari n.a.c.;14/03/2019
401;1;0;315,25;315,25;SECHI ANNA RESP. SERV. FINANZ.TRIBUTI ECONOMATO; ;RIMBORSO MISSIONE AMMINISTRATORI. LIQ. N. 117;14/03/2019;14;4;0;1;Spese correnti;3;Acquisto di beni e servizi;2;Acquisto di servizi;1;Organi e incarichi istituzionali dell'amministrazione;2;Organi istituzionali dell'amministrazione - Rimborsi;14/03/2019
404;1;0;68;68;SECHI ANNA RESP. SERV. FINANZ.TRIBUTI ECONOMATO; ;RIMBORSO SPESE D'UFFICIO. LIQ. N. 117;14/03/2019;82;0;0;1;Spese correnti;3;Acquisto di beni e servizi;1;Acquisto di beni;2;Altri beni di consumo;1;Carta, cancelleria e stampati;14/03/2019
405;1;0;263,5;263,5;SECHI ANNA RESP. SERV. FINANZ.TRIBUTI ECONOMATO; ;RIMBORSO SPESE VARIE PER VV.FF. e versamenti. LIQ. N. 117;14/03/2019;122;0;0;1;Spese correnti;3;Acquisto di beni e servizi;2;Acquisto di servizi;99;Altri servizi;999;Altri servizi diversi n.a.c.;14/03/2019
406;1;0;384,29;384,29;SECHI ANNA RESP. SERV. FINANZ.TRIBUTI ECONOMATO; ;RIMBORSO QUOTA ANCI 2019. LIQ. N. 117;14/03/2019;134;0;0;1;Spese correnti;4;Trasferimenti correnti;1;Trasferimenti correnti a Amministrazioni Pubbliche;2;Trasferimenti correnti a Amministrazioni Locali;999;Trasferimenti correnti a altre Amministrazioni Locali n.a.c.;14/03/2019
408;1;0;31,6;31,6;SECHI ANNA RESP. SERV. FINANZ.TRIBUTI ECONOMATO; ;LAVORI DI COMPLETAMENTO ECOCENTRO COMUNALE II LOTTO. RIMB. SPESE NOTIFICA ESPROPRI. LIQ. N. 117;14/03/2019;3368;1;246;2;Spese in conto capitale;2;Investimenti fissi lordi e acquisto di terreni;1;Beni materiali;9;Beni immobili;999;Beni immobili n.a.c.;14/03/2019
409;1;0;370,61;370,61;ENEL ENERGIA;Z5C23A1DEC;Fatt.n. 003014706987 del 08/03/2019;15/03/2019;566;4;130;1;Spese correnti;3;Acquisto di beni e servizi;2;Acquisto di servizi;5;Utenze e canoni;4;Energia elettrica;15/03/2019
410;1;0;578,85;578,85;OMESSO NOMINATIVO NEL RISPETTO DELLA NORMATIVA SULLA PROTEZIONE DATI PERSONALI; ;IMPEGNO DI SPESA LEGGE 162/1998 PIANI PERSONALIZZATI IN SOSTEGNO ALLE PERSONE CON DISABILITA' GRAVE - PROROGA DAL 01.01.2019 AL 30.04.2019;15/03/2019;1420;2;29;1;Spese correnti;4;Trasferimenti correnti;2;Trasferimenti correnti a Famiglie;2;Interventi assistenziali;999;Altri assegni e sussidi assistenziali;15/03/2019
411;1;0;395,88;395,88;OMESSO NOMINATIVO NEL RISPETTO DELLA NORMATIVA SULLA PROTEZIONE DATI PERSONALI; ;IMPEGNO DI SPESA LEGGE 162/1998 PIANI PERSONALIZZATI IN SOSTEGNO ALLE PERSONE CON DISABILITA' GRAVE - PROROGA DAL 01.01.2019 AL 30.04.2019;15/03/2019;1420;2;29;1;Spese correnti;4;Trasferimenti correnti;2;Trasferimenti correnti a Famiglie;2;Interventi assistenziali;999;Altri assegni e sussidi assistenziali;15/03/2019
413;1;0;45,6;45,6;OMESSO NOMINATIVO NEL RISPETTO DELLA NORMATIVA SULLA PROTEZIONE DATI PERSONALI; ;IMPEGNO DI SPESA LEGGE 162/1998 PIANI PERSONALIZZATI IN SOSTEGNO ALLE PERSONE CON DISABILITA' GRAVE - PROROGA DAL 01.01.2019 AL 30.04.2019;15/03/2019;1420;2;29;1;Spese correnti;4;Trasferimenti correnti;2;Trasferimenti correnti a Famiglie;2;Interventi assistenziali;999;Altri assegni e sussidi assistenziali;15/03/2019
439;1;0;557,52;557,52;OMESSO NOMINATIVO NEL RISPETTO DELLA NORMATIVA SULLA PROTEZIONE DATI PERSONALI; ;IMPEGNO DI SPESA E PRESA IN CARICO L.R. 11/85 PROVVIDENZE A FAVORE DI NEFROPATICI - ANNO 2019;19/03/2019;1438;0;28;1;Spese correnti;4;Trasferimenti correnti;2;Trasferimenti correnti a Famiglie;2;Interventi assistenziali;999;Altri assegni e sussidi assistenziali;19/03/2019
440;1;0;3.474,59;3.474,59;CONSORZIO NETWORK ETICO;7391758FA7;Fatt.n. 2/544 del 14/03/2019;19/03/2019;1416;0;83;1;Spese correnti;3;Acquisto di beni e servizi;2;Acquisto di servizi;11;Prestazioni professionali e specialistiche;999;Altre prestazioni professionali e specialistiche n.a.c.;19/03/2019
441;1;0;5.004,06;5.004,06;CONSORZIO NETWORK ETICO;7654115782;Fatt.n. 2/545 del 14/03/2019;19/03/2019;1412;0;30;1;Spese correnti;3;Acquisto di beni e servizi;2;Acquisto di servizi;15;Contratti di servizio pubblico;9;Contratti di servizio di assistenza sociale domiciliare;19/03/2019
442;1;0;769,92;769,92;CONSORZIO NETWORK ETICO;7654115782;Fatt.n. 2/545 del 14/03/2019;19/03/2019;1413;0;31;1;Spese correnti;3;Acquisto di beni e servizi;2;Acquisto di servizi;99;Altri servizi;999;Altri servizi diversi n.a.c.;19/03/2019
443;1;0;123,26;123,26;ENEL ENERGIA;Z6C22BB7C0;Fatt.n. 003019581456 del 13/03/2019;19/03/2019;1013;0;61;1;Spese correnti;3;Acquisto di beni e servizi;2;Acquisto di servizi;5;Utenze e canoni;4;Energia elettrica;19/03/2019
444;1;0;2.986,80;2.986,80;HALLEY SARDEGNA SRL;Z352748E30;Fatt.n. 0000227 del 28/02/2019;19/03/2019;82;2;48;1;Spese correnti;3;Acquisto di beni e servizi;2;Acquisto di servizi;19;Servizi informatici e di telecomunicazioni;1;Gestione e manutenzione applicazioni;19/03/2019
445;1;0;847,69;847,69;NRG ITALIA SPA;Z651E12423;Fatt.n. 199223617 del 06/02/2019;19/03/2019;82;1;84;1;Spese correnti;3;Acquisto di beni e servizi;2;Acquisto di servizi;9;Manutenzione ordinaria e riparazioni;11;Manutenzione ordinaria e riparazioni di altri beni materiali;19/03/2019
446;1;0;1.098,00;1.098,00;ITM TELEMATICA;ZF72701749;SALDO Fatt.n. 2019    26  del 25/01/2019;19/03/2019;82;1;389;1;Spese correnti;3;Acquisto di beni e servizi;2;Acquisto di servizi;9;Manutenzione ordinaria e riparazioni;11;Manutenzione ordinaria e riparazioni di altri beni materiali;19/03/2019
447;1;0;1.427,40;1.427,40;HALLEY SARDEGNA SRL;Z352748E30;Fatt.n. 0000272 del 12/03/2019;19/03/2019;82;2;48;1;Spese correnti;3;Acquisto di beni e servizi;2;Acquisto di servizi;19;Servizi informatici e di telecomunicazioni;1;Gestione e manutenzione applicazioni;19/03/2019
448;1;0;255,2;255,2;ENEL ENERGIA;ZE4229C6A4;Fatt.n. 003014343464 del 08/03/2019;19/03/2019;824;0;39;1;Spese correnti;3;Acquisto di beni e servizi;2;Acquisto di servizi;5;Utenze e canoni;4;Energia elettrica;19/03/2019
449;1;0;1.056,00;1.056,00;COOP. NUOVE IDEE;Z52230BA0F;Fatt.n. 350E/V2 del 09/03/2019 Fattura clienti;19/03/2019;715;0;37;1;Spese correnti;3;Acquisto di beni e servizi;2;Acquisto di servizi;11;Prestazioni professionali e specialistiche;999;Altre prestazioni professionali e specialistiche n.a.c.;19/03/2019
450;1;0;14,12;36,1;IRIDEOS SPA;ZEB2748951;Fatt.n. 0012000362 del 15/02/2019;19/03/2019;118;3;41;1;Spese correnti;3;Acquisto di beni e servizi;2;Acquisto di servizi;5;Utenze e canoni;1;Telefonia fissa;19/03/2019
450;2;0;21,98;36,1;IRIDEOS SPA;ZEB2748951;Fatt.n. 0012000568 del 28/02/2019;19/03/2019;118;3;41;1;Spese correnti;3;Acquisto di beni e servizi;2;Acquisto di servizi;5;Utenze e canoni;1;Telefonia fissa;19/03/2019
451;1;0;1.026,76;1.026,76;POSTE ITALIANE Spa;Z8223E60A4;Fatt.n. 8719073938 del 18/03/2019 Fattura Elettronica relativa all'Identificativo Rendiconto 2100994497;19/03/2019;118;2;144;1;Spese correnti;3;Acquisto di beni e servizi;2;Acquisto di servizi;16;Servizi amministrativi;2;Spese postali;19/03/2019
452;1;0;83,95;83,95;TESORERIA DI ROMA SUCCURSALE 348; ;VERSAMENTO AL MINISTERO DELL'INTERNO DEI DIRITTI RELATIVI ALLE C.I.E. EMESSE NEL MESE DI FEBBRAIO 2019 -I QUIND.;20/03/2019;290;0;75;1;Spese correnti;4;Trasferimenti correnti;1;Trasferimenti correnti a Amministrazioni Pubbliche;1;Trasferimenti correnti a Amministrazioni Centrali;1;Trasferimenti correnti a Ministeri;20/03/2019
453;1;0;100,74;100,74;TESORERIA DI ROMA SUCCURSALE 348; ;VERSAMENTO AL MINISTERO DELL'INTERNO DEI DIRITTI RELATIVI ALLE C.I.E. EMESSE NEL MESE DI FEBBRAIO 2019 - II QUIND.;20/03/2019;290;0;75;1;Spese correnti;4;Trasferimenti correnti;1;Trasferimenti correnti a Amministrazioni Pubbliche;1;Trasferimenti correnti a Amministrazioni Centrali;1;Trasferimenti correnti a Ministeri;20/03/2019
455;1;0;313,69;313,69;TESORERIA PROV.LE DELLO STATO; ;VERSAMENTO CPDEL SU LAVORO STRAORDINARIO ELEZIONI REGIONALI;20/03/2019;310;0;0;1;Spese correnti;3;Acquisto di beni e servizi;2;Acquisto di servizi;99;Altri servizi;999;Altri servizi diversi n.a.c.;20/03/2019
456;1;0;112,03;112,03;TESORERIA PROV.LE DELLO STATO; ;VERSAMENTO IRAP SU LAVORO STRAORDINARIO ELEZIONI REGIONALI.;20/03/2019;310;0;0;1;Spese correnti;3;Acquisto di beni e servizi;2;Acquisto di servizi;99;Altri servizi;999;Altri servizi diversi n.a.c.;20/03/2019
460;1;0;10.053,67;10.053,67;PERSONALE DIVERSO (Confr.Allegato); ;STIPENDI MESE DI: MARZO 19;20/03/2019;14;1;53;1;Spese correnti;3;Acquisto di beni e servizi;2;Acquisto di servizi;1;Organi e incarichi istituzionali dell'amministrazione;1;Organi istituzionali dell'amministrazione - Indennità;20/03/2019
464;1;0;2.775,50;2.775,50;BECCA GIOVANNI;ZAD2790F35;Fatt.n. FATTPA 4_19 del 20/03/2019;21/03/2019;255;0;78;1;Spese correnti;3;Acquisto di beni e servizi;2;Acquisto di servizi;9;Manutenzione ordinaria e riparazioni;8;Manutenzione ordinaria e riparazioni di beni immobili;21/03/2019
465;1;0;1.110,20;1.110,20;RINASCITA SOC.COOP.SOCIALE;Z7424F506C;Fatt.n. 12 del 19/03/2019;21/03/2019;1435;0;234;1;Spese correnti;3;Acquisto di beni e servizi;2;Acquisto di servizi;99;Altri servizi;999;Altri servizi diversi n.a.c.;21/03/2019
466;1;0;5.727,00;5.727,00;RINASCITA SOC.COOP.SOCIALE; ;ATTIVAZIONE INTERVENTO DENOMINATO REIS (REDDITO DI INCLUSIONE SOCIALE) ANNO 2018. TRASF. FONDI MARZO.LIQ. 132;21/03/2019;1435;0;234;1;Spese correnti;3;Acquisto di beni e servizi;2;Acquisto di servizi;99;Altri servizi;999;Altri servizi diversi n.a.c.;21/03/2019
467;1;0;150,6;150,6;OMESSO NOMINATIVO NEL RISPETTO DELLA NORMATIVA SULLA PROTEZIONE DATI PERSONALI; ;IMPEGNO DI SPESA LEGGE 162/1998 PIANI PERSONALIZZATI IN SOSTEGNO ALLE PERSONE CON DISABILITA' GRAVE - PROROGA DAL 01.01.2019 AL 30.04.2019;21/03/2019;1420;2;29;1;Spese correnti;4;Trasferimenti correnti;2;Trasferimenti correnti a Famiglie;2;Interventi assistenziali;999;Altri assegni e sussidi assistenziali;21/03/2019
468;1;0;283,19;283,19;OMESSO NOMINATIVO NEL RISPETTO DELLA NORMATIVA SULLA PROTEZIONE DATI PERSONALI; ;IMPEGNO DI SPESA LEGGE 162/1998 PIANI PERSONALIZZATI IN SOSTEGNO ALLE PERSONE CON DISABILITA' GRAVE - PROROGA DAL 01.01.2019 AL 30.04.2019;21/03/2019;1420;2;29;1;Spese correnti;4;Trasferimenti correnti;2;Trasferimenti correnti a Famiglie;2;Interventi assistenziali;999;Altri assegni e sussidi assistenziali;21/03/2019
469;1;0;228,12;228,12;OMESSO NOMINATIVO NEL RISPETTO DELLA NORMATIVA SULLA PROTEZIONE DATI PERSONALI; ;IMPEGNO DI SPESA LEGGE 162/1998 PIANI PERSONALIZZATI IN SOSTEGNO ALLE PERSONE CON DISABILITA' GRAVE - PROROGA DAL 01.01.2019 AL 30.04.2019;21/03/2019;1420;2;29;1;Spese correnti;4;Trasferimenti correnti;2;Trasferimenti correnti a Famiglie;2;Interventi assistenziali;999;Altri assegni e sussidi assistenziali;21/03/2019
470;1;0;331,81;331,81;OMESSO NOMINATIVO NEL RISPETTO DELLA NORMATIVA SULLA PROTEZIONE DATI PERSONALI; ;IMPEGNO DI SPESA LEGGE 162/1998 PIANI PERSONALIZZATI IN SOSTEGNO ALLE PERSONE CON DISABILITA' GRAVE - PROROGA DAL 01.01.2019 AL 30.04.2019;21/03/2019;1420;2;29;1;Spese correnti;4;Trasferimenti correnti;2;Trasferimenti correnti a Famiglie;2;Interventi assistenziali;999;Altri assegni e sussidi assistenziali;21/03/2019
471;1;0;81,72;81,72;OMESSO NOMINATIVO NEL RISPETTO DELLA NORMATIVA SULLA PROTEZIONE DATI PERSONALI; ;IMPEGNO DI SPESA LEGGE 162/1998 PIANI PERSONALIZZATI IN SOSTEGNO ALLE PERSONE CON DISABILITA' GRAVE - PROROGA DAL 01.01.2019 AL 30.04.2019;21/03/2019;1420;2;29;1;Spese correnti;4;Trasferimenti correnti;2;Trasferimenti correnti a Famiglie;2;Interventi assistenziali;999;Altri assegni e sussidi assistenziali;21/03/2019
472;1;0;514,68;514,68;OMESSO NOMINATIVO NEL RISPETTO DELLA NORMATIVA SULLA PROTEZIONE DATI PERSONALI; ;IMPEGNO DI SPESA LEGGE 162/1998 PIANI PERSONALIZZATI IN SOSTEGNO ALLE PERSONE CON DISABILITA' GRAVE - PROROGA DAL 01.01.2019 AL 30.04.2019;21/03/2019;1420;2;29;1;Spese correnti;4;Trasferimenti correnti;2;Trasferimenti correnti a Famiglie;2;Interventi assistenziali;999;Altri assegni e sussidi assistenziali;21/03/2019
473;1;0;113,57;113,57;OMESSO NOMINATIVO NEL RISPETTO DELLA NORMATIVA SULLA PROTEZIONE DATI PERSONALI; ;IMPEGNO DI SPESA LEGGE 162/1998 PIANI PERSONALIZZATI IN SOSTEGNO ALLE PERSONE CON DISABILITA' GRAVE - PROROGA DAL 01.01.2019 AL 30.04.2019;21/03/2019;1420;2;29;1;Spese correnti;4;Trasferimenti correnti;2;Trasferimenti correnti a Famiglie;2;Interventi assistenziali;999;Altri assegni e sussidi assistenziali;21/03/2019
474;1;0;146,6;146,6;OMESSO NOMINATIVO NEL RISPETTO DELLA NORMATIVA SULLA PROTEZIONE DATI PERSONALI; ;IMPEGNO DI SPESA LEGGE 162/1998 PIANI PERSONALIZZATI IN SOSTEGNO ALLE PERSONE CON DISABILITA' GRAVE - PROROGA DAL 01.01.2019 AL 30.04.2019;21/03/2019;1420;2;29;1;Spese correnti;4;Trasferimenti correnti;2;Trasferimenti correnti a Famiglie;2;Interventi assistenziali;999;Altri assegni e sussidi assistenziali;21/03/2019
475;1;0;146,6;146,6;OMESSO NOMINATIVO NEL RISPETTO DELLA NORMATIVA SULLA PROTEZIONE DATI PERSONALI; ;IMPEGNO DI SPESA LEGGE 162/1998 PIANI PERSONALIZZATI IN SOSTEGNO ALLE PERSONE CON DISABILITA' GRAVE - PROROGA DAL 01.01.2019 AL 30.04.2019;21/03/2019;1420;2;29;1;Spese correnti;4;Trasferimenti correnti;2;Trasferimenti correnti a Famiglie;2;Interventi assistenziali;999;Altri assegni e sussidi assistenziali;21/03/2019
476;1;0;144,6;144,6;OMESSO NOMINATIVO NEL RISPETTO DELLA NORMATIVA SULLA PROTEZIONE DATI PERSONALI; ;IMPEGNO DI SPESA LEGGE 162/1998 PIANI PERSONALIZZATI IN SOSTEGNO ALLE PERSONE CON DISABILITA' GRAVE - PROROGA DAL 01.01.2019 AL 30.04.2019;21/03/2019;1420;2;29;1;Spese correnti;4;Trasferimenti correnti;2;Trasferimenti correnti a Famiglie;2;Interventi assistenziali;999;Altri assegni e sussidi assistenziali;21/03/2019
477;1;0;220,82;220,82;OMESSO NOMINATIVO NEL RISPETTO DELLA NORMATIVA SULLA PROTEZIONE DATI PERSONALI; ;IMPEGNO DI SPESA LEGGE 162/1998 PIANI PERSONALIZZATI IN SOSTEGNO ALLE PERSONE CON DISABILITA' GRAVE - PROROGA DAL 01.01.2019 AL 30.04.2019;21/03/2019;1420;2;29;1;Spese correnti;4;Trasferimenti correnti;2;Trasferimenti correnti a Famiglie;2;Interventi assistenziali;999;Altri assegni e sussidi assistenziali;21/03/2019
478;1;0;90.133,59;90.133,59;DELOGU GIUSEPPE;75584538BA;Fatt.n. FATTPA 5_19 del 21/03/2019 Pagamento certificato n.1 per lavori di adeguamento, ampliamento scuola primaria via Rino Canalis, 20. CIG:75584538BA - CUP: I18J18000020004;25/03/2019;2510;0;224;2;Spese in conto capitale;2;Investimenti fissi lordi e acquisto di terreni;1;Beni materiali;9;Beni immobili;3;Fabbricati ad uso scolastico;25/03/2019
479;1;0;300;300;OMESSO NOMINATIVO NEL RISPETTO DELLA NORMATIVA SULLA PROTEZIONE DATI PERSONALI; ;IMPEGNO DI SPESA PER CONTRIBUTO A FAVORE DI CITTADINI SOFFERENTI MENTALI INSERITI IN STRUTTURE RESIDENZIALI - ANNUALITA' 2019;25/03/2019;1434;0;26;1;Spese correnti;4;Trasferimenti correnti;2;Trasferimenti correnti a Famiglie;2;Interventi assistenziali;999;Altri assegni e sussidi assistenziali;25/03/2019
480;1;0;732;732;OMESSO NOMINATIVO NEL RISPETTO DELLA NORMATIVA SULLA PROTEZIONE DATI PERSONALI; ;IMPEGNO DI SPESA E PRESA IN CARICO L.R. 6/2004 E L.R. 9/2004 - ANNO 2019;25/03/2019;1438;0;80;1;Spese correnti;4;Trasferimenti correnti;2;Trasferimenti correnti a Famiglie;2;Interventi assistenziali;999;Altri assegni e sussidi assistenziali;25/03/2019
481;1;0;360,26;360,26;OMESSO NOMINATIVO NEL RISPETTO DELLA NORMATIVA SULLA PROTEZIONE DATI PERSONALI; ;CONTRIBUTO REGIONE LEGGI DI SETTORE;25/03/2019;1438;0;290;1;Spese correnti;4;Trasferimenti correnti;2;Trasferimenti correnti a Famiglie;2;Interventi assistenziali;999;Altri assegni e sussidi assistenziali;25/03/2019
482;1;0;1.349,64;1.349,64;OMESSO NOMINATIVO NEL RISPETTO DELLA NORMATIVA SULLA PROTEZIONE DATI PERSONALI;7394433F22;Fatt.n. X-258 del 06/03/2019;25/03/2019;1412;1;85;1;Spese correnti;3;Acquisto di beni e servizi;2;Acquisto di servizi;15;Contratti di servizio pubblico;8;Contratti di servizio di assistenza sociale residenziale e semiresidenziale;25/03/2019
483;1;0;1.000,00;1.000,00;MUNTONI ANTONELLA; ;IMPEGNO DI SPESA PER INTERVENTO DENOMINATO BONUS BEBE'-ANNO 2019.;26/03/2019;1430;0;89;1;Spese correnti;4;Trasferimenti correnti;2;Trasferimenti correnti a Famiglie;2;Interventi assistenziali;999;Altri assegni e sussidi assistenziali;26/03/2019
484;1;0;1.000,00;1.000,00;CORDA DANIELA; ;IMPEGNO DI SPESA PER INTERVENTO DENOMINATO BONUS BEBE'-ANNO 2019.;26/03/2019;1430;0;89;1;Spese correnti;4;Trasferimenti correnti;2;Trasferimenti correnti a Famiglie;2;Interventi assistenziali;999;Altri assegni e sussidi assistenziali;26/03/2019
485;1;0;1.000,00;1.000,00;SATTA AGNESE; ;IMPEGNO DI SPESA PER INTERVENTO DENOMINATO BONUS BEBE'-ANNO 2019.;26/03/2019;1430;0;89;1;Spese correnti;4;Trasferimenti correnti;2;Trasferimenti correnti a Famiglie;2;Interventi assistenziali;999;Altri assegni e sussidi assistenziali;26/03/2019
486;1;0;1.000,00;1.000,00;CANOPOLI SARA DOMENICA; ;IMPEGNO DI SPESA PER INTERVENTO DENOMINATO BONUS BEBE'-ANNO 2019.;26/03/2019;1430;0;89;1;Spese correnti;4;Trasferimenti correnti;2;Trasferimenti correnti a Famiglie;2;Interventi assistenziali;999;Altri assegni e sussidi assistenziali;26/03/2019
487;1;0;900;900;CALZONE FRANCESCA; ;IMPEGNO DI SPESA PER INTERVENTO DENOMINATO BONUS BEBE'-ANNO 2019.;26/03/2019;1430;0;89;1;Spese correnti;4;Trasferimenti correnti;2;Trasferimenti correnti a Famiglie;2;Interventi assistenziali;999;Altri assegni e sussidi assistenziali;26/03/2019
488;1;0;1.150,00;1.150,00;MASALA CARLA; ;IMPEGNO DI SPESA PER INTERVENTO DENOMINATO BONUS BEBE'-ANNO 2019.;26/03/2019;1430;0;89;1;Spese correnti;4;Trasferimenti correnti;2;Trasferimenti correnti a Famiglie;2;Interventi assistenziali;999;Altri assegni e sussidi assistenziali;26/03/2019
489;1;0;1.200,00;1.200,00;PERRONE ADDOLORATA; ;IMPEGNO DI SPESA PER INTERVENTO DENOMINATO BONUS BEBE'-ANNO 2019.;26/03/2019;1430;0;89;1;Spese correnti;4;Trasferimenti correnti;2;Trasferimenti correnti a Famiglie;2;Interventi assistenziali;999;Altri assegni e sussidi assistenziali;26/03/2019
490;1;0;750;750;SATTA MARGHERITA; ;IMPEGNO DI SPESA PER INTERVENTO DENOMINATO BONUS BEBE'-ANNO 2019.;26/03/2019;1430;0;89;1;Spese correnti;4;Trasferimenti correnti;2;Trasferimenti correnti a Famiglie;2;Interventi assistenziali;999;Altri assegni e sussidi assistenziali;26/03/2019
491;1;0;950;950;CUCCURU STEFANIA GIOVANNA; ;IMPEGNO DI SPESA PER INTERVENTO DENOMINATO BONUS BEBE'-ANNO 2019.;26/03/2019;1430;0;89;1;Spese correnti;4;Trasferimenti correnti;2;Trasferimenti correnti a Famiglie;2;Interventi assistenziali;999;Altri assegni e sussidi assistenziali;26/03/2019
492;1;0;1.050,00;1.050,00;SEU SILVIA; ;IMPEGNO DI SPESA PER INTERVENTO DENOMINATO BONUS BEBE'-ANNO 2019.;26/03/2019;1430;0;89;1;Spese correnti;4;Trasferimenti correnti;2;Trasferimenti correnti a Famiglie;2;Interventi assistenziali;999;Altri assegni e sussidi assistenziali;26/03/2019
493;1;0;800;800;CORDEDDA NAZARENA; ;IMPEGNO DI SPESA PER INTERVENTO DENOMINATO BONUS BEBE'-ANNO 2019.;26/03/2019;1430;0;89;1;Spese correnti;4;Trasferimenti correnti;2;Trasferimenti correnti a Famiglie;2;Interventi assistenziali;999;Altri assegni e sussidi assistenziali;26/03/2019
494;1;0;1.050,00;1.050,00;SABA SALVATORICA; ;IMPEGNO DI SPESA PER INTERVENTO DENOMINATO BONUS BEBE'-ANNO 2019.;26/03/2019;1430;0;89;1;Spese correnti;4;Trasferimenti correnti;2;Trasferimenti correnti a Famiglie;2;Interventi assistenziali;999;Altri assegni e sussidi assistenziali;26/03/2019
495;1;0;1.000,00;1.000,00;PISANU ELISABETTA; ;IMPEGNO DI SPESA PER INTERVENTO DENOMINATO BONUS BEBE'-ANNO 2019.;26/03/2019;1430;0;89;1;Spese correnti;4;Trasferimenti correnti;2;Trasferimenti correnti a Famiglie;2;Interventi assistenziali;999;Altri assegni e sussidi assistenziali;26/03/2019
496;1;0;400;400;BATZU LEONARDA; ;IMPEGNO DI SPESA PER INTERVENTO DENOMINATO BONUS BEBE'-ANNO 2019.;26/03/2019;1430;0;89;1;Spese correnti;4;Trasferimenti correnti;2;Trasferimenti correnti a Famiglie;2;Interventi assistenziali;999;Altri assegni e sussidi assistenziali;26/03/2019
497;1;0;325;325;PANI ANGELICA; ;IMPEGNO DI SPESA PER INTERVENTO DENOMINATO BONUS BEBE'-ANNO 2019.;26/03/2019;1430;0;89;1;Spese correnti;4;Trasferimenti correnti;2;Trasferimenti correnti a Famiglie;2;Interventi assistenziali;999;Altri assegni e sussidi assistenziali;26/03/2019
498;1;0;375;375;CORDA PIETRINA; ;IMPEGNO DI SPESA PER INTERVENTO DENOMINATO BONUS BEBE'-ANNO 2019.;26/03/2019;1430;0;89;1;Spese correnti;4;Trasferimenti correnti;2;Trasferimenti correnti a Famiglie;2;Interventi assistenziali;999;Altri assegni e sussidi assistenziali;26/03/2019
499;1;0;650;650;MUNTONI PAOLA; ;IMPEGNO DI SPESA PER INTERVENTO DENOMINATO BONUS BEBE'-ANNO 2019.;26/03/2019;1430;0;89;1;Spese correnti;4;Trasferimenti correnti;2;Trasferimenti correnti a Famiglie;2;Interventi assistenziali;999;Altri assegni e sussidi assistenziali;26/03/2019
500;1;0;600;600;TESTONE LIDIA; ;IMPEGNO DI SPESA PER INTERVENTO DENOMINATO BONUS BEBE'-ANNO 2019.;26/03/2019;1430;0;89;1;Spese correnti;4;Trasferimenti correnti;2;Trasferimenti correnti a Famiglie;2;Interventi assistenziali;999;Altri assegni e sussidi assistenziali;26/03/2019
501;1;0;500;500;CAMPESI SONIA; ;IMPEGNO DI SPESA PER INTERVENTO DENOMINATO BONUS BEBE'-ANNO 2019.;26/03/2019;1430;0;89;1;Spese correnti;4;Trasferimenti correnti;2;Trasferimenti correnti a Famiglie;2;Interventi assistenziali;999;Altri assegni e sussidi assistenziali;26/03/2019
502;1;0;325;325;SINI FRANCA; ;IMPEGNO DI SPESA PER INTERVENTO DENOMINATO BONUS BEBE'-ANNO 2019.;26/03/2019;1430;0;89;1;Spese correnti;4;Trasferimenti correnti;2;Trasferimenti correnti a Famiglie;2;Interventi assistenziali;999;Altri assegni e sussidi assistenziali;26/03/2019
503;1;0;325;325;SCARPELLINO DANIELA; ;IMPEGNO DI SPESA PER INTERVENTO DENOMINATO BONUS BEBE'-ANNO 2019.;26/03/2019;1430;0;89;1;Spese correnti;4;Trasferimenti correnti;2;Trasferimenti correnti a Famiglie;2;Interventi assistenziali;999;Altri assegni e sussidi assistenziali;26/03/2019
504;1;0;50;50;CONTINI SALVATORICA; ;IMPEGNO DI SPESA PER INTERVENTO DENOMINATO BONUS BEBE'-ANNO 2019.;26/03/2019;1430;0;89;1;Spese correnti;4;Trasferimenti correnti;2;Trasferimenti correnti a Famiglie;2;Interventi assistenziali;999;Altri assegni e sussidi assistenziali;26/03/2019
505;1;0;275;275;LANGIU FRANCESCA; ;IMPEGNO DI SPESA PER INTERVENTO DENOMINATO BONUS BEBE'-ANNO 2019.;26/03/2019;1430;0;89;1;Spese correnti;4;Trasferimenti correnti;2;Trasferimenti correnti a Famiglie;2;Interventi assistenziali;999;Altri assegni e sussidi assistenziali;26/03/2019
506;1;0;250;250;CUCCU ANNA; ;IMPEGNO DI SPESA PER INTERVENTO DENOMINATO BONUS BEBE'-ANNO 2019.;26/03/2019;1430;0;89;1;Spese correnti;4;Trasferimenti correnti;2;Trasferimenti correnti a Famiglie;2;Interventi assistenziali;999;Altri assegni e sussidi assistenziali;26/03/2019
507;1;0;175;175;DESSENA LEONARDA; ;IMPEGNO DI SPESA PER INTERVENTO DENOMINATO BONUS BEBE'-ANNO 2019.;26/03/2019;1430;0;89;1;Spese correnti;4;Trasferimenti correnti;2;Trasferimenti correnti a Famiglie;2;Interventi assistenziali;999;Altri assegni e sussidi assistenziali;26/03/2019
508;1;0;100;100;SALIS ELISA; ;IMPEGNO DI SPESA PER INTERVENTO DENOMINATO BONUS BEBE'-ANNO 2019.;26/03/2019;1430;0;89;1;Spese correnti;4;Trasferimenti correnti;2;Trasferimenti correnti a Famiglie;2;Interventi assistenziali;999;Altri assegni e sussidi assistenziali;26/03/2019
509;1;0;200;200;CORDA ANNA MARIA; ;IMPEGNO DI SPESA PER INTERVENTO DENOMINATO BONUS BEBE'.;26/03/2019;1430;0;221;1;Spese correnti;4;Trasferimenti correnti;2;Trasferimenti correnti a Famiglie;2;Interventi assistenziali;999;Altri assegni e sussidi assistenziali;26/03/2019
510;1;0;1.050,00;1.050,00;LANGIU ROBERTA; ;IMPEGNO DI SPESA PER INTERVENTO DENOMINATO BONUS BEBE'-ANNO 2019.;26/03/2019;1430;0;89;1;Spese correnti;4;Trasferimenti correnti;2;Trasferimenti correnti a Famiglie;2;Interventi assistenziali;999;Altri assegni e sussidi assistenziali;26/03/2019
511;1;0;172;172;BECCA ARREDAMENTI;Z0A273A408;Fatt.n. FPA 3/19 del 26/03/2019;27/03/2019;82;0;32;1;Spese correnti;3;Acquisto di beni e servizi;1;Acquisto di beni;2;Altri beni di consumo;5;Accessori per uffici e alloggi;27/03/2019
520;1;0;512,4;512,4;MEDOS SERVICE SOCIETA' COOPERATIVA;Z7627B2A59;Fatt.n. FATTPA 7_19 del 28/03/2019;02/04/2019;255;0;87;1;Spese correnti;3;Acquisto di beni e servizi;2;Acquisto di servizi;9;Manutenzione ordinaria e riparazioni;8;Manutenzione ordinaria e riparazioni di beni immobili;02/04/2019
521;1;0;3.548,03;3.548,03;PUDDU PALMIRO;Z1B261BC05;Fatt.n. 4 del 28/03/2019;02/04/2019;1302;0;14;1;Spese correnti;3;Acquisto di beni e servizi;2;Acquisto di servizi;13;Servizi ausiliari per il funzionamento dell'ente;999;Altri servizi ausiliari n.a.c.;02/04/2019
522;1;0;2.200,00;2.200,00;PUDDU PALMIRO;ZDA278F032;Fatt.n. 5 del 28/03/2019;02/04/2019;1300;0;76;1;Spese correnti;3;Acquisto di beni e servizi;1;Acquisto di beni;2;Altri beni di consumo;999;Altri beni e materiali di consumo n.a.c.;02/04/2019
523;1;0;10.298,50;10.298,50;MURGIA GIOVANNI MARIA;Z1724E1523;Fatt.n. 3/E / PA del 29/03/2019;02/04/2019;654;0;52;1;Spese correnti;3;Acquisto di beni e servizi;2;Acquisto di servizi;15;Contratti di servizio pubblico;6;Contratti di servizio per le mense scolastiche;02/04/2019
524;1;0;4.611,60;4.611,60;BARTOLI E BUGANE' GESTIONI SRL;Z9E27498D7;Fatt.n. FATTPA 10_19 del 01/04/2019;02/04/2019;200;0;98;1;Spese correnti;3;Acquisto di beni e servizi;2;Acquisto di servizi;99;Altri servizi;999;Altri servizi diversi n.a.c.;02/04/2019
525;1;0;500;500;ISTITUTO COMPRENSIVO N. 1; ;Programmazione fondi Biblioteca comunale per l'anno 2019;02/04/2019;714;0;81;1;Spese correnti;3;Acquisto di beni e servizi;1;Acquisto di beni;1;Giornali, riviste e pubblicazioni;2;Pubblicazioni;02/04/2019
526;1;0;488;488;DASEIN S.R.L.;ZF4271C1F6;Fatt.n. 213 del 20/03/2019;02/04/2019;82;3;16;1;Spese correnti;3;Acquisto di beni e servizi;1;Acquisto di beni;2;Altri beni di consumo;6;Materiale informatico;02/04/2019
527;1;0;563,04;563,04;L'ARCOBALENO di Muggianu Rosanna;ZE227A3006;Fatt.n. 134B del 30/03/2019;02/04/2019;714;0;81;1;Spese correnti;3;Acquisto di beni e servizi;1;Acquisto di beni;1;Giornali, riviste e pubblicazioni;2;Pubblicazioni;02/04/2019
528;1;0;353,8;353,8;FATICONI;Z5B27C4259;Fatt.n. 000345PA del 01/04/2019;02/04/2019;1266;0;92;1;Spese correnti;3;Acquisto di beni e servizi;1;Acquisto di beni;2;Altri beni di consumo;1;Carta, cancelleria e stampati;02/04/2019
529;1;0;201,79;201,79;OMESSO NOMINATIVO NEL RISPETTO DELLA NORMATIVA SULLA PROTEZIONE DATI PERSONALI; ;IMPEGNO DI SPESA LEGGE 162/1998 PIANI PERSONALIZZATI IN SOSTEGNO ALLE PERSONE CON DISABILITA' GRAVE - PROROGA DAL 01.01.2019 AL 30.04.2019;04/04/2019;1420;2;29;1;Spese correnti;4;Trasferimenti correnti;2;Trasferimenti correnti a Famiglie;2;Interventi assistenziali;999;Altri assegni e sussidi assistenziali;04/04/2019
530;1;0;136,88;136,88;OMESSO NOMINATIVO NEL RISPETTO DELLA NORMATIVA SULLA PROTEZIONE DATI PERSONALI; ;IMPEGNO DI SPESA LEGGE 162/1998 PIANI PERSONALIZZATI IN SOSTEGNO ALLE PERSONE CON DISABILITA' GRAVE - PROROGA DAL 01.01.2019 AL 30.04.2019;04/04/2019;1420;2;29;1;Spese correnti;4;Trasferimenti correnti;2;Trasferimenti correnti a Famiglie;2;Interventi assistenziali;999;Altri assegni e sussidi assistenziali;04/04/2019
531;1;0;232,2;232,2;OMESSO NOMINATIVO NEL RISPETTO DELLA NORMATIVA SULLA PROTEZIONE DATI PERSONALI; ;IMPEGNO DI SPESA LEGGE 162/1998 PIANI PERSONALIZZATI IN SOSTEGNO ALLE PERSONE CON DISABILITA' GRAVE - PROROGA DAL 01.01.2019 AL 30.04.2019;04/04/2019;1420;2;29;1;Spese correnti;4;Trasferimenti correnti;2;Trasferimenti correnti a Famiglie;2;Interventi assistenziali;999;Altri assegni e sussidi assistenziali;04/04/2019
532;1;0;1.079,55;1.079,55;OMESSO NOMINATIVO NEL RISPETTO DELLA NORMATIVA SULLA PROTEZIONE DATI PERSONALI; ;IMPEGNO DI SPESA LEGGE 162/1998 PIANI PERSONALIZZATI IN SOSTEGNO ALLE PERSONE CON DISABILITA' GRAVE - PROROGA DAL 01.01.2019 AL 30.04.2019;04/04/2019;1420;2;29;1;Spese correnti;4;Trasferimenti correnti;2;Trasferimenti correnti a Famiglie;2;Interventi assistenziali;999;Altri assegni e sussidi assistenziali;04/04/2019
533;1;0;73,84;73,84;OMESSO NOMINATIVO NEL RISPETTO DELLA NORMATIVA SULLA PROTEZIONE DATI PERSONALI; ;IMPEGNO DI SPESA LEGGE 162/1998 PIANI PERSONALIZZATI IN SOSTEGNO ALLE PERSONE CON DISABILITA' GRAVE - PROROGA DAL 01.01.2019 AL 30.04.2019;04/04/2019;1420;2;29;1;Spese correnti;4;Trasferimenti correnti;2;Trasferimenti correnti a Famiglie;2;Interventi assistenziali;999;Altri assegni e sussidi assistenziali;04/04/2019
534;1;0;223;223;OMESSO NOMINATIVO NEL RISPETTO DELLA NORMATIVA SULLA PROTEZIONE DATI PERSONALI; ;IMPEGNO DI SPESA E PRESA IN CARICO L.R. 11/85 PROVVIDENZE A FAVORE DI NEFROPATICI - ANNO 2019;04/04/2019;1438;0;28;1;Spese correnti;4;Trasferimenti correnti;2;Trasferimenti correnti a Famiglie;2;Interventi assistenziali;999;Altri assegni e sussidi assistenziali;04/04/2019
535;1;0;114,15;114,15;OMESSO NOMINATIVO NEL RISPETTO DELLA NORMATIVA SULLA PROTEZIONE DATI PERSONALI; ;IMPEGNO DI SPESA E PRESA IN CARICO L.R. 6/2004 E L.R. 9/2004 - ANNO 2019;04/04/2019;1438;0;80;1;Spese correnti;4;Trasferimenti correnti;2;Trasferimenti correnti a Famiglie;2;Interventi assistenziali;999;Altri assegni e sussidi assistenziali;04/04/2019
536;1;0;105,4;105,4;POSTE ITALIANE Spa;Z8223E60A4;Fatt.n. 8719101430 del 02/04/2019 Fattura Elettronica relativa all'Identificativo Rendiconto 2101472555 B=033813871910143004;04/04/2019;118;2;144;1;Spese correnti;3;Acquisto di beni e servizi;2;Acquisto di servizi;16;Servizi amministrativi;2;Spese postali;04/04/2019
539;1;0;105,92;105,92;OMESSO NOMINATIVO NEL RISPETTO DELLA NORMATIVA SULLA PROTEZIONE DATI PERSONALI; ;IMPEGNO DI SPESA LEGGE 162/1998 PIANI PERSONALIZZATI IN SOSTEGNO ALLE PERSONE CON DISABILITA' GRAVE - PROROGA DAL 01.01.2019 AL 30.04.2019;04/04/2019;1420;2;29;1;Spese correnti;4;Trasferimenti correnti;2;Trasferimenti correnti a Famiglie;2;Interventi assistenziali;999;Altri assegni e sussidi assistenziali;04/04/2019
540;1;0;620,38;620,38;OMESSO NOMINATIVO NEL RISPETTO DELLA NORMATIVA SULLA PROTEZIONE DATI PERSONALI; ;IMPEGNO DI SPESA LEGGE 162/1998 PIANI PERSONALIZZATI IN SOSTEGNO ALLE PERSONE CON DISABILITA' GRAVE - PROROGA DAL 01.01.2019 AL 30.04.2019;04/04/2019;1420;2;29;1;Spese correnti;4;Trasferimenti correnti;2;Trasferimenti correnti a Famiglie;2;Interventi assistenziali;999;Altri assegni e sussidi assistenziali;04/04/2019
541;1;0;571,2;571,2;OMESSO NOMINATIVO NEL RISPETTO DELLA NORMATIVA SULLA PROTEZIONE DATI PERSONALI; ;IMPEGNO DI SPESA LEGGE 162/1998 PIANI PERSONALIZZATI IN SOSTEGNO ALLE PERSONE CON DISABILITA' GRAVE - PROROGA DAL 01.01.2019 AL 30.04.2019;04/04/2019;1420;2;29;1;Spese correnti;4;Trasferimenti correnti;2;Trasferimenti correnti a Famiglie;2;Interventi assistenziali;999;Altri assegni e sussidi assistenziali;04/04/2019
542;1;0;264,79;264,79;OMESSO NOMINATIVO NEL RISPETTO DELLA NORMATIVA SULLA PROTEZIONE DATI PERSONALI; ;IMPEGNO DI SPESA LEGGE 162/1998 PIANI PERSONALIZZATI IN SOSTEGNO ALLE PERSONE CON DISABILITA' GRAVE - PROROGA DAL 01.01.2019 AL 30.04.2019;04/04/2019;1420;2;29;1;Spese correnti;4;Trasferimenti correnti;2;Trasferimenti correnti a Famiglie;2;Interventi assistenziali;999;Altri assegni e sussidi assistenziali;04/04/2019
543;1;0;153,79;153,79;OMESSO NOMINATIVO NEL RISPETTO DELLA NORMATIVA SULLA PROTEZIONE DATI PERSONALI; ;IMPEGNO DI SPESA LEGGE 162/1998 PIANI PERSONALIZZATI IN SOSTEGNO ALLE PERSONE CON DISABILITA' GRAVE - PROROGA DAL 01.01.2019 AL 30.04.2019;04/04/2019;1420;2;29;1;Spese correnti;4;Trasferimenti correnti;2;Trasferimenti correnti a Famiglie;2;Interventi assistenziali;999;Altri assegni e sussidi assistenziali;04/04/2019
544;1;0;720;720;OMESSO NOMINATIVO NEL RISPETTO DELLA NORMATIVA SULLA PROTEZIONE DATI PERSONALI; ;IMPEGNO DI SPESA LEGGE 162/1998 PIANI PERSONALIZZATI IN SOSTEGNO ALLE PERSONE CON DISABILITA' GRAVE - PROROGA DAL 01.01.2019 AL 30.04.2019;04/04/2019;1420;2;29;1;Spese correnti;4;Trasferimenti correnti;2;Trasferimenti correnti a Famiglie;2;Interventi assistenziali;999;Altri assegni e sussidi assistenziali;04/04/2019
545;1;0;300;300;OMESSO NOMINATIVO NEL RISPETTO DELLA NORMATIVA SULLA PROTEZIONE DATI PERSONALI; ;IMPEGNO DI SPESA PER CONTRIBUTO A FAVORE DI CITTADINI SOFFERENTI MENTALI INSERITI IN STRUTTURE RESIDENZIALI - ANNUALITA' 2019;04/04/2019;1434;0;26;1;Spese correnti;4;Trasferimenti correnti;2;Trasferimenti correnti a Famiglie;2;Interventi assistenziali;999;Altri assegni e sussidi assistenziali;04/04/2019
546;1;0;80,36;80,36;FIORI MARIO;Z2F26B75EB;Fatt.n. FATTPA 4_19 del 31/03/2019;04/04/2019;1300;8;2;1;Spese correnti;3;Acquisto di beni e servizi;1;Acquisto di beni;2;Altri beni di consumo;2;Carburanti, combustibili e lubrificanti;04/04/2019
547;1;0;1.009,75;1.009,75;OMESSO NOMINATIVO NEL RISPETTO DELLA NORMATIVA SULLA PROTEZIONE DATI PERSONALI; ;IMPEGNO DI SPESA LEGGE 162/1998 PIANI PERSONALIZZATI IN SOSTEGNO ALLE PERSONE CON DISABILITA' GRAVE - PROROGA DAL 01.01.2019 AL 30.04.2019;05/04/2019;1420;2;29;1;Spese correnti;4;Trasferimenti correnti;2;Trasferimenti correnti a Famiglie;2;Interventi assistenziali;999;Altri assegni e sussidi assistenziali;05/04/2019
548;1;0;637,14;637,14;OMESSO NOMINATIVO NEL RISPETTO DELLA NORMATIVA SULLA PROTEZIONE DATI PERSONALI; ;IMPEGNO DI SPESA LEGGE 162/1998 PIANI PERSONALIZZATI IN SOSTEGNO ALLE PERSONE CON DISABILITA' GRAVE - PROROGA DAL 01.01.2019 AL 30.04.2019;05/04/2019;1420;2;29;1;Spese correnti;4;Trasferimenti correnti;2;Trasferimenti correnti a Famiglie;2;Interventi assistenziali;999;Altri assegni e sussidi assistenziali;05/04/2019
549;1;0;223,91;223,91;OMESSO NOMINATIVO NEL RISPETTO DELLA NORMATIVA SULLA PROTEZIONE DATI PERSONALI; ;IMPEGNO DI SPESA LEGGE 162/1998 PIANI PERSONALIZZATI IN SOSTEGNO ALLE PERSONE CON DISABILITA' GRAVE - PROROGA DAL 01.01.2019 AL 30.04.2019;05/04/2019;1420;2;29;1;Spese correnti;4;Trasferimenti correnti;2;Trasferimenti correnti a Famiglie;2;Interventi assistenziali;999;Altri assegni e sussidi assistenziali;05/04/2019
550;1;0;2.271,64;2.271,64;A.I.T. SEGNALETICA SNC;ZDE27BCEAA;SALDO Fatt.n. FATTPA 14_19  del 27/03/2019 Determina N 43 del 26/03/2019;05/04/2019;1011;0;88;1;Spese correnti;3;Acquisto di beni e servizi;2;Acquisto di servizi;9;Manutenzione ordinaria e riparazioni;8;Manutenzione ordinaria e riparazioni di beni immobili;05/04/2019
551;1;0;180,15;180,15;OMESSO NOMINATIVO NEL RISPETTO DELLA NORMATIVA SULLA PROTEZIONE DATI PERSONALI; ;IMPEGNO DI SPESA LEGGE 162/1998 PIANI PERSONALIZZATI IN SOSTEGNO ALLE PERSONE CON DISABILITA' GRAVE - PROROGA DAL 01.01.2019 AL 30.04.2019;09/04/2019;1420;2;29;1;Spese correnti;4;Trasferimenti correnti;2;Trasferimenti correnti a Famiglie;2;Interventi assistenziali;999;Altri assegni e sussidi assistenziali;09/04/2019
552;1;0;116;116;OMESSO NOMINATIVO NEL RISPETTO DELLA NORMATIVA SULLA PROTEZIONE DATI PERSONALI; ;IMPEGNO DI SPESA LEGGE 162/1998 PIANI PERSONALIZZATI IN SOSTEGNO ALLE PERSONE CON DISABILITA' GRAVE - PROROGA DAL 01.01.2019 AL 30.04.2019;09/04/2019;1420;2;29;1;Spese correnti;4;Trasferimenti correnti;2;Trasferimenti correnti a Famiglie;2;Interventi assistenziali;999;Altri assegni e sussidi assistenziali;09/04/2019
553;1;0;814,84;814,84;OMESSO NOMINATIVO NEL RISPETTO DELLA NORMATIVA SULLA PROTEZIONE DATI PERSONALI; ;IMPEGNO DI SPESA LEGGE 162/1998 PIANI PERSONALIZZATI IN SOSTEGNO ALLE PERSONE CON DISABILITA' GRAVE - PROROGA DAL 01.01.2019 AL 30.04.2019;09/04/2019;1420;2;29;1;Spese correnti;4;Trasferimenti correnti;2;Trasferimenti correnti a Famiglie;2;Interventi assistenziali;999;Altri assegni e sussidi assistenziali;09/04/2019
554;1;0;117,45;117,45;OMESSO NOMINATIVO NEL RISPETTO DELLA NORMATIVA SULLA PROTEZIONE DATI PERSONALI; ;IMPEGNO DI SPESA LEGGE 162/1998 PIANI PERSONALIZZATI IN SOSTEGNO ALLE PERSONE CON DISABILITA' GRAVE - PROROGA DAL 01.01.2019 AL 30.04.2019;09/04/2019;1420;2;29;1;Spese correnti;4;Trasferimenti correnti;2;Trasferimenti correnti a Famiglie;2;Interventi assistenziali;999;Altri assegni e sussidi assistenziali;09/04/2019
556;1;0;256,45;256,45;OMESSO NOMINATIVO NEL RISPETTO DELLA NORMATIVA SULLA PROTEZIONE DATI PERSONALI; ;IMPEGNO DI SPESA LEGGE 162/1998 PIANI PERSONALIZZATI IN SOSTEGNO ALLE PERSONE CON DISABILITA' GRAVE - PROROGA DAL 01.01.2019 AL 30.04.2019;09/04/2019;1420;2;29;1;Spese correnti;4;Trasferimenti correnti;2;Trasferimenti correnti a Famiglie;2;Interventi assistenziali;999;Altri assegni e sussidi assistenziali;09/04/2019
557;1;0;604;604;OMESSO NOMINATIVO NEL RISPETTO DELLA NORMATIVA SULLA PROTEZIONE DATI PERSONALI; ;IMPEGNO DI SPESA E PRESA IN CARICO L.R. 11/85 PROVVIDENZE A FAVORE DI NEFROPATICI - ANNO 2019;09/04/2019;1438;0;28;1;Spese correnti;4;Trasferimenti correnti;2;Trasferimenti correnti a Famiglie;2;Interventi assistenziali;999;Altri assegni e sussidi assistenziali;09/04/2019
558;1;0;604;604;OMESSO NOMINATIVO NEL RISPETTO DELLA NORMATIVA SULLA PROTEZIONE DATI PERSONALI; ;IMPEGNO DI SPESA E PRESA IN CARICO L.R. 11/85 PROVVIDENZE A FAVORE DI NEFROPATICI - ANNO 2019;09/04/2019;1438;0;28;1;Spese correnti;4;Trasferimenti correnti;2;Trasferimenti correnti a Famiglie;2;Interventi assistenziali;999;Altri assegni e sussidi assistenziali;09/04/2019
559;1;0;7.382,20;7.382,20;OMESSO NOMINATIVO NEL RISPETTO DELLA NORMATIVA SULLA PROTEZIONE DATI PERSONALI; ;IMPEGNO DI SPESA LEGGE 162/1998 PIANI PERSONALIZZATI IN SOSTEGNO ALLE PERSONE CON DISABILITA' GRAVE - PROROGA DAL 01.01.2019 AL 30.04.2019;09/04/2019;1420;2;29;1;Spese correnti;4;Trasferimenti correnti;2;Trasferimenti correnti a Famiglie;2;Interventi assistenziali;999;Altri assegni e sussidi assistenziali;09/04/2019
560;1;0;2.023,19;2.023,19;COOP. SPES a r.l.;Z422136A24;Fatt.n. 7 PA del 31/03/2019;09/04/2019;118;5;63;1;Spese correnti;3;Acquisto di beni e servizi;2;Acquisto di servizi;13;Servizi ausiliari per il funzionamento dell'ente;2;Servizi di pulizia e lavanderia;09/04/2019
561;1;0;234,86;234,86;DNA RANDAGIO;ZD021761F1;Fatt.n. 49/PA del 04/04/2019;09/04/2019;1349;0;33;1;Spese correnti;3;Acquisto di beni e servizi;2;Acquisto di servizi;15;Contratti di servizio pubblico;11;Contratti di servizio per la lotta al randagismo;09/04/2019
562;1;0;520;520;MURA ENRICO;ZBE273D19B;Fatt.n. FATTPA 5_19 del 04/04/2019 Descrizione causale: Prestazione svolta in regime fiscale di vantaggio ex articolo 1, commi 54-89, Legge 190/2014 e s.m.i. e, pertanto, non soggetta a IVA nÃ© a ritenuta;10/04/2019;254;0;50;1;Spese correnti;3;Acquisto di beni e servizi;2;Acquisto di servizi;11;Prestazioni professionali e specialistiche;999;Altre prestazioni professionali e specialistiche n.a.c.;10/04/2019
563;1;0;4.761,50;4.761,50;CRITERIA S.R.L.;7422370D7A;Fatt.n. 36 del 26/03/2019;10/04/2019;3521;1;186;2;Spese in conto capitale;5;Altre spese in conto capitale;99;Altre spese in conto capitale n.a.c.;99;Altre spese in conto capitale n.a.c.;999;Altre spese in conto capitale n.a.c.;10/04/2019
564;1;0;4.669,94;4.669,94;CRITERIA S.R.L.;7422370D7A;Fatt.n. 37 del 26/03/2019;10/04/2019;3521;1;186;2;Spese in conto capitale;5;Altre spese in conto capitale;99;Altre spese in conto capitale n.a.c.;99;Altre spese in conto capitale n.a.c.;999;Altre spese in conto capitale n.a.c.;10/04/2019
565;1;0;100;100;NOVA EUPHONIA;ZC926156DE;Rassegna Natale a Tula 2018. Impegno di spesa;10/04/2019;746;0;334;1;Spese correnti;3;Acquisto di beni e servizi;2;Acquisto di servizi;2;Organizzazione eventi, pubblicita` e servizi per trasferta;5;Organizzazione e partecipazione a manifestazioni e convegni;10/04/2019
566;1;0;850;850;NOVA EUPHONIA;ZF825E9FA3;Organizzazione MANIFESTAZIONI NATALIZIE.;10/04/2019;760;0;321;1;Spese correnti;4;Trasferimenti correnti;4;Trasferimenti correnti a Istituzioni Sociali Private;1;Trasferimenti correnti a Istituzioni Sociali Private;1;Trasferimenti correnti a Istituzioni Sociali Private;10/04/2019
567;1;0;187,5;187,5;OMESSO NOMINATIVO NEL RISPETTO DELLA NORMATIVA SULLA PROTEZIONE DATI PERSONALI; ;IMPEGNO DI SPESA LEGGE 162/1998 PIANI PERSONALIZZATI IN SOSTEGNO ALLE PERSONE CON DISABILITA' GRAVE - PROROGA DAL 01.01.2019 AL 30.04.2019;10/04/2019;1420;2;29;1;Spese correnti;4;Trasferimenti correnti;2;Trasferimenti correnti a Famiglie;2;Interventi assistenziali;999;Altri assegni e sussidi assistenziali;10/04/2019
568;1;0;187,5;187,5;OMESSO NOMINATIVO NEL RISPETTO DELLA NORMATIVA SULLA PROTEZIONE DATI PERSONALI; ;IMPEGNO DI SPESA LEGGE 162/1998 PIANI PERSONALIZZATI IN SOSTEGNO ALLE PERSONE CON DISABILITA' GRAVE - PROROGA DAL 01.01.2019 AL 30.04.2019;10/04/2019;1420;2;29;1;Spese correnti;4;Trasferimenti correnti;2;Trasferimenti correnti a Famiglie;2;Interventi assistenziali;999;Altri assegni e sussidi assistenziali;10/04/2019
569;1;0;311,26;311,26;OMESSO NOMINATIVO NEL RISPETTO DELLA NORMATIVA SULLA PROTEZIONE DATI PERSONALI; ;IMPEGNO DI SPESA LEGGE 162/1998 PIANI PERSONALIZZATI IN SOSTEGNO ALLE PERSONE CON DISABILITA' GRAVE - PROROGA DAL 01.01.2019 AL 30.04.2019;10/04/2019;1420;2;29;1;Spese correnti;4;Trasferimenti correnti;2;Trasferimenti correnti a Famiglie;2;Interventi assistenziali;999;Altri assegni e sussidi assistenziali;10/04/2019
570;1;0;281,74;281,74;OMESSO NOMINATIVO NEL RISPETTO DELLA NORMATIVA SULLA PROTEZIONE DATI PERSONALI; ;IMPEGNO DI SPESA LEGGE 162/1998 PIANI PERSONALIZZATI IN SOSTEGNO ALLE PERSONE CON DISABILITA' GRAVE - PROROGA DAL 01.01.2019 AL 30.04.2019;10/04/2019;1420;2;29;1;Spese correnti;4;Trasferimenti correnti;2;Trasferimenti correnti a Famiglie;2;Interventi assistenziali;999;Altri assegni e sussidi assistenziali;10/04/2019
571;1;0;396,8;396,8;OMESSO NOMINATIVO NEL RISPETTO DELLA NORMATIVA SULLA PROTEZIONE DATI PERSONALI; ;IMPEGNO DI SPESA LEGGE 162/1998 PIANI PERSONALIZZATI IN SOSTEGNO ALLE PERSONE CON DISABILITA' GRAVE - PROROGA DAL 01.01.2019 AL 30.04.2019;10/04/2019;1420;2;29;1;Spese correnti;4;Trasferimenti correnti;2;Trasferimenti correnti a Famiglie;2;Interventi assistenziali;999;Altri assegni e sussidi assistenziali;10/04/2019
572;1;0;175,29;175,29;OMESSO NOMINATIVO NEL RISPETTO DELLA NORMATIVA SULLA PROTEZIONE DATI PERSONALI; ;IMPEGNO DI SPESA LEGGE 162/1998 PIANI PERSONALIZZATI IN SOSTEGNO ALLE PERSONE CON DISABILITA' GRAVE - PROROGA DAL 01.01.2019 AL 30.04.2019;10/04/2019;1420;2;29;1;Spese correnti;4;Trasferimenti correnti;2;Trasferimenti correnti a Famiglie;2;Interventi assistenziali;999;Altri assegni e sussidi assistenziali;10/04/2019
573;1;0;300,98;300,98;OMESSO NOMINATIVO NEL RISPETTO DELLA NORMATIVA SULLA PROTEZIONE DATI PERSONALI; ;IMPEGNO DI SPESA LEGGE 162/1998 PIANI PERSONALIZZATI IN SOSTEGNO ALLE PERSONE CON DISABILITA' GRAVE - PROROGA DAL 01.01.2019 AL 30.04.2019;10/04/2019;1420;2;29;1;Spese correnti;4;Trasferimenti correnti;2;Trasferimenti correnti a Famiglie;2;Interventi assistenziali;999;Altri assegni e sussidi assistenziali;10/04/2019
574;1;0;187,5;187,5;OMESSO NOMINATIVO NEL RISPETTO DELLA NORMATIVA SULLA PROTEZIONE DATI PERSONALI; ;IMPEGNO DI SPESA LEGGE 162/1998 PIANI PERSONALIZZATI IN SOSTEGNO ALLE PERSONE CON DISABILITA' GRAVE - PROROGA DAL 01.01.2019 AL 30.04.2019;10/04/2019;1420;2;29;1;Spese correnti;4;Trasferimenti correnti;2;Trasferimenti correnti a Famiglie;2;Interventi assistenziali;999;Altri assegni e sussidi assistenziali;10/04/2019
575;1;0;156,25;156,25;OMESSO NOMINATIVO NEL RISPETTO DELLA NORMATIVA SULLA PROTEZIONE DATI PERSONALI; ;IMPEGNO DI SPESA LEGGE 162/1998 PIANI PERSONALIZZATI IN SOSTEGNO ALLE PERSONE CON DISABILITA' GRAVE - PROROGA DAL 01.01.2019 AL 30.04.2019;10/04/2019;1420;2;29;1;Spese correnti;4;Trasferimenti correnti;2;Trasferimenti correnti a Famiglie;2;Interventi assistenziali;999;Altri assegni e sussidi assistenziali;10/04/2019
576;1;0;149,05;149,05;OMESSO NOMINATIVO NEL RISPETTO DELLA NORMATIVA SULLA PROTEZIONE DATI PERSONALI; ;IMPEGNO DI SPESA LEGGE 162/1998 PIANI PERSONALIZZATI IN SOSTEGNO ALLE PERSONE CON DISABILITA' GRAVE - PROROGA DAL 01.01.2019 AL 30.04.2019;10/04/2019;1420;2;29;1;Spese correnti;4;Trasferimenti correnti;2;Trasferimenti correnti a Famiglie;2;Interventi assistenziali;999;Altri assegni e sussidi assistenziali;10/04/2019
577;1;0;293;293;OMESSO NOMINATIVO NEL RISPETTO DELLA NORMATIVA SULLA PROTEZIONE DATI PERSONALI; ;IMPEGNO DI SPESA LEGGE 162/1998 PIANI PERSONALIZZATI IN SOSTEGNO ALLE PERSONE CON DISABILITA' GRAVE - PROROGA DAL 01.01.2019 AL 30.04.2019;10/04/2019;1420;2;29;1;Spese correnti;4;Trasferimenti correnti;2;Trasferimenti correnti a Famiglie;2;Interventi assistenziali;999;Altri assegni e sussidi assistenziali;10/04/2019
578;1;0;238,78;238,78;OMESSO NOMINATIVO NEL RISPETTO DELLA NORMATIVA SULLA PROTEZIONE DATI PERSONALI; ;IMPEGNO DI SPESA LEGGE 162/1998 PIANI PERSONALIZZATI IN SOSTEGNO ALLE PERSONE CON DISABILITA' GRAVE - PROROGA DAL 01.01.2019 AL 30.04.2019;10/04/2019;1420;2;29;1;Spese correnti;4;Trasferimenti correnti;2;Trasferimenti correnti a Famiglie;2;Interventi assistenziali;999;Altri assegni e sussidi assistenziali;10/04/2019
579;1;0;161,66;161,66;OMESSO NOMINATIVO NEL RISPETTO DELLA NORMATIVA SULLA PROTEZIONE DATI PERSONALI; ;IMPEGNO DI SPESA LEGGE 162/1998 PIANI PERSONALIZZATI IN SOSTEGNO ALLE PERSONE CON DISABILITA' GRAVE - PROROGA DAL 01.01.2019 AL 30.04.2019;10/04/2019;1420;2;29;1;Spese correnti;4;Trasferimenti correnti;2;Trasferimenti correnti a Famiglie;2;Interventi assistenziali;999;Altri assegni e sussidi assistenziali;10/04/2019
580;1;0;211,25;211,25;OMESSO NOMINATIVO NEL RISPETTO DELLA NORMATIVA SULLA PROTEZIONE DATI PERSONALI; ;IMPEGNO DI SPESA LEGGE 162/1998 PIANI PERSONALIZZATI IN SOSTEGNO ALLE PERSONE CON DISABILITA' GRAVE - PROROGA DAL 01.01.2019 AL 30.04.2019;10/04/2019;1420;2;29;1;Spese correnti;4;Trasferimenti correnti;2;Trasferimenti correnti a Famiglie;2;Interventi assistenziali;999;Altri assegni e sussidi assistenziali;10/04/2019
581;1;0;4.189,50;4.189,50;PUTZOLU ALESSANDRO;ZCD2674E89;Fatt.n. 1/FE del 05/04/2019;11/04/2019;1270;0;356;1;Spese correnti;4;Trasferimenti correnti;3;Trasferimenti correnti a Imprese;99;Trasferimenti correnti a altre imprese;999;Trasferimenti correnti a altre imprese;11/04/2019
582;1;0;145,05;145,05;OMESSO NOMINATIVO NEL RISPETTO DELLA NORMATIVA SULLA PROTEZIONE DATI PERSONALI; ;IMPEGNO DI SPESA LEGGE 162/1998 PIANI PERSONALIZZATI IN SOSTEGNO ALLE PERSONE CON DISABILITA' GRAVE - PROROGA DAL 01.01.2019 AL 30.04.2019;11/04/2019;1420;2;29;1;Spese correnti;4;Trasferimenti correnti;2;Trasferimenti correnti a Famiglie;2;Interventi assistenziali;999;Altri assegni e sussidi assistenziali;11/04/2019
583;1;0;345,89;345,89;OMESSO NOMINATIVO NEL RISPETTO DELLA NORMATIVA SULLA PROTEZIONE DATI PERSONALI; ;IMPEGNO DI SPESA LEGGE 162/1998 PIANI PERSONALIZZATI IN SOSTEGNO ALLE PERSONE CON DISABILITA' GRAVE - PROROGA DAL 01.01.2019 AL 30.04.2019;11/04/2019;1420;2;29;1;Spese correnti;4;Trasferimenti correnti;2;Trasferimenti correnti a Famiglie;2;Interventi assistenziali;999;Altri assegni e sussidi assistenziali;11/04/2019
584;1;0;341,27;341,27;OMESSO NOMINATIVO NEL RISPETTO DELLA NORMATIVA SULLA PROTEZIONE DATI PERSONALI; ;IMPEGNO DI SPESA LEGGE 162/1998 PIANI PERSONALIZZATI IN SOSTEGNO ALLE PERSONE CON DISABILITA' GRAVE - PROROGA DAL 01.01.2019 AL 30.04.2019;11/04/2019;1420;2;29;1;Spese correnti;4;Trasferimenti correnti;2;Trasferimenti correnti a Famiglie;2;Interventi assistenziali;999;Altri assegni e sussidi assistenziali;11/04/2019
585;1;0;231,4;231,4;OMESSO NOMINATIVO NEL RISPETTO DELLA NORMATIVA SULLA PROTEZIONE DATI PERSONALI; ;IMPEGNO DI SPESA LEGGE 162/1998 PIANI PERSONALIZZATI IN SOSTEGNO ALLE PERSONE CON DISABILITA' GRAVE - PROROGA DAL 01.01.2019 AL 30.04.2019;11/04/2019;1420;2;29;1;Spese correnti;4;Trasferimenti correnti;2;Trasferimenti correnti a Famiglie;2;Interventi assistenziali;999;Altri assegni e sussidi assistenziali;11/04/2019
586;1;0;145,05;145,05;OMESSO NOMINATIVO NEL RISPETTO DELLA NORMATIVA SULLA PROTEZIONE DATI PERSONALI; ;IMPEGNO DI SPESA LEGGE 162/1998 PIANI PERSONALIZZATI IN SOSTEGNO ALLE PERSONE CON DISABILITA' GRAVE - PROROGA DAL 01.01.2019 AL 30.04.2019;11/04/2019;1420;2;29;1;Spese correnti;4;Trasferimenti correnti;2;Trasferimenti correnti a Famiglie;2;Interventi assistenziali;999;Altri assegni e sussidi assistenziali;11/04/2019
587;1;0;143,03;143,03;OMESSO NOMINATIVO NEL RISPETTO DELLA NORMATIVA SULLA PROTEZIONE DATI PERSONALI; ;IMPEGNO DI SPESA LEGGE 162/1998 PIANI PERSONALIZZATI IN SOSTEGNO ALLE PERSONE CON DISABILITA' GRAVE - PROROGA DAL 01.01.2019 AL 30.04.2019;11/04/2019;1420;2;29;1;Spese correnti;4;Trasferimenti correnti;2;Trasferimenti correnti a Famiglie;2;Interventi assistenziali;999;Altri assegni e sussidi assistenziali;11/04/2019
588;1;0;997,57;997,57;OMESSO NOMINATIVO NEL RISPETTO DELLA NORMATIVA SULLA PROTEZIONE DATI PERSONALI; ;IMPEGNO DI SPESA E PRESA IN CARICO L.R. 27/83 ANNO 2019;11/04/2019;1438;0;36;1;Spese correnti;4;Trasferimenti correnti;2;Trasferimenti correnti a Famiglie;2;Interventi assistenziali;999;Altri assegni e sussidi assistenziali;11/04/2019
589;1;0;55,78;55,78;OMESSO NOMINATIVO NEL RISPETTO DELLA NORMATIVA SULLA PROTEZIONE DATI PERSONALI; ;SERVIZI ALLA PERSONA-L.R. N. 9/2004, ART. 1- PRESA IN CARICO E IMPEGNO DI SPESA.;11/04/2019;1438;0;7;1;Spese correnti;4;Trasferimenti correnti;2;Trasferimenti correnti a Famiglie;2;Interventi assistenziali;999;Altri assegni e sussidi assistenziali;11/04/2019
590;1;0;7.088,89;7.088,89;CONSORZIO NETWORK ETICO;7654115782;Fatt.n. 2/773 del 09/04/2019;12/04/2019;1412;0;30;1;Spese correnti;3;Acquisto di beni e servizi;2;Acquisto di servizi;15;Contratti di servizio pubblico;9;Contratti di servizio di assistenza sociale domiciliare;12/04/2019
591;1;0;833,14;833,14;CONSORZIO NETWORK ETICO;7654115782;Fatt.n. 2/774 del 09/04/2019;12/04/2019;1413;0;31;1;Spese correnti;3;Acquisto di beni e servizi;2;Acquisto di servizi;99;Altri servizi;999;Altri servizi diversi n.a.c.;12/04/2019
592;1;0;3.534,99;3.534,99;CONSORZIO NETWORK ETICO;7391758FA7;Fatt.n. 2/772 del 09/04/2019;12/04/2019;1416;0;83;1;Spese correnti;3;Acquisto di beni e servizi;2;Acquisto di servizi;11;Prestazioni professionali e specialistiche;999;Altre prestazioni professionali e specialistiche n.a.c.;12/04/2019
593;1;0;151,94;151,94;OMESSO NOMINATIVO NEL RISPETTO DELLA NORMATIVA SULLA PROTEZIONE DATI PERSONALI; ;IMPEGNO DI SPESA LEGGE 162/1998 PIANI PERSONALIZZATI IN SOSTEGNO ALLE PERSONE CON DISABILITA' GRAVE - PROROGA DAL 01.01.2019 AL 30.04.2019;12/04/2019;1420;2;29;1;Spese correnti;4;Trasferimenti correnti;2;Trasferimenti correnti a Famiglie;2;Interventi assistenziali;999;Altri assegni e sussidi assistenziali;12/04/2019
594;1;0;304,13;304,13;OMESSO NOMINATIVO NEL RISPETTO DELLA NORMATIVA SULLA PROTEZIONE DATI PERSONALI; ;IMPEGNO DI SPESA LEGGE 162/1998 PIANI PERSONALIZZATI IN SOSTEGNO ALLE PERSONE CON DISABILITA' GRAVE - PROROGA DAL 01.01.2019 AL 30.04.2019;12/04/2019;1420;2;29;1;Spese correnti;4;Trasferimenti correnti;2;Trasferimenti correnti a Famiglie;2;Interventi assistenziali;999;Altri assegni e sussidi assistenziali;12/04/2019
595;1;0;385,7;385,7;OMESSO NOMINATIVO NEL RISPETTO DELLA NORMATIVA SULLA PROTEZIONE DATI PERSONALI; ;IMPEGNO DI SPESA LEGGE 162/1998 PIANI PERSONALIZZATI IN SOSTEGNO ALLE PERSONE CON DISABILITA' GRAVE - PROROGA DAL 01.01.2019 AL 30.04.2019;12/04/2019;1420;2;29;1;Spese correnti;4;Trasferimenti correnti;2;Trasferimenti correnti a Famiglie;2;Interventi assistenziali;999;Altri assegni e sussidi assistenziali;12/04/2019
596;1;0;504,15;504,15;OMESSO NOMINATIVO NEL RISPETTO DELLA NORMATIVA SULLA PROTEZIONE DATI PERSONALI; ;IMPEGNO DI SPESA LEGGE 162/1998 PIANI PERSONALIZZATI IN SOSTEGNO ALLE PERSONE CON DISABILITA' GRAVE - PROROGA DAL 01.01.2019 AL 30.04.2019;12/04/2019;1420;2;29;1;Spese correnti;4;Trasferimenti correnti;2;Trasferimenti correnti a Famiglie;2;Interventi assistenziali;999;Altri assegni e sussidi assistenziali;12/04/2019
597;1;0;300;300;OMESSO NOMINATIVO NEL RISPETTO DELLA NORMATIVA SULLA PROTEZIONE DATI PERSONALI; ;IMPEGNO DI SPESA PER CONTRIBUTO A FAVORE DI CITTADINI SOFFERENTI MENTALI INSERITI IN STRUTTURE RESIDENZIALI - ANNUALITA' 2019;12/04/2019;1434;0;26;1;Spese correnti;4;Trasferimenti correnti;2;Trasferimenti correnti a Famiglie;2;Interventi assistenziali;999;Altri assegni e sussidi assistenziali;12/04/2019
598;1;0;92,3;92,3;OMESSO NOMINATIVO NEL RISPETTO DELLA NORMATIVA SULLA PROTEZIONE DATI PERSONALI; ;IMPEGNO DI SPESA LEGGE 162/1998 PIANI PERSONALIZZATI IN SOSTEGNO ALLE PERSONE CON DISABILITA' GRAVE - PROROGA DAL 01.01.2019 AL 30.04.2019;16/04/2019;1420;2;29;1;Spese correnti;4;Trasferimenti correnti;2;Trasferimenti correnti a Famiglie;2;Interventi assistenziali;999;Altri assegni e sussidi assistenziali;16/04/2019
599;1;0;522,24;522,24;OMESSO NOMINATIVO NEL RISPETTO DELLA NORMATIVA SULLA PROTEZIONE DATI PERSONALI; ;IMPEGNO DI SPESA LEGGE 162/1998 PIANI PERSONALIZZATI IN SOSTEGNO ALLE PERSONE CON DISABILITA' GRAVE - PROROGA DAL 01.01.2019 AL 30.04.2019;16/04/2019;1420;2;29;1;Spese correnti;4;Trasferimenti correnti;2;Trasferimenti correnti a Famiglie;2;Interventi assistenziali;999;Altri assegni e sussidi assistenziali;16/04/2019
600;1;0;427,91;427,91;OMESSO NOMINATIVO NEL RISPETTO DELLA NORMATIVA SULLA PROTEZIONE DATI PERSONALI; ;IMPEGNO DI SPESA LEGGE 162/1998 PIANI PERSONALIZZATI IN SOSTEGNO ALLE PERSONE CON DISABILITA' GRAVE - PROROGA DAL 01.01.2019 AL 30.04.2019;16/04/2019;1420;2;29;1;Spese correnti;4;Trasferimenti correnti;2;Trasferimenti correnti a Famiglie;2;Interventi assistenziali;999;Altri assegni e sussidi assistenziali;16/04/2019
601;1;0;152;152;OMESSO NOMINATIVO NEL RISPETTO DELLA NORMATIVA SULLA PROTEZIONE DATI PERSONALI; ;IMPEGNO DI SPESA LEGGE 162/1998 PIANI PERSONALIZZATI IN SOSTEGNO ALLE PERSONE CON DISABILITA' GRAVE - PROROGA DAL 01.01.2019 AL 30.04.2019;16/04/2019;1420;2;29;1;Spese correnti;4;Trasferimenti correnti;2;Trasferimenti correnti a Famiglie;2;Interventi assistenziali;999;Altri assegni e sussidi assistenziali;16/04/2019
602;1;0;1.408,00;1.408,00;COOP. NUOVE IDEE;Z52230BA0F;Fatt.n. 532E/V2 del 08/04/2019 Fattura clienti Split Payment ex art. 17-ter DPR 633/72;16/04/2019;715;0;37;1;Spese correnti;3;Acquisto di beni e servizi;2;Acquisto di servizi;11;Prestazioni professionali e specialistiche;999;Altre prestazioni professionali e specialistiche n.a.c.;16/04/2019
603;1;0;305;305;DASEIN S.R.L.;ZF4271C1F6;Fatt.n. 431 del 08/04/2019;16/04/2019;82;3;16;1;Spese correnti;3;Acquisto di beni e servizi;1;Acquisto di beni;2;Altri beni di consumo;6;Materiale informatico;16/04/2019
604;1;0;2.986,80;2.986,80;HALLEY SARDEGNA SRL;Z352748E30;Fatt.n. 0000437 del 04/04/2019;16/04/2019;82;2;48;1;Spese correnti;3;Acquisto di beni e servizi;2;Acquisto di servizi;19;Servizi informatici e di telecomunicazioni;1;Gestione e manutenzione applicazioni;16/04/2019
605;1;0;493,15;493,15;VODAFONE OMNITEL N.V.;ZF3271E402;Fatt.n. AL06046282 del 04/04/2019 scissione pagamenti;16/04/2019;598;3;25;1;Spese correnti;3;Acquisto di beni e servizi;2;Acquisto di servizi;5;Utenze e canoni;1;Telefonia fissa;16/04/2019
606;1;0;27.572,61;27.572,61;SARDA COGE SRL;77523609D8;Fatt.n. 9/PA del 12/04/2019 CIG: 77523609D8    CUP: I17H18002560004;16/04/2019;3111;0;369;2;Spese in conto capitale;5;Altre spese in conto capitale;99;Altre spese in conto capitale n.a.c.;99;Altre spese in conto capitale n.a.c.;999;Altre spese in conto capitale n.a.c.;16/04/2019
607;1;0;826;826;MESU E RIOS;ZE827F8A60;Fatt.n. 25/PA del 11/04/2019 DEST.MERCE COMUNE DI TULA - CASA COMUNALE - CORSO REPUBBLICA - TULA (SS) DAS N. 224219 DEL 10/04/2019 .;16/04/2019;82;4;102;1;Spese correnti;3;Acquisto di beni e servizi;1;Acquisto di beni;2;Altri beni di consumo;2;Carburanti, combustibili e lubrificanti;16/04/2019
608;1;0;1.180,00;1.180,00;MESU E RIOS;ZE827F8A60;Fatt.n. 29/PA del 11/04/2019 DEST.MERCE COMUNE DI TULA - SCUOLA MATERNA - VIA P.NENNI - TULA (SS) DAS N. 224223 DEL 10/04/2019 .;16/04/2019;564;4;103;1;Spese correnti;3;Acquisto di beni e servizi;1;Acquisto di beni;2;Altri beni di consumo;2;Carburanti, combustibili e lubrificanti;16/04/2019
609;1;0;1.180,00;1.180,00;MESU E RIOS;ZE827F8A60;Fatt.n. 28/PA del 11/04/2019 DEST.MERCE COMUNE DI TULA - SCUOLA ELEMENTARE - VIA R. CANALIS - TULA (SS) DAS N. 224222 DEL 10/04/2019 .;16/04/2019;582;4;104;1;Spese correnti;3;Acquisto di beni e servizi;1;Acquisto di beni;2;Altri beni di consumo;2;Carburanti, combustibili e lubrificanti;16/04/2019
610;1;0;1.180,00;1.180,00;MESU E RIOS;ZE827F8A60;Fatt.n. 26/PA del 11/04/2019 DEST.MERCE COMUNE DI TULA - SCUOLA MEDIA - VIA R. CANALIS - TULA (SS) DAS N. 224220 DEL 10/04/2019 .;16/04/2019;616;4;105;1;Spese correnti;3;Acquisto di beni e servizi;1;Acquisto di beni;2;Altri beni di consumo;2;Carburanti, combustibili e lubrificanti;16/04/2019
611;1;0;354;354;MESU E RIOS;ZE827F8A60;Fatt.n. 27/PA del 11/04/2019 DEST.MERCE COMUNE DI TULA - CENTRO DIURNO BIBLIOTECA - CORSO REPUBBLICA - TULA (SS) DAS N. 224221 DEL 10/04/2019 .;16/04/2019;714;4;106;1;Spese correnti;3;Acquisto di beni e servizi;1;Acquisto di beni;2;Altri beni di consumo;2;Carburanti, combustibili e lubrificanti;16/04/2019
612;1;0;10.145,58;10.145,58;UNIONE DEI COMUNI DEL LOGUDORO; ;Gestione associata servizio di raccolta differenziata e avvio allo smaltimento dei r.s.u. . Adesione a richiesta dell'Unione del Logudoro.Acconto. LIQ. N. 179;16/04/2019;1265;0;100;1;Spese correnti;4;Trasferimenti correnti;1;Trasferimenti correnti a Amministrazioni Pubbliche;2;Trasferimenti correnti a Amministrazioni Locali;5;Trasferimenti correnti a Unioni di Comuni;16/04/2019
613;1;0;28.650,48;28.650,48;UNIONE DEI COMUNI DEL LOGUDORO; ;Gestione associata servizio di raccolta differenziata e avvio allo smaltimento dei r.s.u. . Adesione a richiesta dell'Unione del Logudoro. SALDO I QUADRIMESTRE 2019. LIQ. N. 179;16/04/2019;1265;0;111;1;Spese correnti;4;Trasferimenti correnti;1;Trasferimenti correnti a Amministrazioni Pubbliche;2;Trasferimenti correnti a Amministrazioni Locali;5;Trasferimenti correnti a Unioni di Comuni;16/04/2019
614;1;0;1.110,20;1.110,20;RINASCITA SOC.COOP.SOCIALE;Z7424F506C;Fatt.n. 16 del 16/04/2019;17/04/2019;1435;0;234;1;Spese correnti;3;Acquisto di beni e servizi;2;Acquisto di servizi;99;Altri servizi;999;Altri servizi diversi n.a.c.;17/04/2019
615;1;0;5.727,00;5.727,00;RINASCITA SOC.COOP.SOCIALE; ;ATTIVAZIONE INTERVENTO DENOMINATO REIS (REDDITO DI INCLUSIONE SOCIALE) ANNO 2018. MESE DI APRILE.LIQ. N. 180;17/04/2019;1435;0;234;1;Spese correnti;3;Acquisto di beni e servizi;2;Acquisto di servizi;99;Altri servizi;999;Altri servizi diversi n.a.c.;17/04/2019
616;1;0;446,29;446,29;SERVIZIO ELETTRICO NAZIONALE - SERVIZIO DI MAGGIOR TUTE;ZA5229C654;Fatt.n. 907151201731812 del 10/04/2019;17/04/2019;716;4;38;1;Spese correnti;3;Acquisto di beni e servizi;2;Acquisto di servizi;5;Utenze e canoni;4;Energia elettrica;17/04/2019
617;1;0;201,2;201,2;SERVIZIO ELETTRICO NAZIONALE - SERVIZIO DI MAGGIOR TUTE;ZA5229C654;Fatt.n. 907151471763432 del 10/04/2019;17/04/2019;716;4;38;1;Spese correnti;3;Acquisto di beni e servizi;2;Acquisto di servizi;5;Utenze e canoni;4;Energia elettrica;17/04/2019
618;1;0;326,16;326,16;L'ARCOBALENO di Muggianu Rosanna;ZE227A3006;Fatt.n. 160B del 16/04/2019;17/04/2019;714;0;81;1;Spese correnti;3;Acquisto di beni e servizi;1;Acquisto di beni;1;Giornali, riviste e pubblicazioni;2;Pubblicazioni;17/04/2019
644;1;0;2.049,81;2.049,81;PERSONALE DIVERSO (Confr.Allegato); ;STIPENDI MESE DI: APRILE 19;18/04/2019;14;1;53;1;Spese correnti;3;Acquisto di beni e servizi;2;Acquisto di servizi;1;Organi e incarichi istituzionali dell'amministrazione;1;Organi istituzionali dell'amministrazione - Indennità;18/04/2019
645;1;0;174,22;174,22;TESORERIA PROV.LE DELLO STATO; ;VERS. IMPOSTE MESE: APRILE 19 PER I.R.A.P.;18/04/2019;14;1;0;1;Spese correnti;3;Acquisto di beni e servizi;2;Acquisto di servizi;1;Organi e incarichi istituzionali dell'amministrazione;1;Organi istituzionali dell'amministrazione - Indennità;18/04/2019
648;1;0;128,2;128,2;STAPLES DIRECT MONDOFFICE SRL;Z0C245F780;Fatt.n. P0002111 del 16/04/2019;19/04/2019;82;0;188;1;Spese correnti;3;Acquisto di beni e servizi;1;Acquisto di beni;2;Altri beni di consumo;1;Carta, cancelleria e stampati;19/04/2019
651;1;0;1.830,00;1.830,00;PUDDU PALMIRO;Z3D280FDF7;Fatt.n. 6 del 17/04/2019;19/04/2019;3413;0;113;2;Spese in conto capitale;5;Altre spese in conto capitale;99;Altre spese in conto capitale n.a.c.;99;Altre spese in conto capitale n.a.c.;999;Altre spese in conto capitale n.a.c.;19/04/2019
652;1;0;19.391,78;19.391,78;MILIA ANTONIO;Z6A218756A;Fatt.n. 1/PA del 17/04/2019 Repertorio n  13/2018  SALDO.;19/04/2019;2615;0;300;2;Spese in conto capitale;2;Investimenti fissi lordi e acquisto di terreni;1;Beni materiali;9;Beni immobili;11;Infrastrutture portuali e aeroportuali;19/04/2019
653;1;0;15.436,57;15.436,57;MILIA ANTONIO;ZC62818DC3;Fatt.n. 2/PA del 17/04/2019 Repertorio n  13/2018. LAVORI DI COMPLETAMENTO;19/04/2019;2615;0;289;2;Spese in conto capitale;2;Investimenti fissi lordi e acquisto di terreni;1;Beni materiali;9;Beni immobili;11;Infrastrutture portuali e aeroportuali;19/04/2019
654;1;0;1.060,28;1.060,28;SERVIZIO ELETTRICO NAZIONALE - SERVIZIO DI MAGGIOR TUTE;Z3723FBF0B;Fatt.n. 907151470732315 del 10/04/2019;02/05/2019;598;4;152;1;Spese correnti;3;Acquisto di beni e servizi;2;Acquisto di servizi;5;Utenze e canoni;4;Energia elettrica;02/05/2019
655;1;0;736,67;736,67;SERVIZIO ELETTRICO NAZIONALE - SERVIZIO DI MAGGIOR TUTE;Z3723FBF0B;Fatt.n. 907151470733517 del 10/04/2019;02/05/2019;618;4;153;1;Spese correnti;3;Acquisto di beni e servizi;2;Acquisto di servizi;5;Utenze e canoni;4;Energia elettrica;02/05/2019
656;1;0;113,61;113,61;OMESSO NOMINATIVO NEL RISPETTO DELLA NORMATIVA SULLA PROTEZIONE DATI PERSONALI; ;IMPEGNO DI SPESA LEGGE 162/1998 PIANI PERSONALIZZATI IN SOSTEGNO ALLE PERSONE CON DISABILITA' GRAVE - PROROGA DAL 01.01.2019 AL 30.04.2019;02/05/2019;1420;2;29;1;Spese correnti;4;Trasferimenti correnti;2;Trasferimenti correnti a Famiglie;2;Interventi assistenziali;999;Altri assegni e sussidi assistenziali;02/05/2019
657;1;0;222,59;222,59;OMESSO NOMINATIVO NEL RISPETTO DELLA NORMATIVA SULLA PROTEZIONE DATI PERSONALI; ;IMPEGNO DI SPESA E PRESA IN CARICO L.R. 11/85 PROVVIDENZE A FAVORE DI NEFROPATICI - ANNO 2019;02/05/2019;1438;0;28;1;Spese correnti;4;Trasferimenti correnti;2;Trasferimenti correnti a Famiglie;2;Interventi assistenziali;999;Altri assegni e sussidi assistenziali;02/05/2019
658;1;0;760;760;OMESSO NOMINATIVO NEL RISPETTO DELLA NORMATIVA SULLA PROTEZIONE DATI PERSONALI; ;IMPEGNO DI SPESA PER L.R. 20/1997 - PRESA IN CARICO ANNO 2019;02/05/2019;1438;0;79;1;Spese correnti;4;Trasferimenti correnti;2;Trasferimenti correnti a Famiglie;2;Interventi assistenziali;999;Altri assegni e sussidi assistenziali;02/05/2019
659;1;0;300;300;FOIS MARIANO; ;Rinuncia alla concessione di n. 1 loculo cimiteriale  Restituzione quota del 50%.;03/05/2019;3781;0;119;2;Spese in conto capitale;2;Investimenti fissi lordi e acquisto di terreni;1;Beni materiali;9;Beni immobili;15;Cimiteri;03/05/2019
660;1;0;430;430;DITTA MURGAS ALFREDO;Z7B280C429;Fatt.n. 1/PA del 24/04/2019 RIPARAZIONE TUBAZIONE SORGENTI DI CUI ALLA DETERMINA 126 DEL 15-04-2019 CIG Z7B280C429;03/05/2019;255;0;110;1;Spese correnti;3;Acquisto di beni e servizi;2;Acquisto di servizi;9;Manutenzione ordinaria e riparazioni;8;Manutenzione ordinaria e riparazioni di beni immobili;03/05/2019
661;1;0;3.548,03;3.548,03;PUDDU PALMIRO;Z1B261BC05;Fatt.n. 7 del 29/04/2019;03/05/2019;1302;0;14;1;Spese correnti;3;Acquisto di beni e servizi;2;Acquisto di servizi;13;Servizi ausiliari per il funzionamento dell'ente;999;Altri servizi ausiliari n.a.c.;03/05/2019
662;1;0;1.092,00;1.092,00;GASPARI;Z8F27CB655;Fatt.n. 05931/S del 26/04/2019;03/05/2019;82;0;96;1;Spese correnti;3;Acquisto di beni e servizi;1;Acquisto di beni;2;Altri beni di consumo;1;Carta, cancelleria e stampati;03/05/2019
663;1;0;780,8;780,8;IRIDEOS SPA;ZEB2748951;Fatt.n. 0012000933 del 15/04/2019;03/05/2019;118;3;41;1;Spese correnti;3;Acquisto di beni e servizi;2;Acquisto di servizi;5;Utenze e canoni;1;Telefonia fissa;03/05/2019
664;1;0;37,2;1.138,18;IRIDEOS SPA;ZEB2748951;Fatt.n. 0012000931 del 15/04/2019;03/05/2019;118;3;41;1;Spese correnti;3;Acquisto di beni e servizi;2;Acquisto di servizi;5;Utenze e canoni;1;Telefonia fissa;03/05/2019
664;2;0;1.100,98;1.138,18;IRIDEOS SPA;ZEB2748951;Fatt.n. 0012000932 del 15/04/2019;03/05/2019;118;3;41;1;Spese correnti;3;Acquisto di beni e servizi;2;Acquisto di servizi;5;Utenze e canoni;1;Telefonia fissa;03/05/2019
665;1;0;161,76;161,76;ANCI Sardegna; ;Addizionale Regionale ANCI quota associativa 2019.;06/05/2019;134;0;124;1;Spese correnti;4;Trasferimenti correnti;1;Trasferimenti correnti a Amministrazioni Pubbliche;2;Trasferimenti correnti a Amministrazioni Locali;999;Trasferimenti correnti a altre Amministrazioni Locali n.a.c.;06/05/2019
667;1;0;390,4;390,4;VETEFARMA srl;Z8B273EE05;Fatt.n. PA0000022 del 27/02/2019;06/05/2019;82;0;43;1;Spese correnti;3;Acquisto di beni e servizi;1;Acquisto di beni;2;Altri beni di consumo;999;Altri beni e materiali di consumo n.a.c.;06/05/2019
668;1;0;18.700,00;18.700,00;PETRARCA s.r.l.;7,56E+28;Fatt.n. 27 del 06/05/2019 Lavori di ampliamento della casa di riposo Giovanni Paolo II;07/05/2019;3534;0;216;2;Spese in conto capitale;5;Altre spese in conto capitale;99;Altre spese in conto capitale n.a.c.;99;Altre spese in conto capitale n.a.c.;999;Altre spese in conto capitale n.a.c.;07/05/2019
669;1;0;2.684,00;2.684,00;PUDDU PALMIRO;Z0A2817495;Fatt.n. 8 del 06/05/2019;07/05/2019;3413;0;116;2;Spese in conto capitale;5;Altre spese in conto capitale;99;Altre spese in conto capitale n.a.c.;99;Altre spese in conto capitale n.a.c.;999;Altre spese in conto capitale n.a.c.;07/05/2019
670;1;0;2.074,00;2.074,00;ITM TELEMATICA;ZE8256FB36;Fatt.n. 2019   223 del 19/04/2019;07/05/2019;82;1;286;1;Spese correnti;3;Acquisto di beni e servizi;2;Acquisto di servizi;9;Manutenzione ordinaria e riparazioni;11;Manutenzione ordinaria e riparazioni di altri beni materiali;07/05/2019
671;1;0;1.050,00;1.050,00;FIORI LEONARDA;Z6A218756A;Fatt.n. FATTPA 1_19 del 23/04/2019;07/05/2019;2615;0;289;2;Spese in conto capitale;2;Investimenti fissi lordi e acquisto di terreni;1;Beni materiali;9;Beni immobili;11;Infrastrutture portuali e aeroportuali;07/05/2019
672;1;0;2.569,63;2.569,63;REPAS LUNCH COUPON SRL;ZCF27F8599;Fatt.n. 2095/27 del 06/05/2019;08/05/2019;82;0;101;1;Spese correnti;3;Acquisto di beni e servizi;1;Acquisto di beni;2;Altri beni di consumo;1;Carta, cancelleria e stampati;08/05/2019
673;1;0;524,69;524,69;OMESSO NOMINATIVO NEL RISPETTO DELLA NORMATIVA SULLA PROTEZIONE DATI PERSONALI; ;IMPEGNO DI SPESA LEGGE 162/1998 PIANI PERSONALIZZATI IN SOSTEGNO ALLE PERSONE CON DISABILITA' GRAVE - PROROGA DAL 01.01.2019 AL 30.04.2019;08/05/2019;1420;2;29;1;Spese correnti;4;Trasferimenti correnti;2;Trasferimenti correnti a Famiglie;2;Interventi assistenziali;999;Altri assegni e sussidi assistenziali;08/05/2019
674;1;0;144,66;144,66;OMESSO NOMINATIVO NEL RISPETTO DELLA NORMATIVA SULLA PROTEZIONE DATI PERSONALI; ;IMPEGNO DI SPESA LEGGE 162/1998 PIANI PERSONALIZZATI IN SOSTEGNO ALLE PERSONE CON DISABILITA' GRAVE - PROROGA DAL 01.01.2019 AL 30.04.2019;08/05/2019;1420;2;29;1;Spese correnti;4;Trasferimenti correnti;2;Trasferimenti correnti a Famiglie;2;Interventi assistenziali;999;Altri assegni e sussidi assistenziali;08/05/2019
675;1;0;223,48;223,48;OMESSO NOMINATIVO NEL RISPETTO DELLA NORMATIVA SULLA PROTEZIONE DATI PERSONALI; ;IMPEGNO DI SPESA LEGGE 162/1998 PIANI PERSONALIZZATI IN SOSTEGNO ALLE PERSONE CON DISABILITA' GRAVE - PROROGA DAL 01.01.2019 AL 30.04.2019;08/05/2019;1420;2;29;1;Spese correnti;4;Trasferimenti correnti;2;Trasferimenti correnti a Famiglie;2;Interventi assistenziali;999;Altri assegni e sussidi assistenziali;08/05/2019
676;1;0;1.104,09;1.104,09;OMESSO NOMINATIVO NEL RISPETTO DELLA NORMATIVA SULLA PROTEZIONE DATI PERSONALI; ;IMPEGNO DI SPESA LEGGE 162/1998 PIANI PERSONALIZZATI IN SOSTEGNO ALLE PERSONE CON DISABILITA' GRAVE - PROROGA DAL 01.01.2019 AL 30.04.2019;08/05/2019;1420;2;29;1;Spese correnti;4;Trasferimenti correnti;2;Trasferimenti correnti a Famiglie;2;Interventi assistenziali;999;Altri assegni e sussidi assistenziali;08/05/2019
677;1;0;73,84;73,84;OMESSO NOMINATIVO NEL RISPETTO DELLA NORMATIVA SULLA PROTEZIONE DATI PERSONALI; ;IMPEGNO DI SPESA LEGGE 162/1998 PIANI PERSONALIZZATI IN SOSTEGNO ALLE PERSONE CON DISABILITA' GRAVE - PROROGA DAL 01.01.2019 AL 30.04.2019;08/05/2019;1420;2;29;1;Spese correnti;4;Trasferimenti correnti;2;Trasferimenti correnti a Famiglie;2;Interventi assistenziali;999;Altri assegni e sussidi assistenziali;08/05/2019
678;1;0;211,83;211,83;OMESSO NOMINATIVO NEL RISPETTO DELLA NORMATIVA SULLA PROTEZIONE DATI PERSONALI; ;IMPEGNO DI SPESA LEGGE 162/1998 PIANI PERSONALIZZATI IN SOSTEGNO ALLE PERSONE CON DISABILITA' GRAVE - PROROGA DAL 01.01.2019 AL 30.04.2019;08/05/2019;1420;2;29;1;Spese correnti;4;Trasferimenti correnti;2;Trasferimenti correnti a Famiglie;2;Interventi assistenziali;999;Altri assegni e sussidi assistenziali;08/05/2019
679;1;0;166,44;166,44;OMESSO NOMINATIVO NEL RISPETTO DELLA NORMATIVA SULLA PROTEZIONE DATI PERSONALI; ;IMPEGNO DI SPESA LEGGE 162/1998 PIANI PERSONALIZZATI IN SOSTEGNO ALLE PERSONE CON DISABILITA' GRAVE - PROROGA DAL 01.01.2019 AL 30.04.2019;08/05/2019;1420;2;29;1;Spese correnti;4;Trasferimenti correnti;2;Trasferimenti correnti a Famiglie;2;Interventi assistenziali;999;Altri assegni e sussidi assistenziali;08/05/2019
680;1;0;264,79;264,79;OMESSO NOMINATIVO NEL RISPETTO DELLA NORMATIVA SULLA PROTEZIONE DATI PERSONALI; ;IMPEGNO DI SPESA LEGGE 162/1998 PIANI PERSONALIZZATI IN SOSTEGNO ALLE PERSONE CON DISABILITA' GRAVE - PROROGA DAL 01.01.2019 AL 30.04.2019;08/05/2019;1420;2;29;1;Spese correnti;4;Trasferimenti correnti;2;Trasferimenti correnti a Famiglie;2;Interventi assistenziali;999;Altri assegni e sussidi assistenziali;08/05/2019
681;1;0;571,2;571,2;OMESSO NOMINATIVO NEL RISPETTO DELLA NORMATIVA SULLA PROTEZIONE DATI PERSONALI; ;IMPEGNO DI SPESA LEGGE 162/1998 PIANI PERSONALIZZATI IN SOSTEGNO ALLE PERSONE CON DISABILITA' GRAVE - PROROGA DAL 01.01.2019 AL 30.04.2019;08/05/2019;1420;2;29;1;Spese correnti;4;Trasferimenti correnti;2;Trasferimenti correnti a Famiglie;2;Interventi assistenziali;999;Altri assegni e sussidi assistenziali;08/05/2019
682;1;0;105,92;105,92;OMESSO NOMINATIVO NEL RISPETTO DELLA NORMATIVA SULLA PROTEZIONE DATI PERSONALI; ;IMPEGNO DI SPESA LEGGE 162/1998 PIANI PERSONALIZZATI IN SOSTEGNO ALLE PERSONE CON DISABILITA' GRAVE - PROROGA DAL 01.01.2019 AL 30.04.2019;08/05/2019;1420;2;29;1;Spese correnti;4;Trasferimenti correnti;2;Trasferimenti correnti a Famiglie;2;Interventi assistenziali;999;Altri assegni e sussidi assistenziali;08/05/2019
683;1;0;620,72;620,72;OMESSO NOMINATIVO NEL RISPETTO DELLA NORMATIVA SULLA PROTEZIONE DATI PERSONALI; ;IMPEGNO DI SPESA LEGGE 162/1998 PIANI PERSONALIZZATI IN SOSTEGNO ALLE PERSONE CON DISABILITA' GRAVE - PROROGA DAL 01.01.2019 AL 30.04.2019;08/05/2019;1420;2;29;1;Spese correnti;4;Trasferimenti correnti;2;Trasferimenti correnti a Famiglie;2;Interventi assistenziali;999;Altri assegni e sussidi assistenziali;08/05/2019
684;1;0;152;152;OMESSO NOMINATIVO NEL RISPETTO DELLA NORMATIVA SULLA PROTEZIONE DATI PERSONALI; ;IMPEGNO DI SPESA LEGGE 162/1998 PIANI PERSONALIZZATI IN SOSTEGNO ALLE PERSONE CON DISABILITA' GRAVE - PROROGA DAL 01.01.2019 AL 30.04.2019;08/05/2019;1420;2;29;1;Spese correnti;4;Trasferimenti correnti;2;Trasferimenti correnti a Famiglie;2;Interventi assistenziali;999;Altri assegni e sussidi assistenziali;08/05/2019
685;1;0;175,32;175,32;OMESSO NOMINATIVO NEL RISPETTO DELLA NORMATIVA SULLA PROTEZIONE DATI PERSONALI; ;IMPEGNO DI SPESA LEGGE 162/1998 PIANI PERSONALIZZATI IN SOSTEGNO ALLE PERSONE CON DISABILITA' GRAVE - PROROGA DAL 01.01.2019 AL 30.04.2019;08/05/2019;1420;2;29;1;Spese correnti;4;Trasferimenti correnti;2;Trasferimenti correnti a Famiglie;2;Interventi assistenziali;999;Altri assegni e sussidi assistenziali;08/05/2019
686;1;0;265,71;265,71;OMESSO NOMINATIVO NEL RISPETTO DELLA NORMATIVA SULLA PROTEZIONE DATI PERSONALI; ;IMPEGNO DI SPESA LEGGE 162/1998 PIANI PERSONALIZZATI IN SOSTEGNO ALLE PERSONE CON DISABILITA' GRAVE - PROROGA DAL 01.01.2019 AL 30.04.2019;08/05/2019;1420;2;29;1;Spese correnti;4;Trasferimenti correnti;2;Trasferimenti correnti a Famiglie;2;Interventi assistenziali;999;Altri assegni e sussidi assistenziali;08/05/2019
687;1;0;150,33;150,33;OMESSO NOMINATIVO NEL RISPETTO DELLA NORMATIVA SULLA PROTEZIONE DATI PERSONALI; ;IMPEGNO DI SPESA LEGGE 162/1998 PIANI PERSONALIZZATI IN SOSTEGNO ALLE PERSONE CON DISABILITA' GRAVE - PROROGA DAL 01.01.2019 AL 30.04.2019;08/05/2019;1420;2;29;1;Spese correnti;4;Trasferimenti correnti;2;Trasferimenti correnti a Famiglie;2;Interventi assistenziali;999;Altri assegni e sussidi assistenziali;08/05/2019
688;1;0;171,33;171,33;OMESSO NOMINATIVO NEL RISPETTO DELLA NORMATIVA SULLA PROTEZIONE DATI PERSONALI; ;IMPEGNO DI SPESA LEGGE 162/1998 PIANI PERSONALIZZATI IN SOSTEGNO ALLE PERSONE CON DISABILITA' GRAVE - PROROGA DAL 01.01.2019 AL 30.04.2019;08/05/2019;1420;2;29;1;Spese correnti;4;Trasferimenti correnti;2;Trasferimenti correnti a Famiglie;2;Interventi assistenziali;999;Altri assegni e sussidi assistenziali;08/05/2019
689;1;0;205,35;205,35;OMESSO NOMINATIVO NEL RISPETTO DELLA NORMATIVA SULLA PROTEZIONE DATI PERSONALI; ;IMPEGNO DI SPESA LEGGE 162/1998 PIANI PERSONALIZZATI IN SOSTEGNO ALLE PERSONE CON DISABILITA' GRAVE - PROROGA DAL 01.01.2019 AL 30.04.2019;08/05/2019;1420;2;29;1;Spese correnti;4;Trasferimenti correnti;2;Trasferimenti correnti a Famiglie;2;Interventi assistenziali;999;Altri assegni e sussidi assistenziali;08/05/2019
690;1;0;622,85;622,85;OMESSO NOMINATIVO NEL RISPETTO DELLA NORMATIVA SULLA PROTEZIONE DATI PERSONALI; ;IMPEGNO DI SPESA LEGGE 162/1998 PIANI PERSONALIZZATI IN SOSTEGNO ALLE PERSONE CON DISABILITA' GRAVE - PROROGA DAL 01.01.2019 AL 30.04.2019;08/05/2019;1420;2;29;1;Spese correnti;4;Trasferimenti correnti;2;Trasferimenti correnti a Famiglie;2;Interventi assistenziali;999;Altri assegni e sussidi assistenziali;08/05/2019
691;1;0;642,24;642,24;OMESSO NOMINATIVO NEL RISPETTO DELLA NORMATIVA SULLA PROTEZIONE DATI PERSONALI; ;IMPEGNO DI SPESA LEGGE 162/1998 PIANI PERSONALIZZATI IN SOSTEGNO ALLE PERSONE CON DISABILITA' GRAVE - PROROGA DAL 01.01.2019 AL 30.04.2019;08/05/2019;1420;2;29;1;Spese correnti;4;Trasferimenti correnti;2;Trasferimenti correnti a Famiglie;2;Interventi assistenziali;999;Altri assegni e sussidi assistenziali;08/05/2019
692;1;0;163,63;163,63;OMESSO NOMINATIVO NEL RISPETTO DELLA NORMATIVA SULLA PROTEZIONE DATI PERSONALI; ;IMPEGNO DI SPESA LEGGE 162/1998 PIANI PERSONALIZZATI IN SOSTEGNO ALLE PERSONE CON DISABILITA' GRAVE - PROROGA DAL 01.01.2019 AL 30.04.2019;08/05/2019;1420;2;29;1;Spese correnti;4;Trasferimenti correnti;2;Trasferimenti correnti a Famiglie;2;Interventi assistenziali;999;Altri assegni e sussidi assistenziali;08/05/2019
693;1;0;300;300;OMESSO NOMINATIVO NEL RISPETTO DELLA NORMATIVA SULLA PROTEZIONE DATI PERSONALI; ;IMPEGNO DI SPESA PER CONTRIBUTO A FAVORE DI CITTADINI SOFFERENTI MENTALI INSERITI IN STRUTTURE RESIDENZIALI - ANNUALITA' 2019;08/05/2019;1434;0;26;1;Spese correnti;4;Trasferimenti correnti;2;Trasferimenti correnti a Famiglie;2;Interventi assistenziali;999;Altri assegni e sussidi assistenziali;08/05/2019
694;1;0;300;300;OMESSO NOMINATIVO NEL RISPETTO DELLA NORMATIVA SULLA PROTEZIONE DATI PERSONALI; ;IMPEGNO DI SPESA PER CONTRIBUTO A FAVORE DI CITTADINI SOFFERENTI MENTALI INSERITI IN STRUTTURE RESIDENZIALI - ANNUALITA' 2019;08/05/2019;1434;0;26;1;Spese correnti;4;Trasferimenti correnti;2;Trasferimenti correnti a Famiglie;2;Interventi assistenziali;999;Altri assegni e sussidi assistenziali;08/05/2019
695;1;0;108,99;108,99;OMESSO NOMINATIVO NEL RISPETTO DELLA NORMATIVA SULLA PROTEZIONE DATI PERSONALI; ;IMPEGNO DI SPESA LEGGE 162/1998 PIANI PERSONALIZZATI IN SOSTEGNO ALLE PERSONE CON DISABILITA' GRAVE - PROROGA DAL 01.01.2019 AL 30.04.2019;08/05/2019;1420;2;29;1;Spese correnti;4;Trasferimenti correnti;2;Trasferimenti correnti a Famiglie;2;Interventi assistenziali;999;Altri assegni e sussidi assistenziali;08/05/2019
696;1;0;8.411,52;8.411,52;MURGIA GIOVANNI MARIA;Z1724E1523;Fatt.n. 4/E / PA del 30/04/2019;08/05/2019;654;0;52;1;Spese correnti;3;Acquisto di beni e servizi;2;Acquisto di servizi;15;Contratti di servizio pubblico;6;Contratti di servizio per le mense scolastiche;08/05/2019
697;1;0;225,53;225,53;FIORI MARIO;Z2F26B75EB;Fatt.n. FATTPA 5_19 del 01/05/2019;08/05/2019;1300;8;2;1;Spese correnti;3;Acquisto di beni e servizi;1;Acquisto di beni;2;Altri beni di consumo;2;Carburanti, combustibili e lubrificanti;08/05/2019
698;1;0;520;520;MURA ENRICO;ZBE273D19B;Fatt.n. FATTPA 6_19 del 07/05/2019 s.m.i. e, pertanto, non soggetta a IVA nÃ© a ritenuta;09/05/2019;254;0;50;1;Spese correnti;3;Acquisto di beni e servizi;2;Acquisto di servizi;11;Prestazioni professionali e specialistiche;999;Altre prestazioni professionali e specialistiche n.a.c.;09/05/2019
699;1;0;1.019,13;1.019,13;TORTU ANTONIO;ZOB25DA287;Fatt.n. 1/PA del 07/05/2019;09/05/2019;3533;0;344;2;Spese in conto capitale;2;Investimenti fissi lordi e acquisto di terreni;1;Beni materiali;9;Beni immobili;16;Impianti sportivi;09/05/2019
700;1;0;16.887,85;16.887,85;SOTGIU GIUSEPPE;ZOB25DA287;Fatt.n. 7/PA del 07/05/2019 ADEGUAMENTO DELL'IMPIANTO DI ILLUMINAZIONE DEL CAMPO SPORTIVO COMUNALE I LOTTO CIG Z0B25DA287;09/05/2019;3533;0;344;2;Spese in conto capitale;2;Investimenti fissi lordi e acquisto di terreni;1;Beni materiali;9;Beni immobili;16;Impianti sportivi;09/05/2019
701;1;0;1.494,03;1.494,03;OMESSO NOMINATIVO NEL RISPETTO DELLA NORMATIVA SULLA PROTEZIONE DATI PERSONALI;7394433F22;Fatt.n. X-351 del 04/04/2019;09/05/2019;1412;1;85;1;Spese correnti;3;Acquisto di beni e servizi;2;Acquisto di servizi;15;Contratti di servizio pubblico;8;Contratti di servizio di assistenza sociale residenziale e semiresidenziale;09/05/2019
702;1;0;31,41;31,41;POSTE ITALIANE Spa;Z8223E60A4;Fatt.n. 8719140162 del 08/05/2019 Fattura Elettronica relativa all'Identificativo Rendiconto 2101861554;09/05/2019;118;2;144;1;Spese correnti;3;Acquisto di beni e servizi;2;Acquisto di servizi;16;Servizi amministrativi;2;Spese postali;09/05/2019
703;1;0;231,47;231,47;OMESSO NOMINATIVO NEL RISPETTO DELLA NORMATIVA SULLA PROTEZIONE DATI PERSONALI; ;IMPEGNO DI SPESA LEGGE 162/1998 PIANI PERSONALIZZATI IN SOSTEGNO ALLE PERSONE CON DISABILITA' GRAVE - PROROGA DAL 01.01.2019 AL 30.04.2019;10/05/2019;1420;2;29;1;Spese correnti;4;Trasferimenti correnti;2;Trasferimenti correnti a Famiglie;2;Interventi assistenziali;999;Altri assegni e sussidi assistenziali;10/05/2019
704;1;0;540,67;540,67;OMESSO NOMINATIVO NEL RISPETTO DELLA NORMATIVA SULLA PROTEZIONE DATI PERSONALI; ;IMPEGNO DI SPESA LEGGE 162/1998 PIANI PERSONALIZZATI IN SOSTEGNO ALLE PERSONE CON DISABILITA' GRAVE - PROROGA DAL 01.01.2019 AL 30.04.2019;10/05/2019;1420;2;29;1;Spese correnti;4;Trasferimenti correnti;2;Trasferimenti correnti a Famiglie;2;Interventi assistenziali;999;Altri assegni e sussidi assistenziali;10/05/2019
705;1;0;151,77;151,77;OMESSO NOMINATIVO NEL RISPETTO DELLA NORMATIVA SULLA PROTEZIONE DATI PERSONALI; ;IMPEGNO DI SPESA LEGGE 162/1998 PIANI PERSONALIZZATI IN SOSTEGNO ALLE PERSONE CON DISABILITA' GRAVE - PROROGA DAL 01.01.2019 AL 30.04.2019;10/05/2019;1420;2;29;1;Spese correnti;4;Trasferimenti correnti;2;Trasferimenti correnti a Famiglie;2;Interventi assistenziali;999;Altri assegni e sussidi assistenziali;10/05/2019
706;1;0;349,71;349,71;OMESSO NOMINATIVO NEL RISPETTO DELLA NORMATIVA SULLA PROTEZIONE DATI PERSONALI; ;IMPEGNO DI SPESA LEGGE 162/1998 PIANI PERSONALIZZATI IN SOSTEGNO ALLE PERSONE CON DISABILITA' GRAVE - PROROGA DAL 01.01.2019 AL 30.04.2019;10/05/2019;1420;2;29;1;Spese correnti;4;Trasferimenti correnti;2;Trasferimenti correnti a Famiglie;2;Interventi assistenziali;999;Altri assegni e sussidi assistenziali;10/05/2019
